"SERVICE_CODE","ORGANISATION_UNIT","EXPENDITURE_CATEGORY","EXPENDITURE_DESCRIPTION","EXPENDITURE_CODE","NARRATIVE","DATE","TRANSATION_CODE","NET_AMOUNT","SUPPLIER_CODE","SUPPLIER_NAME","FROM_DATE","TO_DATE","FINANCIAL_PERIOD_YEAR"
"P&V","NORTH AREA RANGERS","EMPLOYEES","APPOINTMENT EXPENSES","1301","P120003-SERVICE-Asst Rangers & Rangers Vacancy Advert Costs",16/11/2022 00:00:00,"268710",815.1,"SA0133","SOWERBY ADVERTISING AND COMMUNICATIONS",31/10/2022 00:00:00,27/11/2022 00:00:00,"P08-2023"
"P&V","SOUTH AREA RANGERS","EMPLOYEES","APPOINTMENT EXPENSES","1301","P120003-SERVICE-Asst Rangers & Rangers Vacancy Advert Costs",16/11/2022 00:00:00,"268710",815.1,"SA0133","SOWERBY ADVERTISING AND COMMUNICATIONS",31/10/2022 00:00:00,27/11/2022 00:00:00,"P08-2023"
"R&B","CORPORATE TRAINING","EMPLOYEES","TRAINING EXPENSES","1305","P119638-SERVICE-D Baxter FAW Full Course 7-9 Nov 22",16/11/2022 00:00:00,"268722",379,"BR0069","BRITISH RED CROSS",31/10/2022 00:00:00,27/11/2022 00:00:00,"P08-2023"
"R&B","CORPORATE TRAINING","EMPLOYEES","TRAINING EXPENSES","1305","P119637-SERVICE-D Ecker FAW Full course 12-14 Oct 22",16/11/2022 00:00:00,"268722",379,"BR0069","BRITISH RED CROSS",31/10/2022 00:00:00,27/11/2022 00:00:00,"P08-2023"
"R&B","CORPORATE TRAINING","EMPLOYEES","TRAINING EXPENSES","1305","P119831-SERVICE-FAW Training Anna JOnes 7/11/22",22/11/2022 00:00:00,"268723",379,"BR0069","BRITISH RED CROSS",31/10/2022 00:00:00,27/11/2022 00:00:00,"P08-2023"
"R&B","CORPORATE TRAINING","EMPLOYEES","TRAINING EXPENSES","1305","P120046-SERVICE-IOSH WS Training Course 3 Nov 22",16/11/2022 00:00:00,"268741",1250,"RI0053","RIGHT DIRECTIONS (MANAGEMENT) LTD",31/10/2022 00:00:00,27/11/2022 00:00:00,"P08-2023"
"P&V","YOUTH AND SCHOOLS","EMPLOYEES","TRAINING EXPENSES","1305","P119539-SERVICE-Foraging Workshop Nicola Croft 3/11/22",27/11/2022 00:00:00,"268895",280,"EA0415","EARTHWILD",31/10/2022 00:00:00,27/11/2022 00:00:00,"P08-2023"
"R&B","CORPORATE TRAINING","EMPLOYEES","TRAINING PANEL","1306","P119139-SERVICE-T GUINAN TRAINING PANEL",14/11/2022 00:00:00,"268570",255,"KA0173","KAPLAN FINANCIAL LIMITED",31/10/2022 00:00:00,27/11/2022 00:00:00,"P08-2023"
"R&B","NON DISTRIBUTED COSTS","EMPLOYEES","SUPERANNUATION ADDED YEARS","1310","OCTOBER 2022",8/11/2022 00:00:00,"268300",4785.56,"LO0031","LONDON PENSIONS FUND AUTHORITY",31/10/2022 00:00:00,27/11/2022 00:00:00,"P08-2023"
"P&V","YOUTH AND SCHOOLS","EMPLOYEES","CRB CHECKS","1330","P120011-SERVICE-Disclosure & barring checks",14/11/2022 00:00:00,"267649",36,"DD0119","DUE DILIGENCE CHECKING LIMITED",31/10/2022 00:00:00,27/11/2022 00:00:00,"P08-2023"
,"LV LEISURE CENTRE GOLF COURSE","EMPLOYEES","CRB CHECKS","1330","A COLLMAN-FRANCIS CREDIT",8/11/2022 00:00:00,"268465",-18,"DD0119","DUE DILIGENCE CHECKING LIMITED",31/10/2022 00:00:00,27/11/2022 00:00:00,"P08-2023"
,"VENUES MANAGEMENT","EMPLOYEES","DRIVING LICENCE CHECKS","1335","J SYMONS DRIVING LICENCE CHECK",9/11/2022 00:00:00,"268530",6.25,"FI0288","FIRST ADVANTAGE EUROPE LTD",31/10/2022 00:00:00,27/11/2022 00:00:00,"P08-2023"
"R&B","CORPORATE TRAINING","EMPLOYEES","APPRENTICE LEVY","1390","PAYE",22/11/2022 00:00:00,"268685",733,"HM0368","HMRC",31/10/2022 00:00:00,27/11/2022 00:00:00,"P08-2023"
"R&B","CORPORATE TRAINING","EMPLOYEES","APPRENTICE LEVY","1390","PAYE",14/11/2022 00:00:00,"268691",658,"HM0368","HMRC",31/10/2022 00:00:00,27/11/2022 00:00:00,"P08-2023"
"CEO","LVLC SERVICE CHARGE","PREMISES RELATED EXPENDITURE","SCHEDULED GROUND MAINTENANCE","2111","OCTOBER 2022",8/11/2022 00:00:00,"268318",54.13,"GL0214","GLENDALE GROUNDS MANAGEMENT LIMITED",31/10/2022 00:00:00,27/11/2022 00:00:00,"P08-2023"
"CEO","LVLC SERVICE CHARGE","PREMISES RELATED EXPENDITURE","SCHEDULED GROUND MAINTENANCE","2111","OCTOBER 2022",8/11/2022 00:00:00,"268318",1484.13,"GL0214","GLENDALE GROUNDS MANAGEMENT LIMITED",31/10/2022 00:00:00,27/11/2022 00:00:00,"P08-2023"
"P&V","MYDDELTON HOUSE","PREMISES RELATED EXPENDITURE","CONTRACT CLEANING","2120","P117626-SERVICE-Contract Cleaning",22/11/2022 00:00:00,"268760",2290.41,"BR0632","BRITANNIA SERVICES GROUP LTD",31/10/2022 00:00:00,27/11/2022 00:00:00,"P08-2023"
,"LEE VALLEY WATERWORKS CENTRE","PREMISES RELATED EXPENDITURE","CONTRACT CLEANING","2120","P118242-SERVICE-Cleaning WaterWorks Centre",22/11/2022 00:00:00,"268759",758.4,"BR0632","BRITANNIA SERVICES GROUP LTD",31/10/2022 00:00:00,27/11/2022 00:00:00,"P08-2023"
,"LEE VALLEY CAMPSITE","PREMISES RELATED EXPENDITURE","CONTRACT CLEANING","2120","P120095-SERVICE-Site Cleaning OCTOBER 2022",23/11/2022 00:00:00,"268551",2608,"LI0305","LIMPIAR CLEANING",31/10/2022 00:00:00,27/11/2022 00:00:00,"P08-2023"
,"LEE VALLEY CAMPSITE","PREMISES RELATED EXPENDITURE","CONTRACT CLEANING","2120","P119749-SERVICE-Monthly toilet clean oct-mar23",15/11/2022 00:00:00,"268560",88.25,"IN0012","INITIAL WASHROOM HYGIENE",31/10/2022 00:00:00,27/11/2022 00:00:00,"P08-2023"
,"LEE VALLEY CARAVAN PARK","PREMISES RELATED EXPENDITURE","CONTRACT CLEANING","2120","P119987-SERVICE-Monthly Cleaning on Site",14/11/2022 00:00:00,"268549",3018,"LI0305","LIMPIAR CLEANING",31/10/2022 00:00:00,27/11/2022 00:00:00,"P08-2023"
,"LEE VALLEY CARAVAN PARK","PREMISES RELATED EXPENDITURE","CONTRACT CLEANING","2120","P120182-SERVICE-Monthly Facilitiy Service",27/11/2022 00:00:00,"268879",93.28,"IN0012","INITIAL WASHROOM HYGIENE",31/10/2022 00:00:00,27/11/2022 00:00:00,"P08-2023"
,"LEE VALLEY CARAVAN PARK","PREMISES RELATED EXPENDITURE","CONTRACT CLEANING","2120","P120158-SERVICE-Linen service",27/11/2022 00:00:00,"269006",732.14,"JO0168","JOHNSONS STALBRIDGE LINEN SERVICES",31/10/2022 00:00:00,27/11/2022 00:00:00,"P08-2023"
"P&V","NORTH AREA RANGERS","PREMISES RELATED EXPENDITURE","CONTRACT CLEANING","2120","OCTOBER 2022",8/11/2022 00:00:00,"268318",197.99,"GL0214","GLENDALE GROUNDS MANAGEMENT LIMITED",31/10/2022 00:00:00,27/11/2022 00:00:00,"P08-2023"
"P&V","WILDLIFE DISCOVERY CENTRE","PREMISES RELATED EXPENDITURE","CONTRACT CLEANING","2120","P118094-SERVICE-Cleaning",22/11/2022 00:00:00,"268758",359.28,"BR0632","BRITANNIA SERVICES GROUP LTD",31/10/2022 00:00:00,27/11/2022 00:00:00,"P08-2023"
"P&V","GUNPOWDER PARK","PREMISES RELATED EXPENDITURE","CONTRACT CLEANING","2120","OCTOBER 2022",8/11/2022 00:00:00,"268318",271.09,"GL0214","GLENDALE GROUNDS MANAGEMENT LIMITED",31/10/2022 00:00:00,27/11/2022 00:00:00,"P08-2023"
"P&V","RIVER LEE COUNTRY PARK","PREMISES RELATED EXPENDITURE","CONTRACT CLEANING","2120","OCTOBER 2022",8/11/2022 00:00:00,"268318",542.17,"GL0214","GLENDALE GROUNDS MANAGEMENT LIMITED",31/10/2022 00:00:00,27/11/2022 00:00:00,"P08-2023"
,"LV LEISURE CENTRE CAMPSITE","PREMISES RELATED EXPENDITURE","CONTRACT CLEANING","2120","P119994-SERVICE-monthly clean site facilities and accomodatio",14/11/2022 00:00:00,"268550",2190,"LI0305","LIMPIAR CLEANING",31/10/2022 00:00:00,27/11/2022 00:00:00,"P08-2023"
"P&V","MYDDLETON HSE HERITAGE CENTRE","PREMISES RELATED EXPENDITURE","CLEANING CONTRACT","2121","P118226-SERVICE-Cleaning Bowles Tea Room (Visitor Centre)",22/11/2022 00:00:00,"268761",778.44,"BR0632","BRITANNIA SERVICES GROUP LTD",31/10/2022 00:00:00,27/11/2022 00:00:00,"P08-2023"
,"LEE VALLEY CAMPSITE","PREMISES RELATED EXPENDITURE","LINEN SERVICE","2122","P119875-SERVICE-26/09/22-23/10/22",8/11/2022 00:00:00,"268231",291,"JO0168","JOHNSONS STALBRIDGE LINEN SERVICES",31/10/2022 00:00:00,27/11/2022 00:00:00,"P08-2023"
,"LEE VALLEY CAMPSITE","PREMISES RELATED EXPENDITURE","LINEN SERVICE","2122","P119875-SERVICE-24/10/22 - 23/11/22",27/11/2022 00:00:00,"269005",291,"JO0168","JOHNSONS STALBRIDGE LINEN SERVICES",31/10/2022 00:00:00,27/11/2022 00:00:00,"P08-2023"
,"LEE VALLEY CAMPSITE","PREMISES RELATED EXPENDITURE","LINEN SERVICE","2122","P119875-SERVICE-24/11/22 - 23/12/22",27/11/2022 00:00:00,"269005",0.94,"JO0168","JOHNSONS STALBRIDGE LINEN SERVICES",31/10/2022 00:00:00,27/11/2022 00:00:00,"P08-2023"
,"LEE VALLEY MARINA STANSTEAD","PREMISES RELATED EXPENDITURE","GM MAIN CONTRACT SCHEDULED","2141","OCTOBER 2022",8/11/2022 00:00:00,"268318",316.7,"GL0214","GLENDALE GROUNDS MANAGEMENT LIMITED",31/10/2022 00:00:00,27/11/2022 00:00:00,"P08-2023"
,"LEE VALLEY WATERWORKS CENTRE","PREMISES RELATED EXPENDITURE","GM MAIN CONTRACT SCHEDULED","2141","OCTOBER 2022",8/11/2022 00:00:00,"268318",130.44,"GL0214","GLENDALE GROUNDS MANAGEMENT LIMITED",31/10/2022 00:00:00,27/11/2022 00:00:00,"P08-2023"
,"LEE VALLEY WATERWORKS CENTRE","PREMISES RELATED EXPENDITURE","GM MAIN CONTRACT SCHEDULED","2141","OCTOBER 2022",8/11/2022 00:00:00,"268318",297.53,"GL0214","GLENDALE GROUNDS MANAGEMENT LIMITED",31/10/2022 00:00:00,27/11/2022 00:00:00,"P08-2023"
,"LEE VALLEY FARM HAYES HILL","PREMISES RELATED EXPENDITURE","GM MAIN CONTRACT SCHEDULED","2141","OCTOBER 2022",8/11/2022 00:00:00,"268318",73.47,"GL0214","GLENDALE GROUNDS MANAGEMENT LIMITED",31/10/2022 00:00:00,27/11/2022 00:00:00,"P08-2023"
"P&V","EAST INDIA DOCK AND BOW CREEK","PREMISES RELATED EXPENDITURE","GM MAIN CONTRACT SCHEDULED","2141","OCTOBER 2022",8/11/2022 00:00:00,"268318",417.18,"GL0214","GLENDALE GROUNDS MANAGEMENT LIMITED",31/10/2022 00:00:00,27/11/2022 00:00:00,"P08-2023"
"P&V","EAST INDIA DOCK AND BOW CREEK","PREMISES RELATED EXPENDITURE","GM MAIN CONTRACT SCHEDULED","2141","OCTOBER 2022",8/11/2022 00:00:00,"268318",465.88,"GL0214","GLENDALE GROUNDS MANAGEMENT LIMITED",31/10/2022 00:00:00,27/11/2022 00:00:00,"P08-2023"
"P&V","NORTH AREA RANGERS","PREMISES RELATED EXPENDITURE","GM MAIN CONTRACT SCHEDULED","2141","OCTOBER 2022",8/11/2022 00:00:00,"268318",2805.49,"GL0214","GLENDALE GROUNDS MANAGEMENT LIMITED",31/10/2022 00:00:00,27/11/2022 00:00:00,"P08-2023"
"P&V","SOUTH AREA RANGERS","PREMISES RELATED EXPENDITURE","GM MAIN CONTRACT SCHEDULED","2141","OCTOBER 2022",8/11/2022 00:00:00,"268318",372.7,"GL0214","GLENDALE GROUNDS MANAGEMENT LIMITED",31/10/2022 00:00:00,27/11/2022 00:00:00,"P08-2023"
"P&V","SOUTH AREA RANGERS","PREMISES RELATED EXPENDITURE","GM MAIN CONTRACT SCHEDULED","2141","OCTOBER 2022",8/11/2022 00:00:00,"268318",3204.44,"GL0214","GLENDALE GROUNDS MANAGEMENT LIMITED",31/10/2022 00:00:00,27/11/2022 00:00:00,"P08-2023"
"P&V","ABBEY GARDENS","PREMISES RELATED EXPENDITURE","GM MAIN CONTRACT SCHEDULED","2141","OCTOBER 2022",8/11/2022 00:00:00,"268318",1421.16,"GL0214","GLENDALE GROUNDS MANAGEMENT LIMITED",31/10/2022 00:00:00,27/11/2022 00:00:00,"P08-2023"
"P&V","GUNPOWDER PARK","PREMISES RELATED EXPENDITURE","GM MAIN CONTRACT SCHEDULED","2141","OCTOBER 2022",8/11/2022 00:00:00,"268318",1399.23,"GL0214","GLENDALE GROUNDS MANAGEMENT LIMITED",31/10/2022 00:00:00,27/11/2022 00:00:00,"P08-2023"
"P&V","RIVER LEE COUNTRY PARK","PREMISES RELATED EXPENDITURE","GM MAIN CONTRACT SCHEDULED","2141","OCTOBER 2022",8/11/2022 00:00:00,"268318",8179.78,"GL0214","GLENDALE GROUNDS MANAGEMENT LIMITED",31/10/2022 00:00:00,27/11/2022 00:00:00,"P08-2023"
"P&V","RIVER LEE COUNTRY PARK","PREMISES RELATED EXPENDITURE","GM MAIN CONTRACT SCHEDULED","2141","OCTOBER 2022",8/11/2022 00:00:00,"268318",1304.46,"GL0214","GLENDALE GROUNDS MANAGEMENT LIMITED",31/10/2022 00:00:00,27/11/2022 00:00:00,"P08-2023"
,"LEE VALLEY VELOPARK","PREMISES RELATED EXPENDITURE","GM MAIN CONTRACT SCHEDULED","2141","OCTOBER 2022",8/11/2022 00:00:00,"268318",3543.61,"GL0214","GLENDALE GROUNDS MANAGEMENT LIMITED",31/10/2022 00:00:00,27/11/2022 00:00:00,"P08-2023"
,"LV HOCKEY AND TENNIS CENTRE","PREMISES RELATED EXPENDITURE","GM MAIN CONTRACT SCHEDULED","2141","OCTOBER 2022",8/11/2022 00:00:00,"268318",2179.03,"GL0214","GLENDALE GROUNDS MANAGEMENT LIMITED",31/10/2022 00:00:00,27/11/2022 00:00:00,"P08-2023"
"P&V","THREE MILLS","PREMISES RELATED EXPENDITURE","GM MAIN CONTRACT SCHEDULED","2141","OCTOBER 2022",8/11/2022 00:00:00,"268318",796.99,"GL0214","GLENDALE GROUNDS MANAGEMENT LIMITED",31/10/2022 00:00:00,27/11/2022 00:00:00,"P08-2023"
,"LEE VALLEY RIDING CENTRE","PREMISES RELATED EXPENDITURE","GM MAIN CONTRACT SCHEDULED","2141","OCTOBER 2022",8/11/2022 00:00:00,"268318",243.46,"GL0214","GLENDALE GROUNDS MANAGEMENT LIMITED",31/10/2022 00:00:00,27/11/2022 00:00:00,"P08-2023"
,"LEE VALLEY ICE CENTRE","PREMISES RELATED EXPENDITURE","GM MAIN CONTRACT SCHEDULED","2141","OCTOBER 2022",8/11/2022 00:00:00,"268318",164.91,"GL0214","GLENDALE GROUNDS MANAGEMENT LIMITED",31/10/2022 00:00:00,27/11/2022 00:00:00,"P08-2023"
"P&V","FORMER LV LIDO SITE","PREMISES RELATED EXPENDITURE","GM MAIN CONTRACT SCHEDULED","2141","OCTOBER 2022",8/11/2022 00:00:00,"268318",545.95,"GL0214","GLENDALE GROUNDS MANAGEMENT LIMITED",31/10/2022 00:00:00,27/11/2022 00:00:00,"P08-2023"
,"LEE VALLEY ATHLETICS CENTRE","PREMISES RELATED EXPENDITURE","GM MAIN CONTRACT SCHEDULED","2141","OCTOBER 2022",8/11/2022 00:00:00,"268318",327.6,"GL0214","GLENDALE GROUNDS MANAGEMENT LIMITED",31/10/2022 00:00:00,27/11/2022 00:00:00,"P08-2023"
,"LEE VALLEY WHITE WATER CENTRE","PREMISES RELATED EXPENDITURE","GM MAIN CONTRACT SCHEDULED","2141","OCTOBER 2022",8/11/2022 00:00:00,"268318",1301.47,"GL0214","GLENDALE GROUNDS MANAGEMENT LIMITED",31/10/2022 00:00:00,27/11/2022 00:00:00,"P08-2023"
"P&V","NORTH AREA RANGERS","PREMISES RELATED EXPENDITURE","GM MAIN CONTRACT UNSCHEDULED","2142","P116773-SERVICE-Bank Works - White Water Centre",8/11/2022 00:00:00,"262732",4093.2,"GL0214","GLENDALE GROUNDS MANAGEMENT LIMITED",31/10/2022 00:00:00,27/11/2022 00:00:00,"P08-2023"
"P&V","NORTH AREA RANGERS","PREMISES RELATED EXPENDITURE","GM MAIN CONTRACT UNSCHEDULED","2142","P116773-SERVICE-Bank Works - White Water Centre",8/11/2022 00:00:00,"268459",-4093.2,"GL0214","GLENDALE GROUNDS MANAGEMENT LIMITED",31/10/2022 00:00:00,27/11/2022 00:00:00,"P08-2023"
"P&V","NORTH AREA RANGERS","PREMISES RELATED EXPENDITURE","GM MAIN CONTRACT UNSCHEDULED","2142","P116773-SERVICE-Bank Works - White Water Centre",8/11/2022 00:00:00,"268505",2780.93,"GL0214","GLENDALE GROUNDS MANAGEMENT LIMITED",31/10/2022 00:00:00,27/11/2022 00:00:00,"P08-2023"
"P&V","SOUTH AREA RANGERS","PREMISES RELATED EXPENDITURE","GM MAIN CONTRACT UNSCHEDULED","2142","OCTOBER 2022",8/11/2022 00:00:00,"268318",1582.23,"GL0214","GLENDALE GROUNDS MANAGEMENT LIMITED",31/10/2022 00:00:00,27/11/2022 00:00:00,"P08-2023"
,"LEE VALLEY WATERWORKS CENTRE","PREMISES RELATED EXPENDITURE","GM HORTICULTURE SCHEDULED","2143","OCTOBER 2022",8/11/2022 00:00:00,"268318",83.42,"GL0214","GLENDALE GROUNDS MANAGEMENT LIMITED",31/10/2022 00:00:00,27/11/2022 00:00:00,"P08-2023"
"P&V","NORTH AREA RANGERS","PREMISES RELATED EXPENDITURE","GM HORTICULTURE SCHEDULED","2143","OCTOBER 2022",8/11/2022 00:00:00,"268318",124.03,"GL0214","GLENDALE GROUNDS MANAGEMENT LIMITED",31/10/2022 00:00:00,27/11/2022 00:00:00,"P08-2023"
"P&V","SOUTH AREA RANGERS","PREMISES RELATED EXPENDITURE","GM HORTICULTURE SCHEDULED","2143","OCTOBER 2022",8/11/2022 00:00:00,"268318",71.11,"GL0214","GLENDALE GROUNDS MANAGEMENT LIMITED",31/10/2022 00:00:00,27/11/2022 00:00:00,"P08-2023"
"P&V","ABBEY GARDENS","PREMISES RELATED EXPENDITURE","GM HORTICULTURE SCHEDULED","2143","OCTOBER 2022",8/11/2022 00:00:00,"268318",969.08,"GL0214","GLENDALE GROUNDS MANAGEMENT LIMITED",31/10/2022 00:00:00,27/11/2022 00:00:00,"P08-2023"
"P&V","GUNPOWDER PARK","PREMISES RELATED EXPENDITURE","GM HORTICULTURE SCHEDULED","2143","OCTOBER 2022",8/11/2022 00:00:00,"268318",127.21,"GL0214","GLENDALE GROUNDS MANAGEMENT LIMITED",31/10/2022 00:00:00,27/11/2022 00:00:00,"P08-2023"
"P&V","RIVER LEE COUNTRY PARK","PREMISES RELATED EXPENDITURE","GM HORTICULTURE SCHEDULED","2143","OCTOBER 2022",8/11/2022 00:00:00,"268318",66.01,"GL0214","GLENDALE GROUNDS MANAGEMENT LIMITED",31/10/2022 00:00:00,27/11/2022 00:00:00,"P08-2023"
,"LEE VALLEY VELOPARK","PREMISES RELATED EXPENDITURE","GM HORTICULTURE SCHEDULED","2143","OCTOBER 2022",8/11/2022 00:00:00,"268318",565.84,"GL0214","GLENDALE GROUNDS MANAGEMENT LIMITED",31/10/2022 00:00:00,27/11/2022 00:00:00,"P08-2023"
,"LV HOCKEY AND TENNIS CENTRE","PREMISES RELATED EXPENDITURE","GM HORTICULTURE SCHEDULED","2143","OCTOBER 2022",8/11/2022 00:00:00,"268318",814.86,"GL0214","GLENDALE GROUNDS MANAGEMENT LIMITED",31/10/2022 00:00:00,27/11/2022 00:00:00,"P08-2023"
"P&V","THREE MILLS","PREMISES RELATED EXPENDITURE","GM HORTICULTURE SCHEDULED","2143","OCTOBER 2022",8/11/2022 00:00:00,"268318",26.45,"GL0214","GLENDALE GROUNDS MANAGEMENT LIMITED",31/10/2022 00:00:00,27/11/2022 00:00:00,"P08-2023"
,"LEE VALLEY RIDING CENTRE","PREMISES RELATED EXPENDITURE","GM HORTICULTURE SCHEDULED","2143","OCTOBER 2022",8/11/2022 00:00:00,"268318",6.61,"GL0214","GLENDALE GROUNDS MANAGEMENT LIMITED",31/10/2022 00:00:00,27/11/2022 00:00:00,"P08-2023"
"P&V","FORMER LV LIDO SITE","PREMISES RELATED EXPENDITURE","GM HORTICULTURE SCHEDULED","2143","OCTOBER 2022",8/11/2022 00:00:00,"268318",6.31,"GL0214","GLENDALE GROUNDS MANAGEMENT LIMITED",31/10/2022 00:00:00,27/11/2022 00:00:00,"P08-2023"
,"LEE VALLEY WHITE WATER CENTRE","PREMISES RELATED EXPENDITURE","GM HORTICULTURE SCHEDULED","2143","OCTOBER 2022",8/11/2022 00:00:00,"268318",14.44,"GL0214","GLENDALE GROUNDS MANAGEMENT LIMITED",31/10/2022 00:00:00,27/11/2022 00:00:00,"P08-2023"
"P&V","EAST INDIA DOCK AND BOW CREEK","PREMISES RELATED EXPENDITURE","GM NON MAIN CONT UNSCHEDULED","2147","P119490-SERVICE-Repair Steps/Handrail at Bow Creek",22/11/2022 00:00:00,"268768",450,"JO0019","R G JOYCE",31/10/2022 00:00:00,27/11/2022 00:00:00,"P08-2023"
"P&V","SOUTH AREA RANGERS","PREMISES RELATED EXPENDITURE","GM NON MAIN CONT UNSCHEDULED","2147","P119214-SERVICE-Clear Drain at Riding Centre",8/11/2022 00:00:00,"268501",780,"TR0030","BIOMARSH ENVIRONMENTAL LIMITED",31/10/2022 00:00:00,27/11/2022 00:00:00,"P08-2023"
"P&V","SOUTH AREA RANGERS","PREMISES RELATED EXPENDITURE","GM NON MAIN CONT UNSCHEDULED","2147","P119214-SERVICE-Clear Drain at Riding Centre",8/11/2022 00:00:00,"268502",570,"TR0030","BIOMARSH ENVIRONMENTAL LIMITED",31/10/2022 00:00:00,27/11/2022 00:00:00,"P08-2023"
"P&V","SOUTH AREA RANGERS","PREMISES RELATED EXPENDITURE","GM NON MAIN CONT UNSCHEDULED","2147","P119214-SERVICE-Clear Drain at Riding Centre",8/11/2022 00:00:00,"268503",360,"TR0030","BIOMARSH ENVIRONMENTAL LIMITED",31/10/2022 00:00:00,27/11/2022 00:00:00,"P08-2023"
"P&V","SOUTH AREA RANGERS","PREMISES RELATED EXPENDITURE","GM NON MAIN CONT UNSCHEDULED","2147","P119214-SERVICE-Clear Drain at Riding Centre",8/11/2022 00:00:00,"268504",465,"TR0030","BIOMARSH ENVIRONMENTAL LIMITED",31/10/2022 00:00:00,27/11/2022 00:00:00,"P08-2023"
"P&V","SOUTH AREA RANGERS","PREMISES RELATED EXPENDITURE","GM NON MAIN CONT UNSCHEDULED","2147","P120038-SERVICE-Repairs to Containers in South Ranger Yard",22/11/2022 00:00:00,"268878",1612,"CO0756","COWDRAY STEEL SOLUTIONS",31/10/2022 00:00:00,27/11/2022 00:00:00,"P08-2023"
"P&V","RIVER LEE COUNTRY PARK","PREMISES RELATED EXPENDITURE","GM NON MAIN CONT UNSCHEDULED","2147","KENDALL & SONS LIMITED",16/11/2022 00:00:00,"268746",97,"KE0023","KENDALL & SONS LIMITED",31/10/2022 00:00:00,27/11/2022 00:00:00,"P08-2023"
"P&V","RIVER LEE COUNTRY PARK","PREMISES RELATED EXPENDITURE","GM NON MAIN CONT UNSCHEDULED","2147","KENDALL & SONS LIMITED",16/11/2022 00:00:00,"268746",42,"KE0023","KENDALL & SONS LIMITED",31/10/2022 00:00:00,27/11/2022 00:00:00,"P08-2023"
"P&V","RIVER LEE COUNTRY PARK","PREMISES RELATED EXPENDITURE","GM NON MAIN CONT UNSCHEDULED","2147","KENDALL & SONS LIMITED",16/11/2022 00:00:00,"268746",-139,"KE0023","KENDALL & SONS LIMITED",31/10/2022 00:00:00,27/11/2022 00:00:00,"P08-2023"
"P&V","RIVER LEE COUNTRY PARK","PREMISES RELATED EXPENDITURE","GM NON MAIN CONT UNSCHEDULED","2147","P119120-SERVICE-New Mains Tap at Showground",16/11/2022 00:00:00,"268746",139,"KE0023","KENDALL & SONS LIMITED",31/10/2022 00:00:00,27/11/2022 00:00:00,"P08-2023"
"P&V","RIVER LEE COUNTRY PARK","PREMISES RELATED EXPENDITURE","GM NON MAIN CONT UNSCHEDULED","2147","KENDALL & SONS LIMITED",23/11/2022 00:00:00,"268960",75,"KE0023","KENDALL & SONS LIMITED",31/10/2022 00:00:00,27/11/2022 00:00:00,"P08-2023"
"P&V","RIVER LEE COUNTRY PARK","PREMISES RELATED EXPENDITURE","GM NON MAIN CONT UNSCHEDULED","2147","P119499-SERVICE-Repair Drain Cover at Showground",23/11/2022 00:00:00,"268960",198,"KE0023","KENDALL & SONS LIMITED",31/10/2022 00:00:00,27/11/2022 00:00:00,"P08-2023"
"P&V","RIVER LEE COUNTRY PARK","PREMISES RELATED EXPENDITURE","GM NON MAIN CONT UNSCHEDULED","2147","KENDALL & SONS LIMITED",23/11/2022 00:00:00,"268960",123,"KE0023","KENDALL & SONS LIMITED",31/10/2022 00:00:00,27/11/2022 00:00:00,"P08-2023"
"P&V","RIVER LEE COUNTRY PARK","PREMISES RELATED EXPENDITURE","GM NON MAIN CONT UNSCHEDULED","2147","KENDALL & SONS LIMITED",23/11/2022 00:00:00,"268960",-198,"KE0023","KENDALL & SONS LIMITED",31/10/2022 00:00:00,27/11/2022 00:00:00,"P08-2023"
"P&V","SOUTH AREA RANGERS","PREMISES RELATED EXPENDITURE","HABITAT MANAGEMENT WORKS","2149","P119744-SERVICE-Flail Cuts at Tottenham Marshes",16/11/2022 00:00:00,"268753",3375,"MA0002","GTM RURAL  ENTERPRISES LIMITED",31/10/2022 00:00:00,27/11/2022 00:00:00,"P08-2023"
"P&V","SOUTH AREA RANGERS","PREMISES RELATED EXPENDITURE","HABITAT MANAGEMENT WORKS","2149","P119671-SERVICE-Ditch Works at Walthamstow Marsh",27/11/2022 00:00:00,"269136",1100,"BU0090","BUSH WHEELER SERVICES LTD",31/10/2022 00:00:00,27/11/2022 00:00:00,"P08-2023"
"P&V","ABBEY GARDENS","PREMISES RELATED EXPENDITURE","HABITAT MANAGEMENT WORKS","2149","P119653-SERVICE-Remove Typha from Abbey Fishponds",27/11/2022 00:00:00,"268871",2700,"BU0090","BUSH WHEELER SERVICES LTD",31/10/2022 00:00:00,27/11/2022 00:00:00,"P08-2023"
"P&V","ABBEY GARDENS","PREMISES RELATED EXPENDITURE","HABITAT MANAGEMENT WORKS","2149","P119653-SERVICE-Slough Ditches at Cornmill Meadows Dragonfly",27/11/2022 00:00:00,"268871",2100,"BU0090","BUSH WHEELER SERVICES LTD",31/10/2022 00:00:00,27/11/2022 00:00:00,"P08-2023"
"P&V","RIVER LEE COUNTRY PARK","PREMISES RELATED EXPENDITURE","HABITAT MANAGEMENT WORKS","2149","P119033-SERVICE-Crassula Treatment at Hall Marsh Scrape",14/11/2022 00:00:00,"268595",525,"GO0044","S.H.GOSS & CO LTD",31/10/2022 00:00:00,27/11/2022 00:00:00,"P08-2023"
"P&V","RIVER LEE COUNTRY PARK","PREMISES RELATED EXPENDITURE","HABITAT MANAGEMENT WORKS","2149","P119037-SERVICE-Reed Cutting at Seventy Acres",23/11/2022 00:00:00,"268961",950,"AQ0237","AQUACLEAR WATER MANAGEMENT",31/10/2022 00:00:00,27/11/2022 00:00:00,"P08-2023"
,"LEE VALLEY MARINA SPRINGFIELD","PREMISES RELATED EXPENDITURE","GENERAL WASTE","2211","P119525-SERVICE-General waste & recyling",14/11/2022 00:00:00,"268522",1334.46,"CL0037","VEOLIA ES (UK) LTD",31/10/2022 00:00:00,27/11/2022 00:00:00,"P08-2023"
,"LEE VALLEY MARINA SPRINGFIELD","PREMISES RELATED EXPENDITURE","GENERAL WASTE","2211","P119920-SERVICE-12 yard skip",15/11/2022 00:00:00,"268581",326,"OD0010","O'DONOVAN (WASTE DISPOSAL) LTD",31/10/2022 00:00:00,27/11/2022 00:00:00,"P08-2023"
,"LEE VALLEY MARINA STANSTEAD","PREMISES RELATED EXPENDITURE","GENERAL WASTE","2211","P117691-SERVICE-Annual useage Veolia -bins 4 Rye and Stan Mar",14/11/2022 00:00:00,"268487",207.8,"CL0037","VEOLIA ES (UK) LTD",31/10/2022 00:00:00,27/11/2022 00:00:00,"P08-2023"
,"LEE VALLEY MARINA STANSTEAD","PREMISES RELATED EXPENDITURE","GENERAL WASTE","2211","P117691-SERVICE-Annual useage Veolia -bins 4 Rye and Stan Mar",14/11/2022 00:00:00,"268488",615.42,"CL0037","VEOLIA ES (UK) LTD",31/10/2022 00:00:00,27/11/2022 00:00:00,"P08-2023"
,"LEE VALLEY MARINA STANSTEAD","PREMISES RELATED EXPENDITURE","GENERAL WASTE","2211","P117691-SERVICE-Annual useage Veolia -bins 4 Rye and Stan Mar",14/11/2022 00:00:00,"268500",13.47,"CL0037","VEOLIA ES (UK) LTD",31/10/2022 00:00:00,27/11/2022 00:00:00,"P08-2023"
"P&V","LEE VALLEY FARM HOLYFIELDHALL","PREMISES RELATED EXPENDITURE","GENERAL WASTE","2211","P119962-SERVICE-Waste for Incineration",14/11/2022 00:00:00,"268556",380.74,"BY0049","BYWATERS (LEYTON) LTD",31/10/2022 00:00:00,27/11/2022 00:00:00,"P08-2023"
,"LEE VALLEY CAMPSITE","PREMISES RELATED EXPENDITURE","GENERAL WASTE","2211","P119821-SERVICE-October empty",15/11/2022 00:00:00,"268486",798.48,"CL0037","VEOLIA ES (UK) LTD",31/10/2022 00:00:00,27/11/2022 00:00:00,"P08-2023"
,"LEE VALLEY CARAVAN PARK","PREMISES RELATED EXPENDITURE","GENERAL WASTE","2211","P119963-SERVICE-General Waste Collection",14/11/2022 00:00:00,"268484",2186.7,"CL0037","VEOLIA ES (UK) LTD",31/10/2022 00:00:00,27/11/2022 00:00:00,"P08-2023"
"P&V","SOUTH AREA RANGERS","PREMISES RELATED EXPENDITURE","GENERAL WASTE","2211","P119545-SERVICE-Skip at WaterWorks Centre",14/11/2022 00:00:00,"268527",308,"GB0239","GBN SERVICES LTD",31/10/2022 00:00:00,27/11/2022 00:00:00,"P08-2023"
"P&V","SOUTH AREA RANGERS","PREMISES RELATED EXPENDITURE","GENERAL WASTE","2211","P119545-SERVICE-Skip at WaterWorks Centre",22/11/2022 00:00:00,"268918",181.17,"GB0239","GBN SERVICES LTD",31/10/2022 00:00:00,27/11/2022 00:00:00,"P08-2023"
"P&V","RIVER LEE COUNTRY PARK","PREMISES RELATED EXPENDITURE","GENERAL WASTE","2211","P119789-SERVICE-12yd General Rubbish Skip at Holyfield Hall F",8/11/2022 00:00:00,"268351",308,"GB0239","GBN SERVICES LTD",31/10/2022 00:00:00,27/11/2022 00:00:00,"P08-2023"
"P&V","RIVER LEE COUNTRY PARK","PREMISES RELATED EXPENDITURE","GENERAL WASTE","2211","P119789-SERVICE-12yd General Rubbish Skip at Holyfield Hall F",22/11/2022 00:00:00,"268919",308,"GB0239","GBN SERVICES LTD",31/10/2022 00:00:00,27/11/2022 00:00:00,"P08-2023"
,"LV LEISURE CENTRE CAMPSITE","PREMISES RELATED EXPENDITURE","GENERAL WASTE","2211","P120070-SERVICE-annual waste management",22/11/2022 00:00:00,"268305",650,"AC0400","ACUMEN WASTE SERVICES LTD",31/10/2022 00:00:00,27/11/2022 00:00:00,"P08-2023"
,"LV LEISURE CENTRE CAMPSITE","PREMISES RELATED EXPENDITURE","GENERAL WASTE","2211","P120001-SERVICE-Skip and compactor exchange",14/11/2022 00:00:00,"268485",406.66,"CL0037","VEOLIA ES (UK) LTD",31/10/2022 00:00:00,27/11/2022 00:00:00,"P08-2023"
,"LV LEISURE CENTRE CAMPSITE","PREMISES RELATED EXPENDITURE","GENERAL WASTE","2211","P120002-SERVICE-recycling clearance",14/11/2022 00:00:00,"268493",343.04,"BY0049","BYWATERS (LEYTON) LTD",31/10/2022 00:00:00,27/11/2022 00:00:00,"P08-2023"
"P&V","GUNPOWDER PARK","PREMISES RELATED EXPENDITURE","FLYTIPPING/WHITE GOOD DISPOSAL","2213","P120142-SERVICE-Remove Fly Tip at Hawes Lane (Building Materi",27/11/2022 00:00:00,"269101",150,"JO0019","R G JOYCE",31/10/2022 00:00:00,27/11/2022 00:00:00,"P08-2023"
"P&V","MYDDELTON HOUSE","PREMISES RELATED EXPENDITURE","RECYCLING","2214","P119281-SERVICE-Recycling",9/11/2022 00:00:00,"268528",252.42,"CA0341","F & R CAWLEY LTD",31/10/2022 00:00:00,27/11/2022 00:00:00,"P08-2023"
"P&V","MYDDELTON HOUSE","PREMISES RELATED EXPENDITURE","BUILDING SERVICE AGREEMENTS","2220","P120020-SERVICE-Myddelton House Fire Extinguisher Remedial Wo",22/11/2022 00:00:00,"268902",330.13,"TJ0009","T.J.FIRE & SECURITY",31/10/2022 00:00:00,27/11/2022 00:00:00,"P08-2023"
"P&V","MYDDELTON HOUSE","PREMISES RELATED EXPENDITURE","BUILDING SERVICE AGREEMENTS","2220","P119574-SERVICE-fire extingisher service 22",27/11/2022 00:00:00,"268905",226.13,"TJ0009","T.J.FIRE & SECURITY",31/10/2022 00:00:00,27/11/2022 00:00:00,"P08-2023"
"P&V","MYDDELTON HOUSE","PREMISES RELATED EXPENDITURE","BUILDING SERVICE AGREEMENTS","2220","P118773-SERVICE-Sanitary Services",22/11/2022 00:00:00,"268922",80.68,"PE0015","PHS GROUP PLC",31/10/2022 00:00:00,27/11/2022 00:00:00,"P08-2023"
"P&V","MYDDELTON HOUSE","PREMISES RELATED EXPENDITURE","BUILDING SERVICE AGREEMENTS","2220","P120090-SERVICE-Abercrombie Lodge Heating System Fail 2 x Cal",23/11/2022 00:00:00,"268948",220,"GI0137","R & P GIBBS LIMITED",31/10/2022 00:00:00,27/11/2022 00:00:00,"P08-2023"
"P&V","MYDDELTON HOUSE","PREMISES RELATED EXPENDITURE","BUILDING SERVICE AGREEMENTS","2220","P118773-SERVICE-Sanitary Services",27/11/2022 00:00:00,"269185",9.09,"PE0015","PHS GROUP PLC",31/10/2022 00:00:00,27/11/2022 00:00:00,"P08-2023"
"P&V","MYDDELTON HOUSE","PREMISES RELATED EXPENDITURE","BUILDING SERVICE AGREEMENTS","2220","P118773-SERVICE-Sanitary Services",27/11/2022 00:00:00,"269186",24.15,"PE0015","PHS GROUP PLC",31/10/2022 00:00:00,27/11/2022 00:00:00,"P08-2023"
"P&V","MYDDELTON HOUSE","PREMISES RELATED EXPENDITURE","BUILDING SERVICE AGREEMENTS","2220","P119876-SERVICE-Sanitary Services",27/11/2022 00:00:00,"269188",189.06,"PE0015","PHS GROUP PLC",31/10/2022 00:00:00,27/11/2022 00:00:00,"P08-2023"
"P&V","ASSET PROTECTION, MAINT, DEVEL","PREMISES RELATED EXPENDITURE","BUILDING SERVICE AGREEMENTS","2220","P119802-SERVICE-Velo CCTV Preventative maintenance",14/11/2022 00:00:00,"267543",2028.99,"ST0642","STANLEY SECURITY SOLUTIONS LTD",31/10/2022 00:00:00,27/11/2022 00:00:00,"P08-2023"
,"LEE VALLEY WATERWORKS CENTRE","PREMISES RELATED EXPENDITURE","BUILDING SERVICE AGREEMENTS","2220","P119959-SERVICE-Engineering Service to Carry out PPM - Sep 22",14/11/2022 00:00:00,"268455",569.64,"CO0199","EQUANS FM LIMITED (frmlyENGIE FM LIMITED)",31/10/2022 00:00:00,27/11/2022 00:00:00,"P08-2023"
,"LEE VALLEY WATERWORKS CENTRE","PREMISES RELATED EXPENDITURE","BUILDING SERVICE AGREEMENTS","2220","P120126-SERVICE-Engineering Service to Carry out PPM - Oct 22",27/11/2022 00:00:00,"268938",854.79,"CO0199","EQUANS FM LIMITED (frmlyENGIE FM LIMITED)",31/10/2022 00:00:00,27/11/2022 00:00:00,"P08-2023"
,"LEE VALLEY CAMPSITE","PREMISES RELATED EXPENDITURE","BUILDING SERVICE AGREEMENTS","2220","P119874-SERVICE-Annual Service Sewage pumps",8/11/2022 00:00:00,"268264",564,"CO0550","CONVERT WATER LTD",31/10/2022 00:00:00,27/11/2022 00:00:00,"P08-2023"
,"LEE VALLEY CAMPSITE","PREMISES RELATED EXPENDITURE","BUILDING SERVICE AGREEMENTS","2220","P119817-SERVICE-Modofication to Intruder Alarm",22/11/2022 00:00:00,"268736",231,"AC0012","SCUTUM SOUTH EAST LTD (frmly Active Security)",31/10/2022 00:00:00,27/11/2022 00:00:00,"P08-2023"
,"LEE VALLEY CARAVAN PARK","PREMISES RELATED EXPENDITURE","BUILDING SERVICE AGREEMENTS","2220","P119844-SERVICE-Pest Control",8/11/2022 00:00:00,"267764",70,"VE0006","VERMINATE CITY & RURAL PEST CONTROL LTD",31/10/2022 00:00:00,27/11/2022 00:00:00,"P08-2023"
"P&V","NORTH AREA RANGERS","PREMISES RELATED EXPENDITURE","BUILDING SERVICE AGREEMENTS","2220","P117223-SERVICE-Sanitary Disposal - Old Mill & Meadows Toilet",22/11/2022 00:00:00,"268923",3.74,"PE0015","PHS GROUP PLC",31/10/2022 00:00:00,27/11/2022 00:00:00,"P08-2023"
"P&V","GUNPOWDER PARK","PREMISES RELATED EXPENDITURE","BUILDING SERVICE AGREEMENTS","2220","P117222-SERVICE-Sanitary Disposal - Gunpowder Park - Public T",16/11/2022 00:00:00,"268717",14.3,"PE0015","PHS GROUP PLC",31/10/2022 00:00:00,27/11/2022 00:00:00,"P08-2023"
"P&V","GUNPOWDER PARK","PREMISES RELATED EXPENDITURE","BUILDING SERVICE AGREEMENTS","2220","P119459-SERVICE-Building Servcie Agreement - Gunpowder Park",23/11/2022 00:00:00,"268730",196.79,"CO0199","EQUANS FM LIMITED (frmlyENGIE FM LIMITED)",31/10/2022 00:00:00,27/11/2022 00:00:00,"P08-2023"
"P&V","GUNPOWDER PARK","PREMISES RELATED EXPENDITURE","BUILDING SERVICE AGREEMENTS","2220","P117221-SERVICE-Sanitary Disposal - Gunpowder Park Office Toi",27/11/2022 00:00:00,"269189",2.94,"PE0015","PHS GROUP PLC",31/10/2022 00:00:00,27/11/2022 00:00:00,"P08-2023"
"P&V","RIVER LEE COUNTRY PARK","PREMISES RELATED EXPENDITURE","BUILDING SERVICE AGREEMENTS","2220","P117224-SERVICE-Sanitary Disposal - Fishers Green Toilets",16/11/2022 00:00:00,"268718",10.07,"PE0015","PHS GROUP PLC",31/10/2022 00:00:00,27/11/2022 00:00:00,"P08-2023"
"P&V","RIVER LEE COUNTRY PARK","PREMISES RELATED EXPENDITURE","BUILDING SERVICE AGREEMENTS","2220","P117218-SERVICE-Sanitary Disposal - Ranger Base Office Holyfi",27/11/2022 00:00:00,"269187",6.47,"PE0015","PHS GROUP PLC",31/10/2022 00:00:00,27/11/2022 00:00:00,"P08-2023"
,"LV LEISURE CENTRE CAMPSITE","PREMISES RELATED EXPENDITURE","BUILDING SERVICE AGREEMENTS","2220","P120077-SERVICE-pest control",22/11/2022 00:00:00,"267766",70,"VE0006","VERMINATE CITY & RURAL PEST CONTROL LTD",31/10/2022 00:00:00,27/11/2022 00:00:00,"P08-2023"
,"LV LEISURE CENTRE CAMPSITE","PREMISES RELATED EXPENDITURE","BUILDING SERVICE AGREEMENTS","2220","P120073-SERVICE-Extinguisher refilled and pinned",22/11/2022 00:00:00,"268673",91.95,"MO0478","MORGAN FIRE PROTECTION LTD",31/10/2022 00:00:00,27/11/2022 00:00:00,"P08-2023"
,"LEE VALLEY CARAVAN PARK","PREMISES RELATED EXPENDITURE","ENGINEERING SERVICE AGREEMENTS","2221","P120148-SERVICE-Repairs on washing and drying machines",27/11/2022 00:00:00,"268945",175,"AL0434","ALLSOP & FRANCIS",31/10/2022 00:00:00,27/11/2022 00:00:00,"P08-2023"
"CEO","RESIDENTIAL ACCOMMODATION","PREMISES RELATED EXPENDITURE","BUILDING REPAIRS & MAINTENANCE","2222","P119854-SERVICE-Marshgate Cottage C02 Alarm",14/11/2022 00:00:00,"268236",65,"WA0315","PAUL WALLACE ESTATE AGENTS",31/10/2022 00:00:00,27/11/2022 00:00:00,"P08-2023"
"CEO","RESIDENTIAL ACCOMMODATION","PREMISES RELATED EXPENDITURE","BUILDING REPAIRS & MAINTENANCE","2222","P120130-SERVICE-7 Picketts Lock Lane - Rat Infestation",27/11/2022 00:00:00,"268872",90,"CA0165","CASTLES",31/10/2022 00:00:00,27/11/2022 00:00:00,"P08-2023"
"CEO","RESIDENTIAL ACCOMMODATION","PREMISES RELATED EXPENDITURE","BUILDING REPAIRS & MAINTENANCE","2222","P120132-SERVICE-Springfield Bungalow - Wasp Infestation",27/11/2022 00:00:00,"268874",70,"CA0165","CASTLES",31/10/2022 00:00:00,27/11/2022 00:00:00,"P08-2023"
"CEO","RESIDENTIAL ACCOMMODATION","PREMISES RELATED EXPENDITURE","BUILDING REPAIRS & MAINTENANCE","2222","P120134-SERVICE-1 Connaught Close - Leaks to Garage Roof",27/11/2022 00:00:00,"268876",265,"CA0165","CASTLES",31/10/2022 00:00:00,27/11/2022 00:00:00,"P08-2023"
"CEO","RESIDENTIAL ACCOMMODATION","PREMISES RELATED EXPENDITURE","BUILDING REPAIRS & MAINTENANCE","2222","KENDALL & SONS LIMITED",27/11/2022 00:00:00,"268956",160,"KE0023","KENDALL & SONS LIMITED",31/10/2022 00:00:00,27/11/2022 00:00:00,"P08-2023"
"CEO","RESIDENTIAL ACCOMMODATION","PREMISES RELATED EXPENDITURE","BUILDING REPAIRS & MAINTENANCE","2222","KENDALL & SONS LIMITED",27/11/2022 00:00:00,"268956",-435,"KE0023","KENDALL & SONS LIMITED",31/10/2022 00:00:00,27/11/2022 00:00:00,"P08-2023"
"CEO","RESIDENTIAL ACCOMMODATION","PREMISES RELATED EXPENDITURE","BUILDING REPAIRS & MAINTENANCE","2222","KENDALL & SONS LIMITED",27/11/2022 00:00:00,"268956",275,"KE0023","KENDALL & SONS LIMITED",31/10/2022 00:00:00,27/11/2022 00:00:00,"P08-2023"
"CEO","RESIDENTIAL ACCOMMODATION","PREMISES RELATED EXPENDITURE","BUILDING REPAIRS & MAINTENANCE","2222","P120139-SERVICE-Picketts Lock Lane - Replace Roof",27/11/2022 00:00:00,"268956",435,"KE0023","KENDALL & SONS LIMITED",31/10/2022 00:00:00,27/11/2022 00:00:00,"P08-2023"
"CEO","COMMERCIAL ACCOMMODATION","PREMISES RELATED EXPENDITURE","BUILDING REPAIRS & MAINTENANCE","2222","P119925-SERVICE-Gas - LV Forge",14/11/2022 00:00:00,"268373",19.61,"CA0006","CALOR GAS LIMITED",31/10/2022 00:00:00,27/11/2022 00:00:00,"P08-2023"
"CEO","COMMERCIAL ACCOMMODATION","PREMISES RELATED EXPENDITURE","BUILDING REPAIRS & MAINTENANCE","2222","P117857-SERVICE-Concrete Blocks Wharf road",27/11/2022 00:00:00,"269176",60,"NA0171","NAIVETTE SERVICES LTD",31/10/2022 00:00:00,27/11/2022 00:00:00,"P08-2023"
,"LEE VALLEY MARINA SPRINGFIELD","PREMISES RELATED EXPENDITURE","BUILDING REPAIRS & MAINTENANCE","2222","P119547-SERVICE-Additional repairs following works",8/11/2022 00:00:00,"268289",225,"BR0018","BRADSHAW ELECTRICAL LIMITED",31/10/2022 00:00:00,27/11/2022 00:00:00,"P08-2023"
,"LEE VALLEY MARINA SPRINGFIELD","PREMISES RELATED EXPENDITURE","BUILDING REPAIRS & MAINTENANCE","2222","P119547-SERVICE-To carry out work on quote QT00073",8/11/2022 00:00:00,"268316",660,"BR0018","BRADSHAW ELECTRICAL LIMITED",31/10/2022 00:00:00,27/11/2022 00:00:00,"P08-2023"
,"LEE VALLEY MARINA SPRINGFIELD","PREMISES RELATED EXPENDITURE","BUILDING REPAIRS & MAINTENANCE","2222","P119044-SERVICE-2 x adhoc maintenance visits",8/11/2022 00:00:00,"268342",185,"DE0013","DENNIS SECURITY CENTRE",31/10/2022 00:00:00,27/11/2022 00:00:00,"P08-2023"
,"LEE VALLEY MARINA STANSTEAD","PREMISES RELATED EXPENDITURE","BUILDING REPAIRS & MAINTENANCE","2222","P119511-SERVICE-fire extinguishers serivce + any ad hoc jobs",14/11/2022 00:00:00,"268261",205.39,"TJ0009","T.J.FIRE & SECURITY",31/10/2022 00:00:00,27/11/2022 00:00:00,"P08-2023"
,"LEE VALLEY MARINA STANSTEAD","PREMISES RELATED EXPENDITURE","BUILDING REPAIRS & MAINTENANCE","2222","P119511-SERVICE-additional cost from service",14/11/2022 00:00:00,"268261",625.6,"TJ0009","T.J.FIRE & SECURITY",31/10/2022 00:00:00,27/11/2022 00:00:00,"P08-2023"
,"LEE VALLEY MARINA STANSTEAD","PREMISES RELATED EXPENDITURE","BUILDING REPAIRS & MAINTENANCE","2222","P120013-SERVICE-diesel tank & pump service Oct 2022",14/11/2022 00:00:00,"268304",250,"FA0269","FAST FUEL SERVICES",31/10/2022 00:00:00,27/11/2022 00:00:00,"P08-2023"
,"LEE VALLEY MARINA STANSTEAD","PREMISES RELATED EXPENDITURE","BUILDING REPAIRS & MAINTENANCE","2222","P120153-SERVICE-shower block boiler serv & gas safety check",27/11/2022 00:00:00,"268967",75,"TA0204","TAYLOR HEATING GROUP LTD",31/10/2022 00:00:00,27/11/2022 00:00:00,"P08-2023"
,"LEE VALLEY MARINA STANSTEAD","PREMISES RELATED EXPENDITURE","BUILDING REPAIRS & MAINTENANCE","2222","P119398-SERVICE-Legionella Risk Assessment",27/11/2022 00:00:00,"269009",626.22,"KI0090","KINGFISHER ENVIRONMENTAL SERVICES LTD",31/10/2022 00:00:00,27/11/2022 00:00:00,"P08-2023"
,"LEE VALLEY WATERWORKS CENTRE","PREMISES RELATED EXPENDITURE","BUILDING REPAIRS & MAINTENANCE","2222","P119686-SERVICE-External Lighting at Waterworks Centre",27/11/2022 00:00:00,"268952",1270,"BR0018","BRADSHAW ELECTRICAL LIMITED",31/10/2022 00:00:00,27/11/2022 00:00:00,"P08-2023"
,"LEE VALLEY WATERWORKS CENTRE","PREMISES RELATED EXPENDITURE","BUILDING REPAIRS & MAINTENANCE","2222","P119686-SERVICE-PAT Test 153 Appliances - WaterWorks",27/11/2022 00:00:00,"268952",459,"BR0018","BRADSHAW ELECTRICAL LIMITED",31/10/2022 00:00:00,27/11/2022 00:00:00,"P08-2023"
,"LEE VALLEY WATERWORKS CENTRE","PREMISES RELATED EXPENDITURE","BUILDING REPAIRS & MAINTENANCE","2222","P118718-SERVICE-Legionella Remedial Works at WaterWorks Centr",23/11/2022 00:00:00,"268962",184,"CO0199","EQUANS FM LIMITED (frmlyENGIE FM LIMITED)",31/10/2022 00:00:00,27/11/2022 00:00:00,"P08-2023"
,"LEE VALLEY WATERWORKS CENTRE","PREMISES RELATED EXPENDITURE","BUILDING REPAIRS & MAINTENANCE","2222","P118855-SERVICE-Replace Hand Dryer at WaterWorks Centre",23/11/2022 00:00:00,"268963",425.18,"CO0199","EQUANS FM LIMITED (frmlyENGIE FM LIMITED)",31/10/2022 00:00:00,27/11/2022 00:00:00,"P08-2023"
"P&V","LEE VALLEY FARM HOLYFIELDHALL","PREMISES RELATED EXPENDITURE","BUILDING REPAIRS & MAINTENANCE","2222","P117595-SERVICE-Building Repairs",27/11/2022 00:00:00,"269154",60.63,"JE0011","SAINT-GOBAIN BUILDING DISTRIBUTION",31/10/2022 00:00:00,27/11/2022 00:00:00,"P08-2023"
,"LEE VALLEY CAMPSITE","PREMISES RELATED EXPENDITURE","BUILDING REPAIRS & MAINTENANCE","2222","P119885-SERVICE-Pipework for tap Staff office",23/11/2022 00:00:00,"268714",415,"SO0400","SOUTHERN GREEN SERVICES LIMITED",31/10/2022 00:00:00,27/11/2022 00:00:00,"P08-2023"
"P&V","MYDDELTON HOUSE GARDENS","PREMISES RELATED EXPENDITURE","BUILDING REPAIRS & MAINTENANCE","2222","P119575-SERVICE-fire extingisher service 22",22/11/2022 00:00:00,"268903",47.81,"TJ0009","T.J.FIRE & SECURITY",31/10/2022 00:00:00,27/11/2022 00:00:00,"P08-2023"
"P&V","RYE HOUSE GATEHOUSE","PREMISES RELATED EXPENDITURE","BUILDING REPAIRS & MAINTENANCE","2222","KENDALL & SONS LIMITED",16/11/2022 00:00:00,"268750",-698,"KE0023","KENDALL & SONS LIMITED",31/10/2022 00:00:00,27/11/2022 00:00:00,"P08-2023"
"P&V","RYE HOUSE GATEHOUSE","PREMISES RELATED EXPENDITURE","BUILDING REPAIRS & MAINTENANCE","2222","P119564-SERVICE-Various Repairs at Rye House Gatehouse",16/11/2022 00:00:00,"268750",698,"KE0023","KENDALL & SONS LIMITED",31/10/2022 00:00:00,27/11/2022 00:00:00,"P08-2023"
"P&V","RYE HOUSE GATEHOUSE","PREMISES RELATED EXPENDITURE","BUILDING REPAIRS & MAINTENANCE","2222","KENDALL & SONS LIMITED",16/11/2022 00:00:00,"268750",459,"KE0023","KENDALL & SONS LIMITED",31/10/2022 00:00:00,27/11/2022 00:00:00,"P08-2023"
"P&V","RYE HOUSE GATEHOUSE","PREMISES RELATED EXPENDITURE","BUILDING REPAIRS & MAINTENANCE","2222","KENDALL & SONS LIMITED",16/11/2022 00:00:00,"268750",239,"KE0023","KENDALL & SONS LIMITED",31/10/2022 00:00:00,27/11/2022 00:00:00,"P08-2023"
"P&V","ABBEY GARDENS","PREMISES RELATED EXPENDITURE","BUILDING REPAIRS & MAINTENANCE","2222","P119859-SERVICE-Repair Light at Waltham Abbey Gardens",27/11/2022 00:00:00,"268953",110,"BR0018","BRADSHAW ELECTRICAL LIMITED",31/10/2022 00:00:00,27/11/2022 00:00:00,"P08-2023"
"P&V","RIVER LEE COUNTRY PARK","PREMISES RELATED EXPENDITURE","BUILDING REPAIRS & MAINTENANCE","2222","P117491-SERVICE-Fire Alarm Maintenance at Wildlife Discovery",8/11/2022 00:00:00,"267881",107,"TJ0009","T.J.FIRE & SECURITY",31/10/2022 00:00:00,27/11/2022 00:00:00,"P08-2023"
"P&V","RIVER LEE COUNTRY PARK","PREMISES RELATED EXPENDITURE","BUILDING REPAIRS & MAINTENANCE","2222","P119878-SERVICE-Unblock Ladies Toilets at Fishers Green",8/11/2022 00:00:00,"268338",85,"RE0094","REACT 2 IT (BUILDING & REFURBISHMENT) LTD",31/10/2022 00:00:00,27/11/2022 00:00:00,"P08-2023"
,"LV LEISURE CENTRE CAMPSITE","PREMISES RELATED EXPENDITURE","BUILDING REPAIRS & MAINTENANCE","2222","P119988-SERVICE-Washing machine door repair",14/11/2022 00:00:00,"268066",350.72,"AL0434","ALLSOP & FRANCIS",31/10/2022 00:00:00,27/11/2022 00:00:00,"P08-2023"
,"LV LEISURE CENTRE CAMPSITE","PREMISES RELATED EXPENDITURE","BUILDING REPAIRS & MAINTENANCE","2222","P119995-SERVICE-Dryer tokens",14/11/2022 00:00:00,"268139",74.4,"AL0434","ALLSOP & FRANCIS",31/10/2022 00:00:00,27/11/2022 00:00:00,"P08-2023"
,"LV LEISURE CENTRE CAMPSITE","PREMISES RELATED EXPENDITURE","BUILDING REPAIRS & MAINTENANCE","2222","P119535-SERVICE-new pump",14/11/2022 00:00:00,"268158",3392,"CO0550","CONVERT WATER LTD",31/10/2022 00:00:00,27/11/2022 00:00:00,"P08-2023"
,"LV LEISURE CENTRE CAMPSITE","PREMISES RELATED EXPENDITURE","BUILDING REPAIRS & MAINTENANCE","2222","P120000-SERVICE-Lights in pod 9",14/11/2022 00:00:00,"268317",170,"BR0018","BRADSHAW ELECTRICAL LIMITED",31/10/2022 00:00:00,27/11/2022 00:00:00,"P08-2023"
,"LV LEISURE CENTRE CAMPSITE","PREMISES RELATED EXPENDITURE","BUILDING REPAIRS & MAINTENANCE","2222","P120175-SERVICE-Tile ADHESIVE REMOVAL AND GROUTING",27/11/2022 00:00:00,"268934",567,"KE0023","KENDALL & SONS LIMITED",31/10/2022 00:00:00,27/11/2022 00:00:00,"P08-2023"
,"LV LEISURE CENTRE CAMPSITE","PREMISES RELATED EXPENDITURE","BUILDING REPAIRS & MAINTENANCE","2222","KENDALL & SONS LIMITED",27/11/2022 00:00:00,"268934",-567,"KE0023","KENDALL & SONS LIMITED",31/10/2022 00:00:00,27/11/2022 00:00:00,"P08-2023"
,"LV LEISURE CENTRE CAMPSITE","PREMISES RELATED EXPENDITURE","BUILDING REPAIRS & MAINTENANCE","2222","KENDALL & SONS LIMITED",27/11/2022 00:00:00,"268934",112,"KE0023","KENDALL & SONS LIMITED",31/10/2022 00:00:00,27/11/2022 00:00:00,"P08-2023"
,"LV LEISURE CENTRE CAMPSITE","PREMISES RELATED EXPENDITURE","BUILDING REPAIRS & MAINTENANCE","2222","KENDALL & SONS LIMITED",27/11/2022 00:00:00,"268934",455,"KE0023","KENDALL & SONS LIMITED",31/10/2022 00:00:00,27/11/2022 00:00:00,"P08-2023"
,"LV LEISURE CENTRE CAMPSITE","PREMISES RELATED EXPENDITURE","BUILDING REPAIRS & MAINTENANCE","2222","P119993-SERVICE-washing machine lock",27/11/2022 00:00:00,"268944",278.21,"AL0434","ALLSOP & FRANCIS",31/10/2022 00:00:00,27/11/2022 00:00:00,"P08-2023"
,"LV LEISURE CENTRE CAMPSITE","PREMISES RELATED EXPENDITURE","BUILDING REPAIRS & MAINTENANCE","2222","P120176-SERVICE-Smoke alarms and batteries",27/11/2022 00:00:00,"268947",138.79,"SC0057","SCREWFIX DIRECT LTD",31/10/2022 00:00:00,27/11/2022 00:00:00,"P08-2023"
,"LV LEISURE CENTRE CAMPSITE","PREMISES RELATED EXPENDITURE","BUILDING REPAIRS & MAINTENANCE","2222","P120177-SERVICE-Electrics to the laundry room",27/11/2022 00:00:00,"268985",200,"BR0018","BRADSHAW ELECTRICAL LIMITED",31/10/2022 00:00:00,27/11/2022 00:00:00,"P08-2023"
"CEO","LVLC SERVICE CHARGE","PREMISES RELATED EXPENDITURE","BUILDING REPAIRS & MAINTENANCE","2222","P117653-SERVICE-Contract Sweep",14/11/2022 00:00:00,"267899",150,"SE0374","SELECT SWEEPER HIRE LTD",31/10/2022 00:00:00,27/11/2022 00:00:00,"P08-2023"
"CEO","LVLC SERVICE CHARGE","PREMISES RELATED EXPENDITURE","BUILDING REPAIRS & MAINTENANCE","2222","P117653-SERVICE-Contract Sweep",14/11/2022 00:00:00,"268100",150,"SE0374","SELECT SWEEPER HIRE LTD",31/10/2022 00:00:00,27/11/2022 00:00:00,"P08-2023"
"CEO","LVLC SERVICE CHARGE","PREMISES RELATED EXPENDITURE","BUILDING REPAIRS & MAINTENANCE","2222","P117653-SERVICE-Contract Sweep",14/11/2022 00:00:00,"268374",150,"SE0374","SELECT SWEEPER HIRE LTD",31/10/2022 00:00:00,27/11/2022 00:00:00,"P08-2023"
"CEO","LVLC SERVICE CHARGE","PREMISES RELATED EXPENDITURE","BUILDING REPAIRS & MAINTENANCE","2222","P120138-SERVICE-Picketts Lock Cinema Carpark Gullies",27/11/2022 00:00:00,"268955",790,"KE0023","KENDALL & SONS LIMITED",31/10/2022 00:00:00,27/11/2022 00:00:00,"P08-2023"
"CEO","LVLC SERVICE CHARGE","PREMISES RELATED EXPENDITURE","BUILDING REPAIRS & MAINTENANCE","2222","KENDALL & SONS LIMITED",27/11/2022 00:00:00,"268955",-790,"KE0023","KENDALL & SONS LIMITED",31/10/2022 00:00:00,27/11/2022 00:00:00,"P08-2023"
"CEO","LVLC SERVICE CHARGE","PREMISES RELATED EXPENDITURE","BUILDING REPAIRS & MAINTENANCE","2222","KENDALL & SONS LIMITED",27/11/2022 00:00:00,"268955",580,"KE0023","KENDALL & SONS LIMITED",31/10/2022 00:00:00,27/11/2022 00:00:00,"P08-2023"
"CEO","LVLC SERVICE CHARGE","PREMISES RELATED EXPENDITURE","BUILDING REPAIRS & MAINTENANCE","2222","KENDALL & SONS LIMITED",27/11/2022 00:00:00,"268955",210,"KE0023","KENDALL & SONS LIMITED",31/10/2022 00:00:00,27/11/2022 00:00:00,"P08-2023"
"P&V","NORTH AREA RANGERS","SUPPLIES AND SERVICES","FENCES/GATES ETC.","2231","P116823-SERVICE-Fence/Bridge Works - Silvermeade",8/11/2022 00:00:00,"268313",7275,"MA0188","MAYDENCROFT LTD",31/10/2022 00:00:00,27/11/2022 00:00:00,"P08-2023"
"P&V","NORTH AREA RANGERS","SUPPLIES AND SERVICES","FENCES/GATES ETC.","2231","P116823-SERVICE-Fence/Bridge Works - Silvermeade",8/11/2022 00:00:00,"268313",2360,"MA0188","MAYDENCROFT LTD",31/10/2022 00:00:00,27/11/2022 00:00:00,"P08-2023"
"P&V","SOUTH AREA RANGERS","SUPPLIES AND SERVICES","FENCES/GATES ETC.","2231","P119517-SERVICE-Remove Fence at Wild Marsh West Tottenham Mar",8/11/2022 00:00:00,"267651",500,"JO0019","R G JOYCE",31/10/2022 00:00:00,27/11/2022 00:00:00,"P08-2023"
"P&V","SOUTH AREA RANGERS","SUPPLIES AND SERVICES","FENCES/GATES ETC.","2231","P118229-SERVICE-Fencing at Wathamstow Marsh",9/11/2022 00:00:00,"268161",800,"JO0019","R G JOYCE",31/10/2022 00:00:00,27/11/2022 00:00:00,"P08-2023"
"P&V","SOUTH AREA RANGERS","SUPPLIES AND SERVICES","FENCES/GATES ETC.","2231","P119773-SERVICE-Fence Repair Waterworks Nature Reserve Field",8/11/2022 00:00:00,"268462",250,"JO0019","R G JOYCE",31/10/2022 00:00:00,27/11/2022 00:00:00,"P08-2023"
"CEO","RESIDENTIAL ACCOMMODATION","EXPENDITURE FROM REPAIRS FUND","EXPENDITURE FROM REPAIRS FUND","2240","P120131-SERVICE-9 Picketts Lock Lane - Oven Installation",27/11/2022 00:00:00,"268873",412.5,"CA0165","CASTLES",31/10/2022 00:00:00,27/11/2022 00:00:00,"P08-2023"
"CEO","RESIDENTIAL ACCOMMODATION","EXPENDITURE FROM REPAIRS FUND","EXPENDITURE FROM REPAIRS FUND","2240","P120141-SERVICE-7 Picketts Lock Lane - Pagoda",27/11/2022 00:00:00,"268958",570,"KE0023","KENDALL & SONS LIMITED",31/10/2022 00:00:00,27/11/2022 00:00:00,"P08-2023"
"CEO","RESIDENTIAL ACCOMMODATION","EXPENDITURE FROM REPAIRS FUND","EXPENDITURE FROM REPAIRS FUND","2240","KENDALL & SONS LIMITED",27/11/2022 00:00:00,"268958",395,"KE0023","KENDALL & SONS LIMITED",31/10/2022 00:00:00,27/11/2022 00:00:00,"P08-2023"
"CEO","RESIDENTIAL ACCOMMODATION","EXPENDITURE FROM REPAIRS FUND","EXPENDITURE FROM REPAIRS FUND","2240","KENDALL & SONS LIMITED",27/11/2022 00:00:00,"268958",175,"KE0023","KENDALL & SONS LIMITED",31/10/2022 00:00:00,27/11/2022 00:00:00,"P08-2023"
"CEO","RESIDENTIAL ACCOMMODATION","EXPENDITURE FROM REPAIRS FUND","EXPENDITURE FROM REPAIRS FUND","2240","KENDALL & SONS LIMITED",27/11/2022 00:00:00,"268958",-570,"KE0023","KENDALL & SONS LIMITED",31/10/2022 00:00:00,27/11/2022 00:00:00,"P08-2023"
"CEO","COMMERCIAL ACCOMMODATION","PREMISES RELATED EXPENDITURE","EAST HALE ALLOTMENTS","2261","P117652-SERVICE-Allotment Bins",14/11/2022 00:00:00,"268521",126.54,"CL0037","VEOLIA ES (UK) LTD",31/10/2022 00:00:00,27/11/2022 00:00:00,"P08-2023"
"CEO","COMMERCIAL ACCOMMODATION","PREMISES RELATED EXPENDITURE","EAST HALE ALLOTMENTS","2261","KENDALL & SONS LIMITED",27/11/2022 00:00:00,"268957",90,"KE0023","KENDALL & SONS LIMITED",31/10/2022 00:00:00,27/11/2022 00:00:00,"P08-2023"
"CEO","COMMERCIAL ACCOMMODATION","PREMISES RELATED EXPENDITURE","EAST HALE ALLOTMENTS","2261","KENDALL & SONS LIMITED",27/11/2022 00:00:00,"268957",-265,"KE0023","KENDALL & SONS LIMITED",31/10/2022 00:00:00,27/11/2022 00:00:00,"P08-2023"
"CEO","COMMERCIAL ACCOMMODATION","PREMISES RELATED EXPENDITURE","EAST HALE ALLOTMENTS","2261","P120140-SERVICE-East Hale Allotment Gate",27/11/2022 00:00:00,"268957",265,"KE0023","KENDALL & SONS LIMITED",31/10/2022 00:00:00,27/11/2022 00:00:00,"P08-2023"
"CEO","COMMERCIAL ACCOMMODATION","PREMISES RELATED EXPENDITURE","EAST HALE ALLOTMENTS","2261","KENDALL & SONS LIMITED",27/11/2022 00:00:00,"268957",175,"KE0023","KENDALL & SONS LIMITED",31/10/2022 00:00:00,27/11/2022 00:00:00,"P08-2023"
"CEO","RESIDENTIAL ACCOMMODATION","PREMISES RELATED EXPENDITURE","ENERGY COSTS (ELECTRICITY)","2332","JUNE - JLUY 2022 FINAL BILL",14/11/2022 00:00:00,"268702",155.08,"BU0646","BULB ENERGY LIMITED",31/10/2022 00:00:00,27/11/2022 00:00:00,"P08-2023"
"CEO","COMMERCIAL ACCOMMODATION","PREMISES RELATED EXPENDITURE","ENERGY COSTS (ELECTRICITY)","2332","01/10/22-16/11/22",22/11/2022 00:00:00,"268881",24.11,"EO0398","E-ON NEXT ENERGY LTD",31/10/2022 00:00:00,27/11/2022 00:00:00,"P08-2023"
"CEO","COMMERCIAL ACCOMMODATION","PREMISES RELATED EXPENDITURE","ENERGY COSTS (ELECTRICITY)","2332","E-ON NEXT ENERGY LTD",23/11/2022 00:00:00,"268882",14.27,"EO0398","E-ON NEXT ENERGY LTD",31/10/2022 00:00:00,27/11/2022 00:00:00,"P08-2023"
"CEO","COMMERCIAL ACCOMMODATION","PREMISES RELATED EXPENDITURE","ENERGY COSTS (ELECTRICITY)","2332","E-ON NEXT ENERGY LTD",23/11/2022 00:00:00,"268882",-66,"EO0398","E-ON NEXT ENERGY LTD",31/10/2022 00:00:00,27/11/2022 00:00:00,"P08-2023"
"CEO","COMMERCIAL ACCOMMODATION","PREMISES RELATED EXPENDITURE","ENERGY COSTS (ELECTRICITY)","2332","E-ON NEXT ENERGY LTD",23/11/2022 00:00:00,"268912",31.68,"EO0398","E-ON NEXT ENERGY LTD",31/10/2022 00:00:00,27/11/2022 00:00:00,"P08-2023"
"CEO","COMMERCIAL ACCOMMODATION","PREMISES RELATED EXPENDITURE","ENERGY COSTS (ELECTRICITY)","2332","E-ON NEXT ENERGY LTD",23/11/2022 00:00:00,"268913",70.8,"EO0398","E-ON NEXT ENERGY LTD",31/10/2022 00:00:00,27/11/2022 00:00:00,"P08-2023"
,"LEE VALLEY WATERWORKS CENTRE","PREMISES RELATED EXPENDITURE","ENERGY COSTS (ELECTRICITY)","2332","OCTOBER 2022",27/11/2022 00:00:00,"269162",778.57,"NP0123","NPOWER LIMITED",31/10/2022 00:00:00,27/11/2022 00:00:00,"P08-2023"
"P&V","LEE VALLEY FARM HOLYFIELDHALL","PREMISES RELATED EXPENDITURE","ENERGY COSTS (ELECTRICITY)","2332","10/10/22-06/11/22",22/11/2022 00:00:00,"268754",41.82,"BR0030","BRITISH GAS TRADING LTD",31/10/2022 00:00:00,27/11/2022 00:00:00,"P08-2023"
"P&V","CAR PARK INCOME","PREMISES RELATED EXPENDITURE","ENERGY COSTS (ELECTRICITY)","2332","OCTOBER 2022",27/11/2022 00:00:00,"269163",46.98,"NP0123","NPOWER LIMITED",31/10/2022 00:00:00,27/11/2022 00:00:00,"P08-2023"
"P&V","CAR PARK INCOME","PREMISES RELATED EXPENDITURE","ENERGY COSTS (ELECTRICITY)","2332","OCTOBER 2022",27/11/2022 00:00:00,"269164",32.56,"NP0123","NPOWER LIMITED",31/10/2022 00:00:00,27/11/2022 00:00:00,"P08-2023"
,"LEE VALLEY VELOPARK","PREMISES RELATED EXPENDITURE","ENERGY COSTS (ELECTRICITY)","2332","REF 1055540 APRIL 2022",9/11/2022 00:00:00,"266041",104.25,"KE0007","KENT COUNTY COUNCIL (KCS)",31/10/2022 00:00:00,27/11/2022 00:00:00,"P08-2023"
,"LEE VALLEY VELOPARK","PREMISES RELATED EXPENDITURE","ENERGY COSTS (ELECTRICITY)","2332","REF 1055540 MAY 2022",9/11/2022 00:00:00,"266042",92.69,"KE0007","KENT COUNTY COUNCIL (KCS)",31/10/2022 00:00:00,27/11/2022 00:00:00,"P08-2023"
,"LEE VALLEY VELOPARK","PREMISES RELATED EXPENDITURE","ENERGY COSTS (ELECTRICITY)","2332","REF 1055540 JUNE 2022",9/11/2022 00:00:00,"266043",82.17,"KE0007","KENT COUNTY COUNCIL (KCS)",31/10/2022 00:00:00,27/11/2022 00:00:00,"P08-2023"
,"LEE VALLEY VELOPARK","PREMISES RELATED EXPENDITURE","ENERGY COSTS (ELECTRICITY)","2332","REF 1055541 APRIL 2022",9/11/2022 00:00:00,"266044",74.6,"KE0007","KENT COUNTY COUNCIL (KCS)",31/10/2022 00:00:00,27/11/2022 00:00:00,"P08-2023"
,"LEE VALLEY VELOPARK","PREMISES RELATED EXPENDITURE","ENERGY COSTS (ELECTRICITY)","2332","REF 1055541 APRIL 2022",9/11/2022 00:00:00,"266044",0.99,"KE0007","KENT COUNTY COUNCIL (KCS)",31/10/2022 00:00:00,27/11/2022 00:00:00,"P08-2023"
,"LEE VALLEY VELOPARK","PREMISES RELATED EXPENDITURE","ENERGY COSTS (ELECTRICITY)","2332","REF 1055541 MAY 2022",9/11/2022 00:00:00,"266045",73.35,"KE0007","KENT COUNTY COUNCIL (KCS)",31/10/2022 00:00:00,27/11/2022 00:00:00,"P08-2023"
,"LEE VALLEY VELOPARK","PREMISES RELATED EXPENDITURE","ENERGY COSTS (ELECTRICITY)","2332","REF 1055541 MAY 2022",9/11/2022 00:00:00,"266045",1.02,"KE0007","KENT COUNTY COUNCIL (KCS)",31/10/2022 00:00:00,27/11/2022 00:00:00,"P08-2023"
,"LEE VALLEY VELOPARK","PREMISES RELATED EXPENDITURE","ENERGY COSTS (ELECTRICITY)","2332","REF 1055541 JUNE 2022",9/11/2022 00:00:00,"266046",69.06,"KE0007","KENT COUNTY COUNCIL (KCS)",31/10/2022 00:00:00,27/11/2022 00:00:00,"P08-2023"
,"LEE VALLEY VELOPARK","PREMISES RELATED EXPENDITURE","ENERGY COSTS (ELECTRICITY)","2332","REF 1055541 JUNE 2022",9/11/2022 00:00:00,"266046",0.99,"KE0007","KENT COUNTY COUNCIL (KCS)",31/10/2022 00:00:00,27/11/2022 00:00:00,"P08-2023"
,"LEE VALLEY VELOPARK","PREMISES RELATED EXPENDITURE","ENERGY COSTS (ELECTRICITY)","2332","REF 1055542 APRIL 2022",9/11/2022 00:00:00,"266047",40.68,"KE0007","KENT COUNTY COUNCIL (KCS)",31/10/2022 00:00:00,27/11/2022 00:00:00,"P08-2023"
,"LEE VALLEY VELOPARK","PREMISES RELATED EXPENDITURE","ENERGY COSTS (ELECTRICITY)","2332","REF 1055542 MAY 2022",9/11/2022 00:00:00,"266048",42.04,"KE0007","KENT COUNTY COUNCIL (KCS)",31/10/2022 00:00:00,27/11/2022 00:00:00,"P08-2023"
,"LEE VALLEY VELOPARK","PREMISES RELATED EXPENDITURE","ENERGY COSTS (ELECTRICITY)","2332","REF 1055542 JUNE 2022",9/11/2022 00:00:00,"266049",40.68,"KE0007","KENT COUNTY COUNCIL (KCS)",31/10/2022 00:00:00,27/11/2022 00:00:00,"P08-2023"
,"LEE VALLEY VELOPARK","PREMISES RELATED EXPENDITURE","ENERGY COSTS (ELECTRICITY)","2332","REF 1055539 APRIL-JUNE 2022",9/11/2022 00:00:00,"266050",103.56,"KE0007","KENT COUNTY COUNCIL (KCS)",31/10/2022 00:00:00,27/11/2022 00:00:00,"P08-2023"
,"LEE VALLEY VELOPARK","PREMISES RELATED EXPENDITURE","ENERGY COSTS (ELECTRICITY)","2332","REF 1055536 MARCH-MAY 2022",9/11/2022 00:00:00,"266051",913.43,"KE0007","KENT COUNTY COUNCIL (KCS)",31/10/2022 00:00:00,27/11/2022 00:00:00,"P08-2023"
,"LEE VALLEY VELOPARK","PREMISES RELATED EXPENDITURE","ENERGY COSTS (ELECTRICITY)","2332","REF 1055537 MARCH-MAY 2022",9/11/2022 00:00:00,"266092",162.39,"KE0007","KENT COUNTY COUNCIL (KCS)",31/10/2022 00:00:00,27/11/2022 00:00:00,"P08-2023"
,"LEE VALLEY VELOPARK","PREMISES RELATED EXPENDITURE","ENERGY COSTS (ELECTRICITY)","2332","REF 1055538 MARCH-MAY 2022",9/11/2022 00:00:00,"266093",192.22,"KE0007","KENT COUNTY COUNCIL (KCS)",31/10/2022 00:00:00,27/11/2022 00:00:00,"P08-2023"
,"LEE VALLEY VELOPARK","PREMISES RELATED EXPENDITURE","ENERGY COSTS (ELECTRICITY)","2332","REF 1055540 JULY 2022",9/11/2022 00:00:00,"266094",86.64,"KE0007","KENT COUNTY COUNCIL (KCS)",31/10/2022 00:00:00,27/11/2022 00:00:00,"P08-2023"
,"LEE VALLEY VELOPARK","PREMISES RELATED EXPENDITURE","ENERGY COSTS (ELECTRICITY)","2332","REF 1055541 JULY 2022",9/11/2022 00:00:00,"266095",1.02,"KE0007","KENT COUNTY COUNCIL (KCS)",31/10/2022 00:00:00,27/11/2022 00:00:00,"P08-2023"
,"LEE VALLEY VELOPARK","PREMISES RELATED EXPENDITURE","ENERGY COSTS (ELECTRICITY)","2332","REF 1055541 JULY 2022",9/11/2022 00:00:00,"266095",72.21,"KE0007","KENT COUNTY COUNCIL (KCS)",31/10/2022 00:00:00,27/11/2022 00:00:00,"P08-2023"
,"LEE VALLEY VELOPARK","PREMISES RELATED EXPENDITURE","ENERGY COSTS (ELECTRICITY)","2332","REF 1055542 JULY 2022",9/11/2022 00:00:00,"266096",42.04,"KE0007","KENT COUNTY COUNCIL (KCS)",31/10/2022 00:00:00,27/11/2022 00:00:00,"P08-2023"
,"LV LEISURE CENTRE CAMPSITE","PREMISES RELATED EXPENDITURE","ENERGY COSTS (ELECTRICITY)","2332","JULY 2022",27/11/2022 00:00:00,"269160",4603.89,"NP0123","NPOWER LIMITED",31/10/2022 00:00:00,27/11/2022 00:00:00,"P08-2023"
,"LEE VALLEY CARAVAN PARK","PREMISES RELATED EXPENDITURE","ENERGY COSTS (GAS)","2333","P120016-SERVICE-Gas delivery",14/11/2022 00:00:00,"268517",6681.14,"AV0327","AVANTI GAS LIMITED",31/10/2022 00:00:00,27/11/2022 00:00:00,"P08-2023"
,"LEE VALLEY MARINA STANSTEAD","PREMISES RELATED EXPENDITURE","RENT (EXTERNAL)","2442","25/12/22-24/03/23",22/11/2022 00:00:00,"268769",11875,"BR0036","CANAL & RIVER TRUST",31/10/2022 00:00:00,27/11/2022 00:00:00,"P08-2023"
"P&V","LEE VALLEY FARM HOLYFIELDHALL","PREMISES RELATED EXPENDITURE","COUNCIL TAX","2445","EPPING FOREST DISTRICT COUNCIL",14/11/2022 00:00:00,"268697",-90.35,"EP0025","EPPING FOREST DISTRICT COUNCIL",31/10/2022 00:00:00,27/11/2022 00:00:00,"P08-2023"
"CEO","RESIDENTIAL ACCOMMODATION","PREMISES RELATED EXPENDITURE","PROPERTY MANAGEMT/LETTING FEES","2447","P119852-SERVICE-Landlord Fees - 7 Picketts Lock Lane",14/11/2022 00:00:00,"268059",1440,"CA0165","CASTLES",31/10/2022 00:00:00,27/11/2022 00:00:00,"P08-2023"
"CEO","RESIDENTIAL ACCOMMODATION","PREMISES RELATED EXPENDITURE","PROPERTY MANAGEMT/LETTING FEES","2447","P119853-SERVICE-Landlord Warranty - 7 Picketts Lock Lane",14/11/2022 00:00:00,"268060",244.8,"CA0165","CASTLES",31/10/2022 00:00:00,27/11/2022 00:00:00,"P08-2023"
"CEO","RESIDENTIAL ACCOMMODATION","PREMISES RELATED EXPENDITURE","PROPERTY MANAGEMT/LETTING FEES","2447","P120137-SERVICE-Marshgate Cottage - 6 Month Management Fee Ad",27/11/2022 00:00:00,"268921",360,"WA0315","PAUL WALLACE ESTATE AGENTS",31/10/2022 00:00:00,27/11/2022 00:00:00,"P08-2023"
"P&V","LEE VALLEY FARM HOLYFIELDHALL","PREMISES RELATED EXPENDITURE","WATER","2555","01/04/22-31/03/23",27/11/2022 00:00:00,"269157",222,"EN0024","ENVIRONMENT AGENCY",31/10/2022 00:00:00,27/11/2022 00:00:00,"P08-2023"
,"LEE VALLEY CARAVAN PARK","PREMISES RELATED EXPENDITURE","WATER","2555","OCTOBER 2022",8/11/2022 00:00:00,"268491",1747.32,"CA0625","CASTLE WATER LIMITED",31/10/2022 00:00:00,27/11/2022 00:00:00,"P08-2023"
,"LEE VALLEY CARAVAN PARK","PREMISES RELATED EXPENDITURE","WATER","2555","OCTOBER 2022",8/11/2022 00:00:00,"268491",2654.86,"CA0625","CASTLE WATER LIMITED",31/10/2022 00:00:00,27/11/2022 00:00:00,"P08-2023"
"P&V","SOUTH AREA RANGERS","PREMISES RELATED EXPENDITURE","WATER","2555","01/04/22-31/03/23",27/11/2022 00:00:00,"269159",513,"EN0024","ENVIRONMENT AGENCY",31/10/2022 00:00:00,27/11/2022 00:00:00,"P08-2023"
,"LV LEISURE CENTRE CAMPSITE","PREMISES RELATED EXPENDITURE","WATER","2555","CASTLE WATER LIMITED",9/11/2022 00:00:00,"268115",92.37,"CA0625","CASTLE WATER LIMITED",31/10/2022 00:00:00,27/11/2022 00:00:00,"P08-2023"
,"LV LEISURE CENTRE CAMPSITE","PREMISES RELATED EXPENDITURE","WATER","2555","CASTLE WATER LIMITED",9/11/2022 00:00:00,"268115",393.05,"CA0625","CASTLE WATER LIMITED",31/10/2022 00:00:00,27/11/2022 00:00:00,"P08-2023"
,"LV LEISURE CENTRE CAMPSITE","PREMISES RELATED EXPENDITURE","WATER","2555","OCTOBER 2022",9/11/2022 00:00:00,"268244",34.56,"CA0625","CASTLE WATER LIMITED",31/10/2022 00:00:00,27/11/2022 00:00:00,"P08-2023"
,"LV LEISURE CENTRE CAMPSITE","PREMISES RELATED EXPENDITURE","WATER","2555","OCTOBER 2022",9/11/2022 00:00:00,"268244",35.76,"CA0625","CASTLE WATER LIMITED",31/10/2022 00:00:00,27/11/2022 00:00:00,"P08-2023"
"P&V","MYDDELTON HOUSE","PREMISES RELATED EXPENDITURE","CLEANING & DOMESTIC SUPPLIES","2666","P119737-SERVICE-2 x 565002 Banqueting Rolls White 1.22m x100m",8/11/2022 00:00:00,"268516",37.64,"HE0088","HERTFORDSHIRE SUPPLIES",31/10/2022 00:00:00,27/11/2022 00:00:00,"P08-2023"
,"LEE VALLEY MARINA SPRINGFIELD","PREMISES RELATED EXPENDITURE","CLEANING & DOMESTIC SUPPLIES","2666","P119940-SERVICE-Site cleaning Oct,Nov,Dec,Jan",8/11/2022 00:00:00,"268492",972.31,"MA0015","MAYFAIR CLEANING COMPANY LIMITED",31/10/2022 00:00:00,27/11/2022 00:00:00,"P08-2023"
,"LEE VALLEY MARINA SPRINGFIELD","PREMISES RELATED EXPENDITURE","CLEANING & DOMESTIC SUPPLIES","2666","P117560-SERVICE-Sanitary Disposal/Dust Mats,Eco Shield",22/11/2022 00:00:00,"268924",205.76,"PE0015","PHS GROUP PLC",31/10/2022 00:00:00,27/11/2022 00:00:00,"P08-2023"
,"LEE VALLEY CAMPSITE","PREMISES RELATED EXPENDITURE","CLEANING & DOMESTIC SUPPLIES","2666","P119601-SERVICE-toilet rolls",15/11/2022 00:00:00,"268276",26.54,"HY0043","HYGIENE SYSTEMS LTD",31/10/2022 00:00:00,27/11/2022 00:00:00,"P08-2023"
,"LEE VALLEY CAMPSITE","PREMISES RELATED EXPENDITURE","CLEANING & DOMESTIC SUPPLIES","2666","P119601-SERVICE-urinal mats",15/11/2022 00:00:00,"268276",53.28,"HY0043","HYGIENE SYSTEMS LTD",31/10/2022 00:00:00,27/11/2022 00:00:00,"P08-2023"
,"LEE VALLEY CAMPSITE","PREMISES RELATED EXPENDITURE","CLEANING & DOMESTIC SUPPLIES","2666","P119601-SERVICE-STC Toilet descaler",15/11/2022 00:00:00,"268276",6.54,"HY0043","HYGIENE SYSTEMS LTD",31/10/2022 00:00:00,27/11/2022 00:00:00,"P08-2023"
,"LEE VALLEY CAMPSITE","PREMISES RELATED EXPENDITURE","CLEANING & DOMESTIC SUPPLIES","2666","P119601-SERVICE-bleach x3",15/11/2022 00:00:00,"268276",22.27,"HY0043","HYGIENE SYSTEMS LTD",31/10/2022 00:00:00,27/11/2022 00:00:00,"P08-2023"
,"LEE VALLEY CAMPSITE","PREMISES RELATED EXPENDITURE","CLEANING & DOMESTIC SUPPLIES","2666","P119601-SERVICE-bleach x3",22/11/2022 00:00:00,"268893",2.52,"HY0043","HYGIENE SYSTEMS LTD",31/10/2022 00:00:00,27/11/2022 00:00:00,"P08-2023"
,"LEE VALLEY CAMPSITE","PREMISES RELATED EXPENDITURE","CLEANING & DOMESTIC SUPPLIES","2666","P119601-SERVICE-urinal mats",22/11/2022 00:00:00,"268893",5.18,"HY0043","HYGIENE SYSTEMS LTD",31/10/2022 00:00:00,27/11/2022 00:00:00,"P08-2023"
,"LEE VALLEY CAMPSITE","PREMISES RELATED EXPENDITURE","CLEANING & DOMESTIC SUPPLIES","2666","P119601-SERVICE-toilet rolls",22/11/2022 00:00:00,"268893",0.1,"HY0043","HYGIENE SYSTEMS LTD",31/10/2022 00:00:00,27/11/2022 00:00:00,"P08-2023"
,"LEE VALLEY CAMPSITE","PREMISES RELATED EXPENDITURE","CLEANING & DOMESTIC SUPPLIES","2666","P119601-SERVICE-spray & wipe",22/11/2022 00:00:00,"268893",18.84,"HY0043","HYGIENE SYSTEMS LTD",31/10/2022 00:00:00,27/11/2022 00:00:00,"P08-2023"
,"LEE VALLEY CARAVAN PARK","PREMISES RELATED EXPENDITURE","CLEANING & DOMESTIC SUPPLIES","2666","P120033-SERVICE-Cleaning Products",15/11/2022 00:00:00,"268548",84.84,"HY0043","HYGIENE SYSTEMS LTD",31/10/2022 00:00:00,27/11/2022 00:00:00,"P08-2023"
,"LEE VALLEY CARAVAN PARK","PREMISES RELATED EXPENDITURE","CLEANING & DOMESTIC SUPPLIES","2666","P120068-SERVICE-Cleaning Supplies",27/11/2022 00:00:00,"269114",602.01,"HY0043","HYGIENE SYSTEMS LTD",31/10/2022 00:00:00,27/11/2022 00:00:00,"P08-2023"
"P&V","RIVER LEE COUNTRY PARK","PREMISES RELATED EXPENDITURE","CLEANING & DOMESTIC SUPPLIES","2666","P119663-SERVICE-1 x Carex Hand Wash 250ml 6Pk - CPD34619",8/11/2022 00:00:00,"267889",13.6,"TH0008","JKL SOLUTIONS LTD",31/10/2022 00:00:00,27/11/2022 00:00:00,"P08-2023"
"P&V","RIVER LEE COUNTRY PARK","PREMISES RELATED EXPENDITURE","CLEANING & DOMESTIC SUPPLIES","2666","P119663-SERVICE-6x Toilet Cleaner and Descaler 1 Litre - VA00",8/11/2022 00:00:00,"267889",14.58,"TH0008","JKL SOLUTIONS LTD",31/10/2022 00:00:00,27/11/2022 00:00:00,"P08-2023"
"P&V","RIVER LEE COUNTRY PARK","PREMISES RELATED EXPENDITURE","CLEANING & DOMESTIC SUPPLIES","2666","P119663-SERVICE-1x Work Surface Spray 750ml 6pk - 2W04586",8/11/2022 00:00:00,"267889",18.11,"TH0008","JKL SOLUTIONS LTD",31/10/2022 00:00:00,27/11/2022 00:00:00,"P08-2023"
"P&V","RIVER LEE COUNTRY PARK","PREMISES RELATED EXPENDITURE","CLEANING & DOMESTIC SUPPLIES","2666","P119663-SERVICE-3x Cif All Purpose Cleaner Lemon 5L - DV10623",8/11/2022 00:00:00,"267889",33.12,"TH0008","JKL SOLUTIONS LTD",31/10/2022 00:00:00,27/11/2022 00:00:00,"P08-2023"
"P&V","RIVER LEE COUNTRY PARK","PREMISES RELATED EXPENDITURE","CLEANING & DOMESTIC SUPPLIES","2666","P119663-SERVICE-1x ValueX Toilet Tissue Pk36 - 78285CP",8/11/2022 00:00:00,"267889",13.77,"TH0008","JKL SOLUTIONS LTD",31/10/2022 00:00:00,27/11/2022 00:00:00,"P08-2023"
"P&V","RIVER LEE COUNTRY PARK","PREMISES RELATED EXPENDITURE","CLEANING & DOMESTIC SUPPLIES","2666","P119663-SERVICE-1x Sponge Back Scourer Pk10 - CX00377",8/11/2022 00:00:00,"267889",3.74,"TH0008","JKL SOLUTIONS LTD",31/10/2022 00:00:00,27/11/2022 00:00:00,"P08-2023"
"P&V","RIVER LEE COUNTRY PARK","PREMISES RELATED EXPENDITURE","CLEANING & DOMESTIC SUPPLIES","2666","P119663-SERVICE-2x Microfibre Cloths Blue Pk10 - PS8511",8/11/2022 00:00:00,"267889",19.5,"TH0008","JKL SOLUTIONS LTD",31/10/2022 00:00:00,27/11/2022 00:00:00,"P08-2023"
"P&V","RIVER LEE COUNTRY PARK","PREMISES RELATED EXPENDITURE","CLEANING & DOMESTIC SUPPLIES","2666","P119663-SERVICE-1x Windolene Glass Cleaner 750ml 6Pk - RK7824",8/11/2022 00:00:00,"267889",14.97,"TH0008","JKL SOLUTIONS LTD",31/10/2022 00:00:00,27/11/2022 00:00:00,"P08-2023"
,"LV LEISURE CENTRE CAMPSITE","PREMISES RELATED EXPENDITURE","CLEANING & DOMESTIC SUPPLIES","2666","P119436-SERVICE-Cleaning supplies",9/11/2022 00:00:00,"268511",111.58,"HY0043","HYGIENE SYSTEMS LTD",31/10/2022 00:00:00,27/11/2022 00:00:00,"P08-2023"
,"LV LEISURE CENTRE CAMPSITE","PREMISES RELATED EXPENDITURE","CLEANING & DOMESTIC SUPPLIES","2666","P119515-SERVICE-Cleaning supplies",9/11/2022 00:00:00,"268513",352.52,"HY0043","HYGIENE SYSTEMS LTD",31/10/2022 00:00:00,27/11/2022 00:00:00,"P08-2023"
,"LV LEISURE CENTRE CAMPSITE","PREMISES RELATED EXPENDITURE","CLEANING & DOMESTIC SUPPLIES","2666","P120023-SERVICE-blue rolls cleaning supplies",22/11/2022 00:00:00,"268891",74.58,"HY0043","HYGIENE SYSTEMS LTD",31/10/2022 00:00:00,27/11/2022 00:00:00,"P08-2023"
,"LV LEISURE CENTRE CAMPSITE","PREMISES RELATED EXPENDITURE","CLEANING & DOMESTIC SUPPLIES","2666","P120017-SERVICE-Cleaning supplies",22/11/2022 00:00:00,"268892",243.41,"HY0043","HYGIENE SYSTEMS LTD",31/10/2022 00:00:00,27/11/2022 00:00:00,"P08-2023"
,"LV LEISURE CENTRE CAMPSITE","PREMISES RELATED EXPENDITURE","CLEANING & DOMESTIC SUPPLIES","2666","P120094-SERVICE-Oven Cleaner",27/11/2022 00:00:00,"269117",28.32,"HY0043","HYGIENE SYSTEMS LTD",31/10/2022 00:00:00,27/11/2022 00:00:00,"P08-2023"
"P&V","LEE VALLEY FARM HOLYFIELDHALL","TRANSPORT RELATED EXPENDITURE","TRANSPORT RUNNING EXPENSES","3333","P119984-SERVICE-Tractor Repair",14/11/2022 00:00:00,"268515",33.94,"CH0719","CHANDLERS (FARM EQUIPMENT) LTD",31/10/2022 00:00:00,27/11/2022 00:00:00,"P08-2023"
"P&V","LEE VALLEY FARM HOLYFIELDHALL","TRANSPORT RELATED EXPENDITURE","TRANSPORT RUNNING EXPENSES","3333","P117597-SERVICE-Hose Repairs/Sundries",14/11/2022 00:00:00,"268575",71,"HU0003","ALLIANCE AUTOMOTIVE UK CV LIMITED T/A",31/10/2022 00:00:00,27/11/2022 00:00:00,"P08-2023"
"P&V","LEE VALLEY FARM HOLYFIELDHALL","TRANSPORT RELATED EXPENDITURE","TRANSPORT RUNNING EXPENSES","3333","P120188-SERVICE-Various Parts",27/11/2022 00:00:00,"268674",348.66,"HY0447","J W HYDRAULICS LTD",31/10/2022 00:00:00,27/11/2022 00:00:00,"P08-2023"
"P&V","LEE VALLEY FARM HOLYFIELDHALL","TRANSPORT RELATED EXPENDITURE","TRANSPORT RUNNING EXPENSES","3333","P120018-SERVICE-Scraper Spares/Superior Chain",16/11/2022 00:00:00,"268733",404,"PO0086","POLLOCK FARM EQUIPMENT",31/10/2022 00:00:00,27/11/2022 00:00:00,"P08-2023"
"P&V","LEE VALLEY FARM HOLYFIELDHALL","TRANSPORT RELATED EXPENDITURE","TRANSPORT RUNNING EXPENSES","3333","P120120-SERVICE-Diesl Filters/Oil Filters/Agrmot/Cab Filter/P",27/11/2022 00:00:00,"268890",397.24,"OL0001","OLIVER AGRICULTURE LTD",31/10/2022 00:00:00,27/11/2022 00:00:00,"P08-2023"
"P&V","LEE VALLEY FARM HOLYFIELDHALL","TRANSPORT RELATED EXPENDITURE","TRANSPORT RUNNING EXPENSES","3333","P117597-SERVICE-Hose Repairs/Sundries",22/11/2022 00:00:00,"268898",65.62,"HU0003","ALLIANCE AUTOMOTIVE UK CV LIMITED T/A",31/10/2022 00:00:00,27/11/2022 00:00:00,"P08-2023"
"P&V","LEE VALLEY FARM HOLYFIELDHALL","TRANSPORT RELATED EXPENDITURE","TRANSPORT RUNNING EXPENSES","3333","P117597-SERVICE-Hose Repairs/Sundries",27/11/2022 00:00:00,"268993",142.78,"HU0003","ALLIANCE AUTOMOTIVE UK CV LIMITED T/A",31/10/2022 00:00:00,27/11/2022 00:00:00,"P08-2023"
"P&V","LEE VALLEY FARM HOLYFIELDHALL","TRANSPORT RELATED EXPENDITURE","TRANSPORT RUNNING EXPENSES","3333","P117597-SERVICE-Hose Repairs/Sundries",27/11/2022 00:00:00,"268994",-29.83,"HU0003","ALLIANCE AUTOMOTIVE UK CV LIMITED T/A",31/10/2022 00:00:00,27/11/2022 00:00:00,"P08-2023"
"P&V","LEE VALLEY FARM HOLYFIELDHALL","TRANSPORT RELATED EXPENDITURE","TRANSPORT RUNNING EXPENSES","3333","P118847-SERVICE-Parts",27/11/2022 00:00:00,"269140",1255.54,"OL0059","OLIVER LANDPOWER LIMITED",31/10/2022 00:00:00,27/11/2022 00:00:00,"P08-2023"
"P&V","LEE VALLEY FARM HOLYFIELDHALL","TRANSPORT RELATED EXPENDITURE","TRANSPORT RUNNING EXPENSES","3333","P120190-SERVICE-International 2WD Tractor",27/11/2022 00:00:00,"269141",975,"OA0130","OAKFIELDS AGRICULTURE",31/10/2022 00:00:00,27/11/2022 00:00:00,"P08-2023"
"P&V","LEE VALLEY FARM HOLYFIELDHALL","TRANSPORT RELATED EXPENDITURE","TRANSPORT RUNNING EXPENSES","3333","P118847-SERVICE-Parts",27/11/2022 00:00:00,"269165",-1255.54,"OL0059","OLIVER LANDPOWER LIMITED",31/10/2022 00:00:00,27/11/2022 00:00:00,"P08-2023"
,"LEE VALLEY MARINA STANSTEAD","TRANSPORT RELATED EXPENDITURE","VEHICLE FUEL","3335","ALLSTAR BUSINESS SOLUTIONS LTD",8/11/2022 00:00:00,"268334",233.27,"AR0035","ALLSTAR BUSINESS SOLUTIONS LTD",31/10/2022 00:00:00,27/11/2022 00:00:00,"P08-2023"
"P&V","LEE VALLEY FARM HOLYFIELDHALL","TRANSPORT RELATED EXPENDITURE","VEHICLE FUEL","3335","ALLSTAR BUSINESS SOLUTIONS LTD",8/11/2022 00:00:00,"268334",159.35,"AR0035","ALLSTAR BUSINESS SOLUTIONS LTD",31/10/2022 00:00:00,27/11/2022 00:00:00,"P08-2023"
,"LEE VALLEY CAMPSITE","TRANSPORT RELATED EXPENDITURE","VEHICLE FUEL","3335","ALLSTAR BUSINESS SOLUTIONS LTD",8/11/2022 00:00:00,"268334",58.38,"AR0035","ALLSTAR BUSINESS SOLUTIONS LTD",31/10/2022 00:00:00,27/11/2022 00:00:00,"P08-2023"
,"LEE VALLEY CARAVAN PARK","TRANSPORT RELATED EXPENDITURE","VEHICLE FUEL","3335","ALLSTAR BUSINESS SOLUTIONS LTD",8/11/2022 00:00:00,"268334",437.46,"AR0035","ALLSTAR BUSINESS SOLUTIONS LTD",31/10/2022 00:00:00,27/11/2022 00:00:00,"P08-2023"
"P&V","SOUTH AREA RANGERS","TRANSPORT RELATED EXPENDITURE","VEHICLE FUEL","3335","ALLSTAR BUSINESS SOLUTIONS LTD",8/11/2022 00:00:00,"268334",385.55,"AR0035","ALLSTAR BUSINESS SOLUTIONS LTD",31/10/2022 00:00:00,27/11/2022 00:00:00,"P08-2023"
"P&V","RIVER LEE COUNTRY PARK","TRANSPORT RELATED EXPENDITURE","VEHICLE FUEL","3335","ALLSTAR BUSINESS SOLUTIONS LTD",8/11/2022 00:00:00,"268334",463.24,"AR0035","ALLSTAR BUSINESS SOLUTIONS LTD",31/10/2022 00:00:00,27/11/2022 00:00:00,"P08-2023"
,"LV LEISURE CENTRE CAMPSITE","TRANSPORT RELATED EXPENDITURE","VEHICLE FUEL","3335","ALLSTAR BUSINESS SOLUTIONS LTD",8/11/2022 00:00:00,"268334",46.56,"AR0035","ALLSTAR BUSINESS SOLUTIONS LTD",31/10/2022 00:00:00,27/11/2022 00:00:00,"P08-2023"
,"LV LEISURE CENTRE CAMPSITE","TRANSPORT RELATED EXPENDITURE","VEHICLE FUEL","3335","ALLSTAR BUSINESS SOLUTIONS LTD",8/11/2022 00:00:00,"268334",64.79,"AR0035","ALLSTAR BUSINESS SOLUTIONS LTD",31/10/2022 00:00:00,27/11/2022 00:00:00,"P08-2023"
,"LV LEISURE CENTRE GOLF COURSE","TRANSPORT RELATED EXPENDITURE","VEHICLE FUEL","3335","P119839-SERVICE-2,000 Litres Red Diesel",8/11/2022 00:00:00,"268367",1202.94,"HA0400","WATSON FUELS",31/10/2022 00:00:00,27/11/2022 00:00:00,"P08-2023"
"P&V","NORTH AREA RANGERS","TRANSPORT RELATED EXPENDITURE","VEHICLE REPAIRS & MAINTENANCE","3338","P119646-SERVICE-Service Tipper - GL16WJZ",14/11/2022 00:00:00,"268596",327.56,"GA0165","GATES HARLOW",31/10/2022 00:00:00,27/11/2022 00:00:00,"P08-2023"
"P&V","NORTH AREA RANGERS","TRANSPORT RELATED EXPENDITURE","VEHICLE REPAIRS & MAINTENANCE","3338","P119646-SERVICE-MOT Tipper - GL16WJZ",14/11/2022 00:00:00,"268596",54.85,"GA0165","GATES HARLOW",31/10/2022 00:00:00,27/11/2022 00:00:00,"P08-2023"
"P&V","SOUTH AREA RANGERS","TRANSPORT RELATED EXPENDITURE","VEHICLE REPAIRS & MAINTENANCE","3338","P120122-SERVICE-Logo Vehilce Double Cab",23/11/2022 00:00:00,"268966",190,"TO0314","TOTALLY DYNAMIC NORTH LONDON",31/10/2022 00:00:00,27/11/2022 00:00:00,"P08-2023"
"P&V","RIVER LEE COUNTRY PARK","TRANSPORT RELATED EXPENDITURE","VEHICLE REPAIRS & MAINTENANCE","3338","P119337-SERVICE-Yamaha Quad Bike Parts - AY12 CEU",8/11/2022 00:00:00,"268497",1272.04,"TU0006","P TUCKWELL LTD",31/10/2022 00:00:00,27/11/2022 00:00:00,"P08-2023"
"P&V","RIVER LEE COUNTRY PARK","TRANSPORT RELATED EXPENDITURE","VEHICLE REPAIRS & MAINTENANCE","3338","P119337-SERVICE-Yamaha Quad Bike Service - AY12 CEU",8/11/2022 00:00:00,"268497",340,"TU0006","P TUCKWELL LTD",31/10/2022 00:00:00,27/11/2022 00:00:00,"P08-2023"
,"LEE VALLEY MARINA SPRINGFIELD","SUPPLIES AND SERVICES","EQUIPMENT & MATERIALS","4111","P119843-SERVICE-PPE as requested",8/11/2022 00:00:00,"268269",184.46,"SA0008","SAFETEC DIRECT LTD",31/10/2022 00:00:00,27/11/2022 00:00:00,"P08-2023"
,"LEE VALLEY MARINA SPRINGFIELD","SUPPLIES AND SERVICES","EQUIPMENT & MATERIALS","4111","SAFETEC DIRECT LTD",9/11/2022 00:00:00,"268471",82.6,"SA0008","SAFETEC DIRECT LTD",31/10/2022 00:00:00,27/11/2022 00:00:00,"P08-2023"
,"LEE VALLEY MARINA SPRINGFIELD","SUPPLIES AND SERVICES","EQUIPMENT & MATERIALS","4111","P119843-SERVICE-PPE as requested",9/11/2022 00:00:00,"268471",134.45,"SA0008","SAFETEC DIRECT LTD",31/10/2022 00:00:00,27/11/2022 00:00:00,"P08-2023"
,"LEE VALLEY MARINA SPRINGFIELD","SUPPLIES AND SERVICES","EQUIPMENT & MATERIALS","4111","SAFETEC DIRECT LTD",9/11/2022 00:00:00,"268471",-134.45,"SA0008","SAFETEC DIRECT LTD",31/10/2022 00:00:00,27/11/2022 00:00:00,"P08-2023"
,"LEE VALLEY MARINA SPRINGFIELD","SUPPLIES AND SERVICES","EQUIPMENT & MATERIALS","4111","SAFETEC DIRECT LTD",9/11/2022 00:00:00,"268471",51.85,"SA0008","SAFETEC DIRECT LTD",31/10/2022 00:00:00,27/11/2022 00:00:00,"P08-2023"
,"STANSTEAD RECHARGEABLE WORKS","SUPPLIES AND SERVICES","EQUIPMENT & MATERIALS","4111","P119734-SERVICE-parts for w/s",27/11/2022 00:00:00,"267980",3.1,"MI0200","MIDLAND CHANDLERS LIMITED",31/10/2022 00:00:00,27/11/2022 00:00:00,"P08-2023"
,"STANSTEAD RECHARGEABLE WORKS","SUPPLIES AND SERVICES","EQUIPMENT & MATERIALS","4111","P119840-SERVICE-workshop supplies  (anodes)",23/11/2022 00:00:00,"268294",690.74,"MI0200","MIDLAND CHANDLERS LIMITED",31/10/2022 00:00:00,27/11/2022 00:00:00,"P08-2023"
,"STANSTEAD RECHARGEABLE WORKS","SUPPLIES AND SERVICES","EQUIPMENT & MATERIALS","4111","P119908-SERVICE-blacking",23/11/2022 00:00:00,"268472",1336.6,"MI0200","MIDLAND CHANDLERS LIMITED",31/10/2022 00:00:00,27/11/2022 00:00:00,"P08-2023"
,"STANSTEAD RECHARGEABLE WORKS","SUPPLIES AND SERVICES","EQUIPMENT & MATERIALS","4111","P119734-SERVICE-parts for w/s",27/11/2022 00:00:00,"268703",-359.65,"MI0200","MIDLAND CHANDLERS LIMITED",31/10/2022 00:00:00,27/11/2022 00:00:00,"P08-2023"
,"LEE VALLEY CAMPSITE","SUPPLIES AND SERVICES","EQUIPMENT & MATERIALS","4111","P119894-SERVICE-Sewardstone supplies",9/11/2022 00:00:00,"268321",124.99,"AM0406","AMAZON PAYMENTS UK LIMITED",31/10/2022 00:00:00,27/11/2022 00:00:00,"P08-2023"
,"LEE VALLEY CAMPSITE","SUPPLIES AND SERVICES","EQUIPMENT & MATERIALS","4111","P119894-SERVICE-Sewardstone supplies",9/11/2022 00:00:00,"268322",14.82,"AM0406","AMAZON PAYMENTS UK LIMITED",31/10/2022 00:00:00,27/11/2022 00:00:00,"P08-2023"
,"LEE VALLEY CAMPSITE","SUPPLIES AND SERVICES","EQUIPMENT & MATERIALS","4111","P119894-SERVICE-Sewardstone supplies",9/11/2022 00:00:00,"268323",49.98,"AM0406","AMAZON PAYMENTS UK LIMITED",31/10/2022 00:00:00,27/11/2022 00:00:00,"P08-2023"
,"LEE VALLEY CAMPSITE","SUPPLIES AND SERVICES","EQUIPMENT & MATERIALS","4111","P119884-SERVICE-fire action signs",8/11/2022 00:00:00,"268326",36.55,"FI0215","VALUE PRODUCTS LTD",31/10/2022 00:00:00,27/11/2022 00:00:00,"P08-2023"
,"LEE VALLEY CAMPSITE","SUPPLIES AND SERVICES","EQUIPMENT & MATERIALS","4111","P119894-SERVICE-Sewardstone supplies",9/11/2022 00:00:00,"268345",18,"AM0406","AMAZON PAYMENTS UK LIMITED",31/10/2022 00:00:00,27/11/2022 00:00:00,"P08-2023"
,"LEE VALLEY CAMPSITE","SUPPLIES AND SERVICES","EQUIPMENT & MATERIALS","4111","P119894-SERVICE-Sewardstone supplies",9/11/2022 00:00:00,"268346",10.82,"AM0406","AMAZON PAYMENTS UK LIMITED",31/10/2022 00:00:00,27/11/2022 00:00:00,"P08-2023"
,"LEE VALLEY CAMPSITE","SUPPLIES AND SERVICES","EQUIPMENT & MATERIALS","4111","P119894-SERVICE-Sewardstone supplies",15/11/2022 00:00:00,"268347",49.95,"AM0406","AMAZON PAYMENTS UK LIMITED",31/10/2022 00:00:00,27/11/2022 00:00:00,"P08-2023"
,"LEE VALLEY CAMPSITE","SUPPLIES AND SERVICES","EQUIPMENT & MATERIALS","4111","P119894-SERVICE-Sewardstone supplies",9/11/2022 00:00:00,"268348",32.5,"AM0406","AMAZON PAYMENTS UK LIMITED",31/10/2022 00:00:00,27/11/2022 00:00:00,"P08-2023"
,"LEE VALLEY CAMPSITE","SUPPLIES AND SERVICES","EQUIPMENT & MATERIALS","4111","P119894-SERVICE-Sewardstone supplies",9/11/2022 00:00:00,"268349",8.32,"AM0406","AMAZON PAYMENTS UK LIMITED",31/10/2022 00:00:00,27/11/2022 00:00:00,"P08-2023"
,"LEE VALLEY CAMPSITE","SUPPLIES AND SERVICES","EQUIPMENT & MATERIALS","4111","P119884-SERVICE-fire action signs",15/11/2022 00:00:00,"268574",18.13,"FI0215","VALUE PRODUCTS LTD",31/10/2022 00:00:00,27/11/2022 00:00:00,"P08-2023"
,"LEE VALLEY CAMPSITE","SUPPLIES AND SERVICES","EQUIPMENT & MATERIALS","4111","P119884-SERVICE-fire action signs",22/11/2022 00:00:00,"268681",38.2,"FI0215","VALUE PRODUCTS LTD",31/10/2022 00:00:00,27/11/2022 00:00:00,"P08-2023"
,"LEE VALLEY CAMPSITE","SUPPLIES AND SERVICES","EQUIPMENT & MATERIALS","4111","P119820-SERVICE-Site repairs/maintenace",22/11/2022 00:00:00,"268721",29,"SC0057","SCREWFIX DIRECT LTD",31/10/2022 00:00:00,27/11/2022 00:00:00,"P08-2023"
,"LEE VALLEY CAMPSITE","SUPPLIES AND SERVICES","EQUIPMENT & MATERIALS","4111","P119884-SERVICE-fire action signs",27/11/2022 00:00:00,"268992",38.05,"FI0215","VALUE PRODUCTS LTD",31/10/2022 00:00:00,27/11/2022 00:00:00,"P08-2023"
,"LEE VALLEY CAMPSITE","SUPPLIES AND SERVICES","EQUIPMENT & MATERIALS","4111","VALUE PRODUCTS LTD",27/11/2022 00:00:00,"269103",48.85,"FI0215","VALUE PRODUCTS LTD",31/10/2022 00:00:00,27/11/2022 00:00:00,"P08-2023"
,"LEE VALLEY CAMPSITE","SUPPLIES AND SERVICES","EQUIPMENT & MATERIALS","4111","P120191-SERVICE-first aid grab bags for sstone dobbs & edmont",27/11/2022 00:00:00,"269103",146.55,"FI0215","VALUE PRODUCTS LTD",31/10/2022 00:00:00,27/11/2022 00:00:00,"P08-2023"
,"LEE VALLEY CAMPSITE","SUPPLIES AND SERVICES","EQUIPMENT & MATERIALS","4111","VALUE PRODUCTS LTD",27/11/2022 00:00:00,"269103",-146.55,"FI0215","VALUE PRODUCTS LTD",31/10/2022 00:00:00,27/11/2022 00:00:00,"P08-2023"
,"LEE VALLEY CAMPSITE","SUPPLIES AND SERVICES","EQUIPMENT & MATERIALS","4111","P120192-SERVICE- Megaphones for all campsites",27/11/2022 00:00:00,"269135",204.93,"SC0057","SCREWFIX DIRECT LTD",31/10/2022 00:00:00,27/11/2022 00:00:00,"P08-2023"
,"LEE VALLEY CAMPSITE","SUPPLIES AND SERVICES","EQUIPMENT & MATERIALS","4111","SCREWFIX DIRECT LTD",27/11/2022 00:00:00,"269135",-204.93,"SC0057","SCREWFIX DIRECT LTD",31/10/2022 00:00:00,27/11/2022 00:00:00,"P08-2023"
,"LEE VALLEY CAMPSITE","SUPPLIES AND SERVICES","EQUIPMENT & MATERIALS","4111","SCREWFIX DIRECT LTD",27/11/2022 00:00:00,"269135",68.31,"SC0057","SCREWFIX DIRECT LTD",31/10/2022 00:00:00,27/11/2022 00:00:00,"P08-2023"
,"LEE VALLEY CARAVAN PARK","SUPPLIES AND SERVICES","EQUIPMENT & MATERIALS","4111","P119898-SERVICE-Dobbs Weir Supplies Peaky Pod and Camera",9/11/2022 00:00:00,"268344",41.58,"AM0406","AMAZON PAYMENTS UK LIMITED",31/10/2022 00:00:00,27/11/2022 00:00:00,"P08-2023"
,"LEE VALLEY CARAVAN PARK","SUPPLIES AND SERVICES","EQUIPMENT & MATERIALS","4111","P119898-SERVICE-Dobbs Weir Supplies Peaky Pod and Camera",9/11/2022 00:00:00,"268350",62.49,"AM0406","AMAZON PAYMENTS UK LIMITED",31/10/2022 00:00:00,27/11/2022 00:00:00,"P08-2023"
,"LEE VALLEY CARAVAN PARK","SUPPLIES AND SERVICES","EQUIPMENT & MATERIALS","4111","P119898-SERVICE-Dobbs Weir Supplies Peaky Pod and Camera",9/11/2022 00:00:00,"268444",21.32,"AM0406","AMAZON PAYMENTS UK LIMITED",31/10/2022 00:00:00,27/11/2022 00:00:00,"P08-2023"
,"LEE VALLEY CARAVAN PARK","SUPPLIES AND SERVICES","EQUIPMENT & MATERIALS","4111","P119898-SERVICE-Dobbs Weir Supplies Peaky Pod and Camera",9/11/2022 00:00:00,"268445",42.64,"AM0406","AMAZON PAYMENTS UK LIMITED",31/10/2022 00:00:00,27/11/2022 00:00:00,"P08-2023"
,"LEE VALLEY CARAVAN PARK","SUPPLIES AND SERVICES","EQUIPMENT & MATERIALS","4111","P119898-SERVICE-Dobbs Weir Supplies Peaky Pod and Camera",9/11/2022 00:00:00,"268473",23,"AM0406","AMAZON PAYMENTS UK LIMITED",31/10/2022 00:00:00,27/11/2022 00:00:00,"P08-2023"
,"LEE VALLEY CARAVAN PARK","SUPPLIES AND SERVICES","EQUIPMENT & MATERIALS","4111","P119898-SERVICE-Dobbs Weir Supplies Peaky Pod and Camera",9/11/2022 00:00:00,"268474",23,"AM0406","AMAZON PAYMENTS UK LIMITED",31/10/2022 00:00:00,27/11/2022 00:00:00,"P08-2023"
,"LEE VALLEY CARAVAN PARK","SUPPLIES AND SERVICES","EQUIPMENT & MATERIALS","4111","P119898-SERVICE-Dobbs Weir Supplies Peaky Pod and Camera",9/11/2022 00:00:00,"268475",23,"AM0406","AMAZON PAYMENTS UK LIMITED",31/10/2022 00:00:00,27/11/2022 00:00:00,"P08-2023"
,"LEE VALLEY CARAVAN PARK","SUPPLIES AND SERVICES","EQUIPMENT & MATERIALS","4111","P120136-SERVICE-Gas Tank Sensor",27/11/2022 00:00:00,"268738",60,"AV0327","AVANTI GAS LIMITED",31/10/2022 00:00:00,27/11/2022 00:00:00,"P08-2023"
,"LEE VALLEY CARAVAN PARK","SUPPLIES AND SERVICES","EQUIPMENT & MATERIALS","4111","P120136-SERVICE-Gas Tank Sensor",27/11/2022 00:00:00,"268739",60,"AV0327","AVANTI GAS LIMITED",31/10/2022 00:00:00,27/11/2022 00:00:00,"P08-2023"
,"LEE VALLEY CARAVAN PARK","SUPPLIES AND SERVICES","EQUIPMENT & MATERIALS","4111","VALUE PRODUCTS LTD",27/11/2022 00:00:00,"269103",48.85,"FI0215","VALUE PRODUCTS LTD",31/10/2022 00:00:00,27/11/2022 00:00:00,"P08-2023"
,"LEE VALLEY CARAVAN PARK","SUPPLIES AND SERVICES","EQUIPMENT & MATERIALS","4111","SCREWFIX DIRECT LTD",27/11/2022 00:00:00,"269135",68.31,"SC0057","SCREWFIX DIRECT LTD",31/10/2022 00:00:00,27/11/2022 00:00:00,"P08-2023"
"P&V","MYDDELTON HOUSE GARDENS","SUPPLIES AND SERVICES","EQUIPMENT & MATERIALS","4111","P118821-SERVICE-green house glass replacement",27/11/2022 00:00:00,"269169",240,"TO0639","TOWNS-END DOUBLE GLAZING LTD",31/10/2022 00:00:00,27/11/2022 00:00:00,"P08-2023"
"P&V","NORTH AREA RANGERS","SUPPLIES AND SERVICES","EQUIPMENT & MATERIALS","4111","P119707-SERVICE-20x Eye Pad Dressing",22/11/2022 00:00:00,"268709",3.4,"ME0490","MEDISAVE UK LTD",31/10/2022 00:00:00,27/11/2022 00:00:00,"P08-2023"
"P&V","NORTH AREA RANGERS","SUPPLIES AND SERVICES","EQUIPMENT & MATERIALS","4111","P120041-SERVICE-20x Sessina Sandbags - OM&M",22/11/2022 00:00:00,"268711",37.6,"JE0011","SAINT-GOBAIN BUILDING DISTRIBUTION",31/10/2022 00:00:00,27/11/2022 00:00:00,"P08-2023"
"P&V","NORTH AREA RANGERS","SUPPLIES AND SERVICES","EQUIPMENT & MATERIALS","4111","P120041-SERVICE-20x Sharp Concreting Sand Bags - OM&M",22/11/2022 00:00:00,"268711",79.4,"JE0011","SAINT-GOBAIN BUILDING DISTRIBUTION",31/10/2022 00:00:00,27/11/2022 00:00:00,"P08-2023"
"P&V","SOUTH AREA RANGERS","SUPPLIES AND SERVICES","EQUIPMENT & MATERIALS","4111","P119968-SERVICE-40x Sthil 2 Stroke Oil Green 100ml Pods",27/11/2022 00:00:00,"269007",110,"AP0245","APS LIMITED",31/10/2022 00:00:00,27/11/2022 00:00:00,"P08-2023"
"P&V","ABBEY GARDENS","SUPPLIES AND SERVICES","EQUIPMENT & MATERIALS","4111","P119586-SERVICE-Memorial Plaque - Newman",8/11/2022 00:00:00,"268353",60,"JA0162","JAG'S TROPHIES",31/10/2022 00:00:00,27/11/2022 00:00:00,"P08-2023"
"P&V","ABBEY GARDENS","SUPPLIES AND SERVICES","EQUIPMENT & MATERIALS","4111","P119586-SERVICE-Memorial Plaque - Austin",8/11/2022 00:00:00,"268353",50,"JA0162","JAG'S TROPHIES",31/10/2022 00:00:00,27/11/2022 00:00:00,"P08-2023"
"P&V","ABBEY GARDENS","SUPPLIES AND SERVICES","EQUIPMENT & MATERIALS","4111","P119586-SERVICE-Memorial Plaque - Diprose",8/11/2022 00:00:00,"268353",60,"JA0162","JAG'S TROPHIES",31/10/2022 00:00:00,27/11/2022 00:00:00,"P08-2023"
"P&V","ABBEY GARDENS","SUPPLIES AND SERVICES","EQUIPMENT & MATERIALS","4111","P119586-SERVICE-Memorial Plaque - Macklin",8/11/2022 00:00:00,"268353",60,"JA0162","JAG'S TROPHIES",31/10/2022 00:00:00,27/11/2022 00:00:00,"P08-2023"
"P&V","WILDLIFE DISCOVERY CENTRE","SUPPLIES AND SERVICES","EQUIPMENT & MATERIALS","4111","P119791-SERVICE-Water Boiler",27/11/2022 00:00:00,"269129",94.99,"NI0014","NISBETS",31/10/2022 00:00:00,27/11/2022 00:00:00,"P08-2023"
"P&V","RIVER LEE COUNTRY PARK","SUPPLIES AND SERVICES","EQUIPMENT & MATERIALS","4111","P119663-SERVICE-1x Q-Connect AA Battery Pk20 - KF10848",8/11/2022 00:00:00,"267889",12.54,"TH0008","JKL SOLUTIONS LTD",31/10/2022 00:00:00,27/11/2022 00:00:00,"P08-2023"
"P&V","RIVER LEE COUNTRY PARK","SUPPLIES AND SERVICES","EQUIPMENT & MATERIALS","4111","P119663-SERVICE-1x White Plastic Step Stool - GA27911",8/11/2022 00:00:00,"267889",48.5,"TH0008","JKL SOLUTIONS LTD",31/10/2022 00:00:00,27/11/2022 00:00:00,"P08-2023"
"P&V","RIVER LEE COUNTRY PARK","SUPPLIES AND SERVICES","EQUIPMENT & MATERIALS","4111","P119663-SERVICE-1x Q-Connect AAA Battery Pk20 - KF10849",8/11/2022 00:00:00,"267889",9.8,"TH0008","JKL SOLUTIONS LTD",31/10/2022 00:00:00,27/11/2022 00:00:00,"P08-2023"
"P&V","RIVER LEE COUNTRY PARK","SUPPLIES AND SERVICES","EQUIPMENT & MATERIALS","4111","P119586-SERVICE-Delivery",8/11/2022 00:00:00,"268353",15,"JA0162","JAG'S TROPHIES",31/10/2022 00:00:00,27/11/2022 00:00:00,"P08-2023"
"P&V","RIVER LEE COUNTRY PARK","SUPPLIES AND SERVICES","EQUIPMENT & MATERIALS","4111","P119586-SERVICE-Memorial Plaque - Sue Carter",8/11/2022 00:00:00,"268353",70,"JA0162","JAG'S TROPHIES",31/10/2022 00:00:00,27/11/2022 00:00:00,"P08-2023"
"P&V","EVENTS MANAGEMENT (PR)","SUPPLIES AND SERVICES","EQUIPMENT & MATERIALS","4111","P119615-SERVICE-Fire extinguisher service - Events",22/11/2022 00:00:00,"268904",44.45,"TJ0009","T.J.FIRE & SECURITY",31/10/2022 00:00:00,27/11/2022 00:00:00,"P08-2023"
"P&V","FORMER LV LIDO SITE","SUPPLIES AND SERVICES","EQUIPMENT & MATERIALS","4111","P120012-SERVICE-Timber for Repairs Broxbourne R/S",14/11/2022 00:00:00,"268708",620.64,"TI0643","THE TIMBER GROUP",31/10/2022 00:00:00,27/11/2022 00:00:00,"P08-2023"
,"LV LEISURE CENTRE CAMPSITE","SUPPLIES AND SERVICES","EQUIPMENT & MATERIALS","4111","P119990-SERVICE-Painting supplies for fencing",14/11/2022 00:00:00,"268135",106.4,"BQ0164","TRADE UK ACCOUNT",31/10/2022 00:00:00,27/11/2022 00:00:00,"P08-2023"
,"LV LEISURE CENTRE CAMPSITE","SUPPLIES AND SERVICES","EQUIPMENT & MATERIALS","4111","P119991-SERVICE-Toilet seat",14/11/2022 00:00:00,"268136",28.27,"SC0057","SCREWFIX DIRECT LTD",31/10/2022 00:00:00,27/11/2022 00:00:00,"P08-2023"
,"LV LEISURE CENTRE CAMPSITE","SUPPLIES AND SERVICES","EQUIPMENT & MATERIALS","4111","P119992-SERVICE-Scrapers and blades",14/11/2022 00:00:00,"268137",57.45,"SC0057","SCREWFIX DIRECT LTD",31/10/2022 00:00:00,27/11/2022 00:00:00,"P08-2023"
,"LV LEISURE CENTRE CAMPSITE","SUPPLIES AND SERVICES","EQUIPMENT & MATERIALS","4111","P119903-SERVICE-Edmonton Supplies",9/11/2022 00:00:00,"268337",124.99,"AM0406","AMAZON PAYMENTS UK LIMITED",31/10/2022 00:00:00,27/11/2022 00:00:00,"P08-2023"
,"LV LEISURE CENTRE CAMPSITE","SUPPLIES AND SERVICES","EQUIPMENT & MATERIALS","4111","P120079-SERVICE-Ground maintenance equipment",22/11/2022 00:00:00,"268678",99.73,"SC0057","SCREWFIX DIRECT LTD",31/10/2022 00:00:00,27/11/2022 00:00:00,"P08-2023"
,"LV LEISURE CENTRE CAMPSITE","SUPPLIES AND SERVICES","EQUIPMENT & MATERIALS","4111","P120178-SERVICE-Materials and equipment",27/11/2022 00:00:00,"268988",74.32,"BQ0164","TRADE UK ACCOUNT",31/10/2022 00:00:00,27/11/2022 00:00:00,"P08-2023"
,"LV LEISURE CENTRE CAMPSITE","SUPPLIES AND SERVICES","EQUIPMENT & MATERIALS","4111","VALUE PRODUCTS LTD",27/11/2022 00:00:00,"269103",48.85,"FI0215","VALUE PRODUCTS LTD",31/10/2022 00:00:00,27/11/2022 00:00:00,"P08-2023"
,"LV LEISURE CENTRE CAMPSITE","SUPPLIES AND SERVICES","EQUIPMENT & MATERIALS","4111","SCREWFIX DIRECT LTD",27/11/2022 00:00:00,"269135",68.31,"SC0057","SCREWFIX DIRECT LTD",31/10/2022 00:00:00,27/11/2022 00:00:00,"P08-2023"
"CEO","RESIDENTIAL ACCOMMODATION","SUPPLIES AND SERVICES","EQUIPMENT MAINTENANCE","4112","P120133-SERVICE-Aquaside - Unvented Cylinder Service",27/11/2022 00:00:00,"268875",104.17,"CA0165","CASTLES",31/10/2022 00:00:00,27/11/2022 00:00:00,"P08-2023"
"CEO","RESIDENTIAL ACCOMMODATION","SUPPLIES AND SERVICES","EQUIPMENT MAINTENANCE","4112","P120135-SERVICE-1 Connaught Close - Electrical Certificate",27/11/2022 00:00:00,"268877",100,"CA0165","CASTLES",31/10/2022 00:00:00,27/11/2022 00:00:00,"P08-2023"
,"LEE VALLEY CAMPSITE","SUPPLIES AND SERVICES","EQUIPMENT MAINTENANCE","4112","P119872-SERVICE-CC8 - Replace external light",8/11/2022 00:00:00,"268291",80,"BR0018","BRADSHAW ELECTRICAL LIMITED",31/10/2022 00:00:00,27/11/2022 00:00:00,"P08-2023"
,"LEE VALLEY CAMPSITE","SUPPLIES AND SERVICES","EQUIPMENT MAINTENANCE","4112","P119909-SERVICE-bollards & cabins power",8/11/2022 00:00:00,"268315",800,"BR0018","BRADSHAW ELECTRICAL LIMITED",31/10/2022 00:00:00,27/11/2022 00:00:00,"P08-2023"
,"LEE VALLEY CAMPSITE","SUPPLIES AND SERVICES","EQUIPMENT MAINTENANCE","4112","CAPSER",15/11/2022 00:00:00,"268467",-800,"MO0041","CAPSER",31/10/2022 00:00:00,27/11/2022 00:00:00,"P08-2023"
,"LEE VALLEY CAMPSITE","SUPPLIES AND SERVICES","EQUIPMENT MAINTENANCE","4112","CAPSER",15/11/2022 00:00:00,"268467",500,"MO0041","CAPSER",31/10/2022 00:00:00,27/11/2022 00:00:00,"P08-2023"
,"LEE VALLEY CAMPSITE","SUPPLIES AND SERVICES","EQUIPMENT MAINTENANCE","4112","P119883-SERVICE-Repair to water point field B",15/11/2022 00:00:00,"268467",800,"MO0041","CAPSER",31/10/2022 00:00:00,27/11/2022 00:00:00,"P08-2023"
,"LEE VALLEY CAMPSITE","SUPPLIES AND SERVICES","EQUIPMENT MAINTENANCE","4112","CAPSER",15/11/2022 00:00:00,"268467",300,"MO0041","CAPSER",31/10/2022 00:00:00,27/11/2022 00:00:00,"P08-2023"
,"LEE VALLEY CARAVAN PARK","SUPPLIES AND SERVICES","EQUIPMENT MAINTENANCE","4112","P119891-SERVICE-Electrical works carried out Facilities Tunne",8/11/2022 00:00:00,"268290",240,"BR0018","BRADSHAW ELECTRICAL LIMITED",31/10/2022 00:00:00,27/11/2022 00:00:00,"P08-2023"
,"LEE VALLEY CARAVAN PARK","SUPPLIES AND SERVICES","EQUIPMENT MAINTENANCE","4112","P120103-SERVICE-50 Barrier cards",22/11/2022 00:00:00,"268766",265,"AU0245","AUTO-MATE SYSTEMS LIMITED",31/10/2022 00:00:00,27/11/2022 00:00:00,"P08-2023"
,"LEE VALLEY CARAVAN PARK","SUPPLIES AND SERVICES","EQUIPMENT MAINTENANCE","4112","P120157-SERVICE-Entrance barrier arm fault",27/11/2022 00:00:00,"268767",345,"AU0245","AUTO-MATE SYSTEMS LIMITED",31/10/2022 00:00:00,27/11/2022 00:00:00,"P08-2023"
,"LEE VALLEY CARAVAN PARK","SUPPLIES AND SERVICES","EQUIPMENT MAINTENANCE","4112","P120155-SERVICE-New RCD BC4 & replace lamps",27/11/2022 00:00:00,"268950",440,"BR0018","BRADSHAW ELECTRICAL LIMITED",31/10/2022 00:00:00,27/11/2022 00:00:00,"P08-2023"
,"LEE VALLEY CARAVAN PARK","SUPPLIES AND SERVICES","EQUIPMENT MAINTENANCE","4112","P120156-SERVICE-Water heating repairs",27/11/2022 00:00:00,"268951",566,"BR0018","BRADSHAW ELECTRICAL LIMITED",31/10/2022 00:00:00,27/11/2022 00:00:00,"P08-2023"
"P&V","ALMOST WILD CAMPSITE","SUPPLIES AND SERVICES","EQUIPMENT MAINTENANCE","4112","P119978-SERVICE-Site Toilets Pump Out",14/11/2022 00:00:00,"268597",250,"CO0550","CONVERT WATER LTD",31/10/2022 00:00:00,27/11/2022 00:00:00,"P08-2023"
,"LV LEISURE CENTRE CAMPSITE","SUPPLIES AND SERVICES","EQUIPMENT MAINTENANCE","4112","P120072-SERVICE-Washing machine no power fixed rod",22/11/2022 00:00:00,"268544",195,"AL0434","ALLSOP & FRANCIS",31/10/2022 00:00:00,27/11/2022 00:00:00,"P08-2023"
,"LV LEISURE CENTRE CAMPSITE","SUPPLIES AND SERVICES","EQUIPMENT MAINTENANCE","4112","P120075-SERVICE-paint supplies and maintenance supplies",22/11/2022 00:00:00,"268704",109.91,"BQ0164","TRADE UK ACCOUNT",31/10/2022 00:00:00,27/11/2022 00:00:00,"P08-2023"
,"LV LEISURE CENTRE CAMPSITE","SUPPLIES AND SERVICES","EQUIPMENT MAINTENANCE","4112","P120076-SERVICE-maintenance supplies",22/11/2022 00:00:00,"268705",70.99,"SC0057","SCREWFIX DIRECT LTD",31/10/2022 00:00:00,27/11/2022 00:00:00,"P08-2023"
,"LV LEISURE CENTRE CAMPSITE","SUPPLIES AND SERVICES","EQUIPMENT MAINTENANCE","4112","P120173-SERVICE-Tile blade",27/11/2022 00:00:00,"268927",9.16,"SC0057","SCREWFIX DIRECT LTD",31/10/2022 00:00:00,27/11/2022 00:00:00,"P08-2023"
,"LV LEISURE CENTRE CAMPSITE","SUPPLIES AND SERVICES","EQUIPMENT MAINTENANCE","4112","P120174-SERVICE-sealant bath traps etc",27/11/2022 00:00:00,"268928",67.25,"BQ0164","TRADE UK ACCOUNT",31/10/2022 00:00:00,27/11/2022 00:00:00,"P08-2023"
"R&B","INFORMATION TECHNOLOGY","SUPPLIES AND SERVICES","IT CORE SYSTEMS","4113","P119927-SERVICE-CIPHR Payroll Dec 2022",14/11/2022 00:00:00,"268468",569.58,"CI0721","CIPHR",31/10/2022 00:00:00,27/11/2022 00:00:00,"P08-2023"
"R&B","INFORMATION TECHNOLOGY","SUPPLIES AND SERVICES","IT CORE SYSTEMS","4113","P120040-SERVICE-Managed Service - 14 Jan 23 - 13 Feb 2023",22/11/2022 00:00:00,"268728",1333.47,"CE0021","ADVANCED BUSINESS SOLUTIONS",31/10/2022 00:00:00,27/11/2022 00:00:00,"P08-2023"
"R&B","INFORMATION TECHNOLOGY","SUPPLIES AND SERVICES","IT CORE SYSTEMS","4113","P119782-SERVICE-Monthly fees PAYware Ocius Pos",22/11/2022 00:00:00,"268757",351,"CO0440","VERIFONE SERVICES UK & IRELAND LTD",31/10/2022 00:00:00,27/11/2022 00:00:00,"P08-2023"
"R&B","INFORMATION TECHNOLOGY","SUPPLIES AND SERVICES","IT NETWORK & TELECOMS COSTS","4114","P117871-SERVICE-Monthly SIP Apr 22-Mar 23",8/11/2022 00:00:00,"268354",146.75,"FR0131","VOICEFLEX LTD",31/10/2022 00:00:00,27/11/2022 00:00:00,"P08-2023"
"R&B","INFORMATION TECHNOLOGY","SUPPLIES AND SERVICES","IT NETWORK & TELECOMS COSTS","4114","P120152-SERVICE-MPLS for all sites Nov 22",27/11/2022 00:00:00,"268990",9605.86,"PP0200","PPSNET LIMITED",31/10/2022 00:00:00,27/11/2022 00:00:00,"P08-2023"
"R&B","INFORMATION TECHNOLOGY","SUPPLIES AND SERVICES","IT NETWORK & TELECOMS COSTS","4114","P120152-SERVICE-MPLS for all sites Nov 22",27/11/2022 00:00:00,"268991",-622.5,"PP0200","PPSNET LIMITED",31/10/2022 00:00:00,27/11/2022 00:00:00,"P08-2023"
"P&V","MYDDELTON HOUSE","SUPPLIES AND SERVICES","IT HARDWARE & SOFTWARE COSTS","4116","OCT - NOV 2022",8/11/2022 00:00:00,"268258",29.5,"ZE0007","ZEN INTERNET LTD",31/10/2022 00:00:00,27/11/2022 00:00:00,"P08-2023"
"P&V","MYDDELTON HOUSE","SUPPLIES AND SERVICES","IT HARDWARE & SOFTWARE COSTS","4116","ZEN INTERNET LTD",27/11/2022 00:00:00,"269179",29.5,"ZE0007","ZEN INTERNET LTD",31/10/2022 00:00:00,27/11/2022 00:00:00,"P08-2023"
,"LEE VALLEY MARINA SPRINGFIELD","SUPPLIES AND SERVICES","IT HARDWARE & SOFTWARE COSTS","4116","P119957-SERVICE-Annual Service Maintenance Fee Nov",9/11/2022 00:00:00,"268477",139.26,"WI0209","WIFI SPARK LIMITED",31/10/2022 00:00:00,27/11/2022 00:00:00,"P08-2023"
,"LEE VALLEY MARINA SPRINGFIELD","SUPPLIES AND SERVICES","IT HARDWARE & SOFTWARE COSTS","4116","ZEN INTERNET LTD",16/11/2022 00:00:00,"268720",38,"ZE0007","ZEN INTERNET LTD",31/10/2022 00:00:00,27/11/2022 00:00:00,"P08-2023"
,"LEE VALLEY MARINA STANSTEAD","SUPPLIES AND SERVICES","IT HARDWARE & SOFTWARE COSTS","4116","P119957-SERVICE-Annual Service Maintenance Fee Nov Stanstead",9/11/2022 00:00:00,"268477",218.36,"WI0209","WIFI SPARK LIMITED",31/10/2022 00:00:00,27/11/2022 00:00:00,"P08-2023"
,"LEE VALLEY MARINA STANSTEAD","SUPPLIES AND SERVICES","IT HARDWARE & SOFTWARE COSTS","4116","ZEN INTERNET LTD",16/11/2022 00:00:00,"268719",31.32,"ZE0007","ZEN INTERNET LTD",31/10/2022 00:00:00,27/11/2022 00:00:00,"P08-2023"
,"LEE VALLEY CAMPSITE","SUPPLIES AND SERVICES","IT HARDWARE & SOFTWARE COSTS","4116","P119957-SERVICE-Annual Service Maintenance Fee Nov",9/11/2022 00:00:00,"268477",218.92,"WI0209","WIFI SPARK LIMITED",31/10/2022 00:00:00,27/11/2022 00:00:00,"P08-2023"
,"LEE VALLEY CARAVAN PARK","SUPPLIES AND SERVICES","IT HARDWARE & SOFTWARE COSTS","4116","P119957-SERVICE-Annual Service Maintenance Fee Nov",9/11/2022 00:00:00,"268477",310.65,"WI0209","WIFI SPARK LIMITED",31/10/2022 00:00:00,27/11/2022 00:00:00,"P08-2023"
,"LEE VALLEY CARAVAN PARK","SUPPLIES AND SERVICES","IT HARDWARE & SOFTWARE COSTS","4116","P120154-SERVICE-Fibre Connection Nov 22",27/11/2022 00:00:00,"268989",835,"PP0200","PPSNET LIMITED",31/10/2022 00:00:00,27/11/2022 00:00:00,"P08-2023"
,"LV LEISURE CENTRE CAMPSITE","SUPPLIES AND SERVICES","IT HARDWARE & SOFTWARE COSTS","4116","P119957-SERVICE-Annual Service Maintenance Fee Nov",9/11/2022 00:00:00,"268477",163.42,"WI0209","WIFI SPARK LIMITED",31/10/2022 00:00:00,27/11/2022 00:00:00,"P08-2023"
,"LEE VALLEY MARINA SPRINGFIELD","SUPPLIES AND SERVICES","IT MAINTENANCE AGREEMENTS","4119","P119956-SERVICE-Support & Data October 22",8/11/2022 00:00:00,"268479",80.26,"CY0653","CYBERTILL",31/10/2022 00:00:00,27/11/2022 00:00:00,"P08-2023"
,"LEE VALLEY MARINA STANSTEAD","SUPPLIES AND SERVICES","IT MAINTENANCE AGREEMENTS","4119","P119956-SERVICE-Support & Data October 22",8/11/2022 00:00:00,"268479",80.27,"CY0653","CYBERTILL",31/10/2022 00:00:00,27/11/2022 00:00:00,"P08-2023"
,"LEE VALLEY CAMPSITE","SUPPLIES AND SERVICES","IT MAINTENANCE AGREEMENTS","4119","P119809-SERVICE-Monthly Subscrption Nov 22 - Mar 23",16/11/2022 00:00:00,"268690",145.5,"NE0218","NETGUIDES LIMITED",31/10/2022 00:00:00,27/11/2022 00:00:00,"P08-2023"
,"LEE VALLEY CARAVAN PARK","SUPPLIES AND SERVICES","IT MAINTENANCE AGREEMENTS","4119","P119809-SERVICE-Monthly Subscriptions Nov 22 - Mar 23",16/11/2022 00:00:00,"268690",145.5,"NE0218","NETGUIDES LIMITED",31/10/2022 00:00:00,27/11/2022 00:00:00,"P08-2023"
"P&V","ALMOST WILD CAMPSITE","SUPPLIES AND SERVICES","IT MAINTENANCE AGREEMENTS","4119","P119809-SERVICE-Monthly Subscrption Nov 22 - Mar 23",16/11/2022 00:00:00,"268690",145.5,"NE0218","NETGUIDES LIMITED",31/10/2022 00:00:00,27/11/2022 00:00:00,"P08-2023"
,"LV LEISURE CENTRE CAMPSITE","SUPPLIES AND SERVICES","IT MAINTENANCE AGREEMENTS","4119","P119809-SERVICE-Monthly Subscrption Nov 22 - Mar 23",16/11/2022 00:00:00,"268690",145.5,"NE0218","NETGUIDES LIMITED",31/10/2022 00:00:00,27/11/2022 00:00:00,"P08-2023"
,"LV LEISURE CENTRE GOLF COURSE","SUPPLIES AND SERVICES","IT MAINTENANCE AGREEMENTS","4119","P119899-SERVICE-Set up sevice",14/11/2022 00:00:00,"268325",500,"DI0304","DIGITAL TICKETING SYSTEMS LTD (DIGITICKETS)",31/10/2022 00:00:00,27/11/2022 00:00:00,"P08-2023"
,"LV LEISURE CENTRE GOLF COURSE","SUPPLIES AND SERVICES","IT MAINTENANCE AGREEMENTS","4119","P119923-SERVICE-Digitickets Services October 2022",16/11/2022 00:00:00,"268466",491.15,"DI0304","DIGITAL TICKETING SYSTEMS LTD (DIGITICKETS)",31/10/2022 00:00:00,27/11/2022 00:00:00,"P08-2023"
"P&V","LEE VALLEY FARM HOLYFIELDHALL","EXPENDITURE FROM RENEWALS FUND","EXPENDITURE FROM RENEWALS FUND","4121","P119946-SERVICE-Deposit for 1x Vehicle",9/11/2022 00:00:00,"268520",500,"RW0257","R. W. CRAWFORD AGRICULTURAL MACHINERY LTD",31/10/2022 00:00:00,27/11/2022 00:00:00,"P08-2023"
"P&V","NORTH AREA RANGERS","EXPENDITURE FROM RENEWALS FUND","EXPENDITURE FROM RENEWALS FUND","4121","P119946-SERVICE-Deposit for 2x vehilces",9/11/2022 00:00:00,"268518",500,"RW0257","R. W. CRAWFORD AGRICULTURAL MACHINERY LTD",31/10/2022 00:00:00,27/11/2022 00:00:00,"P08-2023"
"P&V","NORTH AREA RANGERS","EXPENDITURE FROM RENEWALS FUND","EXPENDITURE FROM RENEWALS FUND","4121","P119946-SERVICE-Deposit for 2x vehilces",9/11/2022 00:00:00,"268519",500,"RW0257","R. W. CRAWFORD AGRICULTURAL MACHINERY LTD",31/10/2022 00:00:00,27/11/2022 00:00:00,"P08-2023"
"P&V","MYDDELTON HOUSE GARDENS","SUPPLIES AND SERVICES","MATERIALS (COUNTERS)","4123","P120172-SERVICE-Flex Waterproof Jacket - 220/WP302 x 2 @ 20.",27/11/2022 00:00:00,"269190",36,"DI0017","DIRECT BOOT & SHOE SUPPLIES",31/10/2022 00:00:00,27/11/2022 00:00:00,"P08-2023"
"P&V","MYDDELTON HOUSE GARDENS","SUPPLIES AND SERVICES","MATERIALS (COUNTERS)","4123","P120172-SERVICE-Flex Trouser 920/WP303 x 1 @ 10.00 each - Gr",27/11/2022 00:00:00,"269190",10,"DI0017","DIRECT BOOT & SHOE SUPPLIES",31/10/2022 00:00:00,27/11/2022 00:00:00,"P08-2023"
"P&V","MYDDELTON HOUSE GARDENS","SUPPLIES AND SERVICES","MATERIALS (COUNTERS)","4123","P120172-SERVICE-Flex Trouser 920/WP303 x 2 @ 10.00 each - Gr",27/11/2022 00:00:00,"269190",20,"DI0017","DIRECT BOOT & SHOE SUPPLIES",31/10/2022 00:00:00,27/11/2022 00:00:00,"P08-2023"
"P&V","MYDDELTON HOUSE GARDENS","SUPPLIES AND SERVICES","MATERIALS (COUNTERS)","4123","P120172-SERVICE-Flex Trouser 920/WP303 x 2 @ 12.00 each - Gr",27/11/2022 00:00:00,"269190",20,"DI0017","DIRECT BOOT & SHOE SUPPLIES",31/10/2022 00:00:00,27/11/2022 00:00:00,"P08-2023"
"P&V","MYDDELTON HOUSE GARDENS","SUPPLIES AND SERVICES","MATERIALS (COUNTERS)","4123","P120172-SERVICE-Flex Trouser 920/WP303 x 2 @ 10.00 each - Gr",27/11/2022 00:00:00,"269190",20,"DI0017","DIRECT BOOT & SHOE SUPPLIES",31/10/2022 00:00:00,27/11/2022 00:00:00,"P08-2023"
"P&V","MYDDELTON HOUSE GARDENS","SUPPLIES AND SERVICES","MATERIALS (COUNTERS)","4123","P120172-SERVICE-Flex Waterproof Jacket - 220/WP302  x 2 @ 20",27/11/2022 00:00:00,"269190",36,"DI0017","DIRECT BOOT & SHOE SUPPLIES",31/10/2022 00:00:00,27/11/2022 00:00:00,"P08-2023"
"P&V","MYDDELTON HOUSE GARDENS","SUPPLIES AND SERVICES","MATERIALS (COUNTERS)","4123","P120172-SERVICE-Flex Waterproof Jacket - 220/WP302  x 1 20.5",27/11/2022 00:00:00,"269190",18,"DI0017","DIRECT BOOT & SHOE SUPPLIES",31/10/2022 00:00:00,27/11/2022 00:00:00,"P08-2023"
"P&V","MYDDELTON HOUSE GARDENS","SUPPLIES AND SERVICES","MATERIALS (COUNTERS)","4123","P120172-SERVICE-Flex Waterproof Jacket - 220/WP302 x 2 @ 20.",27/11/2022 00:00:00,"269190",36,"DI0017","DIRECT BOOT & SHOE SUPPLIES",31/10/2022 00:00:00,27/11/2022 00:00:00,"P08-2023"
"P&V","MYDDLETON HSE HERITAGE CENTRE","SUPPLIES AND SERVICES","MATERIALS (COUNTERS)","4123","P120055-SERVICE-VC coffee stamp cards",22/11/2022 00:00:00,"268920",42.29,"SO0582","SOLOPRESS",31/10/2022 00:00:00,27/11/2022 00:00:00,"P08-2023"
"P&V","SOUTH AREA RANGERS","SUPPLIES AND SERVICES","MATERIALS (LOCKS)","4124","P119976-SERVICE-7x Complete Locks - SRK",27/11/2022 00:00:00,"269175",508.98,"LO0020","LOCK AND KEY SERVICES",31/10/2022 00:00:00,27/11/2022 00:00:00,"P08-2023"
"P&V","SOUTH AREA RANGERS","SUPPLIES AND SERVICES","MATERIALS (LOCKS)","4124","P119976-SERVICE-2x Bodies with Long Hasps",27/11/2022 00:00:00,"269175",79.04,"LO0020","LOCK AND KEY SERVICES",31/10/2022 00:00:00,27/11/2022 00:00:00,"P08-2023"
"P&V","SOUTH AREA RANGERS","SUPPLIES AND SERVICES","MATERIALS (LOCKS)","4124","P119976-SERVICE-7x Bodies with Standard Hasps",27/11/2022 00:00:00,"269175",235.54,"LO0020","LOCK AND KEY SERVICES",31/10/2022 00:00:00,27/11/2022 00:00:00,"P08-2023"
"P&V","SOUTH AREA RANGERS","SUPPLIES AND SERVICES","MATERIALS (LOCKS)","4124","P119976-SERVICE-Delivery",27/11/2022 00:00:00,"269175",10,"LO0020","LOCK AND KEY SERVICES",31/10/2022 00:00:00,27/11/2022 00:00:00,"P08-2023"
,"LV LEISURE CENTRE GOLF COURSE","SUPPLIES AND SERVICES","MATERIALS (LOCKS)","4124","P119928-SERVICE-Gold Course Materials",14/11/2022 00:00:00,"268531",1810,"MR0420","MR AMENITY LTD",31/10/2022 00:00:00,27/11/2022 00:00:00,"P08-2023"
,"LEE VALLEY CAMPSITE","SUPPLIES AND SERVICES","MATERIALS (GROUNDS MAINT)","4125","P120097-SERVICE-DELIVERY",27/11/2022 00:00:00,"268552",18.33,"TH0051","THOMPSONS OF CREWS HILL LTD",31/10/2022 00:00:00,27/11/2022 00:00:00,"P08-2023"
,"LEE VALLEY CAMPSITE","SUPPLIES AND SERVICES","MATERIALS (GROUNDS MAINT)","4125","P120097-SERVICE-2x 20mm Dumpy bags  shingle",27/11/2022 00:00:00,"268552",91.67,"TH0051","THOMPSONS OF CREWS HILL LTD",31/10/2022 00:00:00,27/11/2022 00:00:00,"P08-2023"
,"LV LEISURE CENTRE CAMPSITE","SUPPLIES AND SERVICES","MATERIALS (GROUNDS MAINT)","4125","P120005-SERVICE-Fuel can",14/11/2022 00:00:00,"268555",19.98,"SC0057","SCREWFIX DIRECT LTD",31/10/2022 00:00:00,27/11/2022 00:00:00,"P08-2023"
,"LV LEISURE CENTRE GOLF COURSE","SUPPLIES AND SERVICES","MATERIALS (GROUNDS MAINT)","4125","P119928-SERVICE-2 x Spraying Greens 1 x Instrata Elite Fungi",14/11/2022 00:00:00,"268531",1240,"MR0420","MR AMENITY LTD",31/10/2022 00:00:00,27/11/2022 00:00:00,"P08-2023"
,"LV LEISURE CENTRE GOLF COURSE","SUPPLIES AND SERVICES","MATERIALS (GROUNDS MAINT)","4125","P119928-SERVICE-4 Days Contract Spraying 5L Glyphosate",14/11/2022 00:00:00,"268531",1595,"MR0420","MR AMENITY LTD",31/10/2022 00:00:00,27/11/2022 00:00:00,"P08-2023"
,"LV LEISURE CENTRE GOLF COURSE","SUPPLIES AND SERVICES","MATERIALS (GROUNDS MAINT)","4125","P119778-SERVICE-Iron Feed",22/11/2022 00:00:00,"268908",713.6,"CA0698","CAMBRIDGE GOLF COMPANY",31/10/2022 00:00:00,27/11/2022 00:00:00,"P08-2023"
,"LV LEISURE CENTRE GOLF COURSE","SUPPLIES AND SERVICES","MATERIALS (GROUNDS MAINT)","4125","P119778-SERVICE-Selective Weed Killers",22/11/2022 00:00:00,"268908",750,"CA0698","CAMBRIDGE GOLF COMPANY",31/10/2022 00:00:00,27/11/2022 00:00:00,"P08-2023"
,"STANSTEAD RECHARGEABLE WORKS","SUPPLIES AND SERVICES","MATERIALS (TOOLS & PLANT)","4127","P119639-SERVICE-Tractor Training  Oct 19th '22",14/11/2022 00:00:00,"268298",480,"SA0137","SAFFRON WALDEN AGRICULTURAL TRAINING GROUP",31/10/2022 00:00:00,27/11/2022 00:00:00,"P08-2023"
,"STANSTEAD RECHARGEABLE WORKS","SUPPLIES AND SERVICES","MATERIALS (TOOLS & PLANT)","4127","P119934-SERVICE-crane parts",9/11/2022 00:00:00,"268478",156.62,"TM0644","T.M.C. LIFTING AND ENGINEERING SUPPLIES",31/10/2022 00:00:00,27/11/2022 00:00:00,"P08-2023"
,"SPRINGFIELD RECHARGEABLE WORKS","SUPPLIES AND SERVICES","MATERIALS (ENG OTHER)","4130","P119775-SERVICE-To hire 210 ton crane for 25/10/22",15/11/2022 00:00:00,"268442",1400,"BA0339","BALDWINS CRANE HIRE LTD",31/10/2022 00:00:00,27/11/2022 00:00:00,"P08-2023"
,"SPRINGFIELD RECHARGEABLE WORKS","SUPPLIES AND SERVICES","MATERIALS (ENG OTHER)","4130","P119775-SERVICE-Insurance @ 15% on crane hire",15/11/2022 00:00:00,"268442",210,"BA0339","BALDWINS CRANE HIRE LTD",31/10/2022 00:00:00,27/11/2022 00:00:00,"P08-2023"
,"STANSTEAD RECHARGEABLE WORKS","SUPPLIES AND SERVICES","MATERIALS (ENG OTHER)","4130","P119919-SERVICE-customer order",27/11/2022 00:00:00,"268932",112.23,"AS0036","ASAP SUPPLIES",31/10/2022 00:00:00,27/11/2022 00:00:00,"P08-2023"
"P&V","ALMOST WILD CAMPSITE","SUPPLIES AND SERVICES","MATERIALS (ENG OTHER)","4130","P119966-SERVICE-Numbers and BBq Signs",27/11/2022 00:00:00,"269120",225,"SL0528","SLAM SIGNS LTD",31/10/2022 00:00:00,27/11/2022 00:00:00,"P08-2023"
"P&V","LEE VALLEY FARM HOLYFIELDHALL","SUPPLIES AND SERVICES","FEED","4133","P119983-SERVICE-Optima/Prime Rearer",14/11/2022 00:00:00,"268368",11967.62,"BO0246","FOR FARMERS UK LTD",31/10/2022 00:00:00,27/11/2022 00:00:00,"P08-2023"
"P&V","LEE VALLEY FARM HOLYFIELDHALL","SUPPLIES AND SERVICES","FEED","4133","P120112-SERVICE-Selcoplus",22/11/2022 00:00:00,"268677",4816.32,"BO0246","FOR FARMERS UK LTD",31/10/2022 00:00:00,27/11/2022 00:00:00,"P08-2023"
"P&V","LEE VALLEY FARM HOLYFIELDHALL","SUPPLIES AND SERVICES","FEED","4133","P120115-SERVICE-Hay & Straw Bales",22/11/2022 00:00:00,"268888",3894,"BU0088","BURNELL CONTRACTING",31/10/2022 00:00:00,27/11/2022 00:00:00,"P08-2023"
"P&V","LEE VALLEY FARM HOLYFIELDHALL","SUPPLIES AND SERVICES","FEED","4133","P120116-SERVICE-Sileage & Straw Bales",22/11/2022 00:00:00,"268889",5948.75,"BU0088","BURNELL CONTRACTING",31/10/2022 00:00:00,27/11/2022 00:00:00,"P08-2023"
"P&V","LEE VALLEY FARM HOLYFIELDHALL","SUPPLIES AND SERVICES","DAIRY SUNDRIES","4138","P119982-SERVICE-Dairy Sundries",14/11/2022 00:00:00,"268447",74.14,"FA0099","FARM & COUNTRY SUPPLIES LTD",31/10/2022 00:00:00,27/11/2022 00:00:00,"P08-2023"
"P&V","LEE VALLEY FARM HOLYFIELDHALL","SUPPLIES AND SERVICES","DAIRY SUNDRIES","4138","P119982-SERVICE-Dairy Sundries",14/11/2022 00:00:00,"268448",50,"FA0099","FARM & COUNTRY SUPPLIES LTD",31/10/2022 00:00:00,27/11/2022 00:00:00,"P08-2023"
"P&V","LEE VALLEY FARM HOLYFIELDHALL","SUPPLIES AND SERVICES","DAIRY SUNDRIES","4138","P118536-SERVICE-Animal Removal",14/11/2022 00:00:00,"268554",54,"MA0074","W MARTIN & SON LIMITED",31/10/2022 00:00:00,27/11/2022 00:00:00,"P08-2023"
"P&V","LEE VALLEY FARM HOLYFIELDHALL","SUPPLIES AND SERVICES","DAIRY SUNDRIES","4138","P117594-SERVICE-Dairy Sundries",22/11/2022 00:00:00,"268743",27.24,"MI0023","MILL DAIRY SERVICES",31/10/2022 00:00:00,27/11/2022 00:00:00,"P08-2023"
"P&V","LEE VALLEY FARM HOLYFIELDHALL","SUPPLIES AND SERVICES","DAIRY SUNDRIES","4138","P120114-SERVICE-Parlour Service",22/11/2022 00:00:00,"268744",1581.19,"MI0023","MILL DAIRY SERVICES",31/10/2022 00:00:00,27/11/2022 00:00:00,"P08-2023"
"P&V","LEE VALLEY FARM HOLYFIELDHALL","SUPPLIES AND SERVICES","DAIRY SUNDRIES","4138","P118371-SERVICE-Dairy Sundries",22/11/2022 00:00:00,"268926",50.46,"MI0023","MILL DAIRY SERVICES",31/10/2022 00:00:00,27/11/2022 00:00:00,"P08-2023"
"P&V","LEE VALLEY FARM HOLYFIELDHALL","SUPPLIES AND SERVICES","DAIRY SUNDRIES","4138","P117958-SERVICE-Liquid Nitrogen",27/11/2022 00:00:00,"269118",105,"GE0005","GENUS BREEDING LTD",31/10/2022 00:00:00,27/11/2022 00:00:00,"P08-2023"
,"LV CAMPSITE CARAVAN SALES","SUPPLIES AND SERVICES","MISCELLANEOUS CARAVAN COSTS","4174","P118409-SERVICE-INTRODUTION OF STEVEN BUNN",22/11/2022 00:00:00,"264387",2500,"LO0459","LONDON LODGES UK",31/10/2022 00:00:00,27/11/2022 00:00:00,"P08-2023"
,"LV CAMPSITE CARAVAN SALES","SUPPLIES AND SERVICES","MISCELLANEOUS CARAVAN COSTS","4174","P119179-SERVICE-Gas work and gas connect Plot 10 Seward",16/11/2022 00:00:00,"268715",520,"SO0400","SOUTHERN GREEN SERVICES LIMITED",31/10/2022 00:00:00,27/11/2022 00:00:00,"P08-2023"
,"LV CAMPSITE CARAVAN SALES","SUPPLIES AND SERVICES","MISCELLANEOUS CARAVAN COSTS","4174","P120029-SERVICE-Additional cost-faulty boiler",16/11/2022 00:00:00,"268716",480,"SO0400","SOUTHERN GREEN SERVICES LIMITED",31/10/2022 00:00:00,27/11/2022 00:00:00,"P08-2023"
,"LV CAMPSITE CARAVAN SALES","SUPPLIES AND SERVICES","MISCELLANEOUS CARAVAN COSTS","4174","P118634-SERVICE-Introduction Mark Slater Plot 29",27/11/2022 00:00:00,"269128",2500,"LO0459","LONDON LODGES UK",31/10/2022 00:00:00,27/11/2022 00:00:00,"P08-2023"
,"LEE VALLEY CARAVAN PARK","SUPPLIES AND SERVICES","MISCELLANEOUS CARAVAN COSTS","4174","P120125-SERVICE-Fire signs and blankets",27/11/2022 00:00:00,"268936",107.88,"SA0689","SAFETYSHOP",31/10/2022 00:00:00,27/11/2022 00:00:00,"P08-2023"
,"LEE VALLEY CARAVAN PARK","SUPPLIES AND SERVICES","MISCELLANEOUS CARAVAN COSTS","4174","P120150-SERVICE-Upgrade RCBO's in Peaky pods",27/11/2022 00:00:00,"268949",340,"BR0018","BRADSHAW ELECTRICAL LIMITED",31/10/2022 00:00:00,27/11/2022 00:00:00,"P08-2023"
,"LEE VALLEY CARAVAN PARK","SUPPLIES AND SERVICES","MISCELLANEOUS CARAVAN COSTS","4174","P120069-SERVICE-Name signs for Pecky Pods",27/11/2022 00:00:00,"269122",150,"SL0528","SLAM SIGNS LTD",31/10/2022 00:00:00,27/11/2022 00:00:00,"P08-2023"
,"LEE VALLEY CARAVAN PARK","SUPPLIES AND SERVICES","CONSUMABLES - LODGES","4181","P119893-SERVICE-Install 3 TV's in Peaky Pods",14/11/2022 00:00:00,"268339",765.75,"AS0343","ASCENT AERIALS",31/10/2022 00:00:00,27/11/2022 00:00:00,"P08-2023"
,"LEE VALLEY CARAVAN PARK","SUPPLIES AND SERVICES","CONSUMABLES - LODGES","4181","P119623-SERVICE-3 TV's for Pecky Pods and replacement for WB",14/11/2022 00:00:00,"268675",605.82,"PC0336","PC WORLD BUSINESS",31/10/2022 00:00:00,27/11/2022 00:00:00,"P08-2023"
,"LEE VALLEY CARAVAN PARK","SUPPLIES AND SERVICES","CONSUMABLES - LODGES","4181","P119997-SERVICE-Frosting for Peaky Pod Doors",27/11/2022 00:00:00,"269121",255,"SL0528","SLAM SIGNS LTD",31/10/2022 00:00:00,27/11/2022 00:00:00,"P08-2023"
"P&V","MYDDELTON HOUSE GARDENS","SUPPLIES AND SERVICES","CLOTHING & UNIFORMS","4225","P119570-SERVICE-uniform winter 22 gardens functional jacket",15/11/2022 00:00:00,"268514",362.3,"EN0283","ENGELBERT STRAUSS LIMITED",31/10/2022 00:00:00,27/11/2022 00:00:00,"P08-2023"
"P&V","SOUTH AREA RANGERS","SUPPLIES AND SERVICES","CLOTHING & UNIFORMS","4225","P119935-SERVICE-2x Ladies Peru Trousers Black Reg S10",14/11/2022 00:00:00,"268553",48.56,"IL0177","KEELA INTERNATION LTD",31/10/2022 00:00:00,27/11/2022 00:00:00,"P08-2023"
"P&V","SOUTH AREA RANGERS","SUPPLIES AND SERVICES","CLOTHING & UNIFORMS","4225","P119935-SERVICE-2x Peru Trousers Black Short W34",14/11/2022 00:00:00,"268553",48.56,"IL0177","KEELA INTERNATION LTD",31/10/2022 00:00:00,27/11/2022 00:00:00,"P08-2023"
"P&V","SOUTH AREA RANGERS","SUPPLIES AND SERVICES","CLOTHING & UNIFORMS","4225","P119935-SERVICE-Delivery to address below",14/11/2022 00:00:00,"268553",8,"IL0177","KEELA INTERNATION LTD",31/10/2022 00:00:00,27/11/2022 00:00:00,"P08-2023"
"P&V","SOUTH AREA RANGERS","SUPPLIES AND SERVICES","CLOTHING & UNIFORMS","4225","P119935-SERVICE-2x Ladies Peru Trousers Black Short S10",14/11/2022 00:00:00,"268553",48.56,"IL0177","KEELA INTERNATION LTD",31/10/2022 00:00:00,27/11/2022 00:00:00,"P08-2023"
"P&V","RIVER LEE COUNTRY PARK","SUPPLIES AND SERVICES","CLOTHING & UNIFORMS","4225","P119655-SERVICE-2x Stihl Braces with Metal Clips (black)",8/11/2022 00:00:00,"268089",31.32,"JO0109","F R JONES & SON",31/10/2022 00:00:00,27/11/2022 00:00:00,"P08-2023"
"P&V","RIVER LEE COUNTRY PARK","SUPPLIES AND SERVICES","CLOTHING & UNIFORMS","4225","P119655-SERVICE-1x Sthil All Round Leg Protection Chaps",8/11/2022 00:00:00,"268089",89.99,"JO0109","F R JONES & SON",31/10/2022 00:00:00,27/11/2022 00:00:00,"P08-2023"
"P&V","RIVER LEE COUNTRY PARK","SUPPLIES AND SERVICES","CLOTHING & UNIFORMS","4225","P119655-SERVICE-1x Stihl Dynamic Protect MS Chainsaw Gloves",14/11/2022 00:00:00,"268469",35,"JO0109","F R JONES & SON",31/10/2022 00:00:00,27/11/2022 00:00:00,"P08-2023"
"P&V","POLICY & PERFORMANCE (L&E)","SUPPLIES AND SERVICES","CLOTHING & UNIFORMS","4225","P120123-SERVICE-Embrodiery on own garments",27/11/2022 00:00:00,"269115",35.49,"DI0017","DIRECT BOOT & SHOE SUPPLIES",31/10/2022 00:00:00,27/11/2022 00:00:00,"P08-2023"
,"LEE VALLEY MARINA SPRINGFIELD","SUPPLIES AND SERVICES","OFFICE EXPENSES","4311","P119922-SERVICE-To supply items as requested",9/11/2022 00:00:00,"268526",249.31,"TH0008","JKL SOLUTIONS LTD",31/10/2022 00:00:00,27/11/2022 00:00:00,"P08-2023"
,"LEE VALLEY MARINA STANSTEAD","SUPPLIES AND SERVICES","OFFICE EXPENSES","4311","P120058-SERVICE-office Stationery nov 22",23/11/2022 00:00:00,"268941",161.64,"TH0008","JKL SOLUTIONS LTD",31/10/2022 00:00:00,27/11/2022 00:00:00,"P08-2023"
,"LEE VALLEY MARINA STANSTEAD","SUPPLIES AND SERVICES","OFFICE EXPENSES","4311","P120074-SERVICE-clipboards x 20",23/11/2022 00:00:00,"268942",37.4,"TH0008","JKL SOLUTIONS LTD",31/10/2022 00:00:00,27/11/2022 00:00:00,"P08-2023"
,"LEE VALLEY CAMPSITE","SUPPLIES AND SERVICES","OFFICE EXPENSES","4311","P119892-SERVICE-Laminate pouches",15/11/2022 00:00:00,"268343",34.06,"TH0008","JKL SOLUTIONS LTD",31/10/2022 00:00:00,27/11/2022 00:00:00,"P08-2023"
"P&V","WILDLIFE DISCOVERY CENTRE","SUPPLIES AND SERVICES","OFFICE EXPENSES","4311","P119770-SERVICE-Delivery to address below",22/11/2022 00:00:00,"268689",4.98,"AM0406","AMAZON PAYMENTS UK LIMITED",31/10/2022 00:00:00,27/11/2022 00:00:00,"P08-2023"
"P&V","WILDLIFE DISCOVERY CENTRE","SUPPLIES AND SERVICES","OFFICE EXPENSES","4311","P119770-SERVICE-1x10Pk 80 x 80mm Thermal Paper Till Rolls",22/11/2022 00:00:00,"268689",8.33,"AM0406","AMAZON PAYMENTS UK LIMITED",31/10/2022 00:00:00,27/11/2022 00:00:00,"P08-2023"
"P&V","POLICY & PERFORMANCE (L&E)","SUPPLIES AND SERVICES","OFFICE EXPENSES","4311","P119846-SERVICE-1 x 3pack A5 notebooks",8/11/2022 00:00:00,"268145",20.96,"TH0008","JKL SOLUTIONS LTD",31/10/2022 00:00:00,27/11/2022 00:00:00,"P08-2023"
"P&V","POLICY & PERFORMANCE (L&E)","SUPPLIES AND SERVICES","OFFICE EXPENSES","4311","P119846-SERVICE-1 x pack of 5 A4 notebooks",8/11/2022 00:00:00,"268145",12.26,"TH0008","JKL SOLUTIONS LTD",31/10/2022 00:00:00,27/11/2022 00:00:00,"P08-2023"
"P&V","POLICY & PERFORMANCE (L&E)","SUPPLIES AND SERVICES","OFFICE EXPENSES","4311","P119846-SERVICE-1 x White board user kit",8/11/2022 00:00:00,"268145",8.7,"TH0008","JKL SOLUTIONS LTD",31/10/2022 00:00:00,27/11/2022 00:00:00,"P08-2023"
"P&V","POLICY & PERFORMANCE (L&E)","SUPPLIES AND SERVICES","OFFICE EXPENSES","4311","P119846-SERVICE-1 x White board",8/11/2022 00:00:00,"268145",34.33,"TH0008","JKL SOLUTIONS LTD",31/10/2022 00:00:00,27/11/2022 00:00:00,"P08-2023"
"P&V","POLICY & PERFORMANCE (L&E)","SUPPLIES AND SERVICES","OFFICE EXPENSES","4311","P119846-SERVICE-1 x pack A5 hardback notebooks",8/11/2022 00:00:00,"268145",14.07,"TH0008","JKL SOLUTIONS LTD",31/10/2022 00:00:00,27/11/2022 00:00:00,"P08-2023"
,"LV LEISURE CENTRE CAMPSITE","SUPPLIES AND SERVICES","OFFICE EXPENSES","4311","P120034-SERVICE-Carbon copy",27/11/2022 00:00:00,"268939",14.77,"TH0008","JKL SOLUTIONS LTD",31/10/2022 00:00:00,27/11/2022 00:00:00,"P08-2023"
,"LV LEISURE CENTRE CAMPSITE","SUPPLIES AND SERVICES","OFFICE EXPENSES","4311","P120054-SERVICE-batteries and noticeboard",27/11/2022 00:00:00,"268940",112.27,"TH0008","JKL SOLUTIONS LTD",31/10/2022 00:00:00,27/11/2022 00:00:00,"P08-2023"
"R&B","INFORMATION TECHNOLOGY","SUPPLIES AND SERVICES","PHOTOCOPYING","4314","JANUARY-MARCH 2022",23/11/2022 00:00:00,"261385",39.77,"KO0071","KONICA MINOLTA BUSINESS SOLUTIONS ( UK) LTD",31/10/2022 00:00:00,27/11/2022 00:00:00,"P08-2023"
"R&B","INFORMATION TECHNOLOGY","SUPPLIES AND SERVICES","PHOTOCOPYING","4314","JULY-SEPTEMBER 2020",23/11/2022 00:00:00,"262901",9.49,"KO0071","KONICA MINOLTA BUSINESS SOLUTIONS ( UK) LTD",31/10/2022 00:00:00,27/11/2022 00:00:00,"P08-2023"
"R&B","INFORMATION TECHNOLOGY","SUPPLIES AND SERVICES","PHOTOCOPYING","4314","JULY-DECEMBER 2020",23/11/2022 00:00:00,"262902",2.96,"KO0071","KONICA MINOLTA BUSINESS SOLUTIONS ( UK) LTD",31/10/2022 00:00:00,27/11/2022 00:00:00,"P08-2023"
"R&B","INFORMATION TECHNOLOGY","SUPPLIES AND SERVICES","PHOTOCOPYING","4314","JULY-DECEMBER 2020",23/11/2022 00:00:00,"262903",4.62,"KO0071","KONICA MINOLTA BUSINESS SOLUTIONS ( UK) LTD",31/10/2022 00:00:00,27/11/2022 00:00:00,"P08-2023"
"R&B","INFORMATION TECHNOLOGY","SUPPLIES AND SERVICES","PHOTOCOPYING","4314","APRIL-DECEMBER 2020",23/11/2022 00:00:00,"262904",12.3,"KO0071","KONICA MINOLTA BUSINESS SOLUTIONS ( UK) LTD",31/10/2022 00:00:00,27/11/2022 00:00:00,"P08-2023"
"R&B","INFORMATION TECHNOLOGY","SUPPLIES AND SERVICES","PHOTOCOPYING","4314","JANUARY-MARCH 2021",23/11/2022 00:00:00,"262905",4.55,"KO0071","KONICA MINOLTA BUSINESS SOLUTIONS ( UK) LTD",31/10/2022 00:00:00,27/11/2022 00:00:00,"P08-2023"
"R&B","INFORMATION TECHNOLOGY","SUPPLIES AND SERVICES","PHOTOCOPYING","4314","JANUARY-MARCH 2021",23/11/2022 00:00:00,"262906",8.1,"KO0071","KONICA MINOLTA BUSINESS SOLUTIONS ( UK) LTD",31/10/2022 00:00:00,27/11/2022 00:00:00,"P08-2023"
"R&B","INFORMATION TECHNOLOGY","SUPPLIES AND SERVICES","PHOTOCOPYING","4314","KONICA MINOLTA BUSINESS SOLUTI",23/11/2022 00:00:00,"268968",-39.77,"KO0071","KONICA MINOLTA BUSINESS SOLUTIONS ( UK) LTD",31/10/2022 00:00:00,27/11/2022 00:00:00,"P08-2023"
"R&B","INFORMATION TECHNOLOGY","SUPPLIES AND SERVICES","PHOTOCOPYING","4314","KONICA MINOLTA BUSINESS SOLUTI",23/11/2022 00:00:00,"268969",-9.49,"KO0071","KONICA MINOLTA BUSINESS SOLUTIONS ( UK) LTD",31/10/2022 00:00:00,27/11/2022 00:00:00,"P08-2023"
"R&B","INFORMATION TECHNOLOGY","SUPPLIES AND SERVICES","PHOTOCOPYING","4314","KONICA MINOLTA BUSINESS SOLUTI",23/11/2022 00:00:00,"268970",-2.96,"KO0071","KONICA MINOLTA BUSINESS SOLUTIONS ( UK) LTD",31/10/2022 00:00:00,27/11/2022 00:00:00,"P08-2023"
"R&B","INFORMATION TECHNOLOGY","SUPPLIES AND SERVICES","PHOTOCOPYING","4314","KONICA MINOLTA BUSINESS SOLUTI",23/11/2022 00:00:00,"268971",-12.3,"KO0071","KONICA MINOLTA BUSINESS SOLUTIONS ( UK) LTD",31/10/2022 00:00:00,27/11/2022 00:00:00,"P08-2023"
"R&B","INFORMATION TECHNOLOGY","SUPPLIES AND SERVICES","PHOTOCOPYING","4314","KONICA MINOLTA BUSINESS SOLUTI",23/11/2022 00:00:00,"268972",-4.62,"KO0071","KONICA MINOLTA BUSINESS SOLUTIONS ( UK) LTD",31/10/2022 00:00:00,27/11/2022 00:00:00,"P08-2023"
"R&B","INFORMATION TECHNOLOGY","SUPPLIES AND SERVICES","PHOTOCOPYING","4314","KONICA MINOLTA BUSINESS SOLUTI",23/11/2022 00:00:00,"268973",-4.55,"KO0071","KONICA MINOLTA BUSINESS SOLUTIONS ( UK) LTD",31/10/2022 00:00:00,27/11/2022 00:00:00,"P08-2023"
"R&B","INFORMATION TECHNOLOGY","SUPPLIES AND SERVICES","PHOTOCOPYING","4314","KONICA MINOLTA BUSINESS SOLUTI",23/11/2022 00:00:00,"268974",-8.1,"KO0071","KONICA MINOLTA BUSINESS SOLUTIONS ( UK) LTD",31/10/2022 00:00:00,27/11/2022 00:00:00,"P08-2023"
"P&V","LEE VALLEY FARM HOLYFIELDHALL","SUPPLIES AND SERVICES","SUBSCRIPTIONS","4334","P117608-SERVICE-Subs",14/11/2022 00:00:00,"268580",390.98,"NA0005","NATIONAL MILK RECORDS PLC",31/10/2022 00:00:00,27/11/2022 00:00:00,"P08-2023"
"P&V","MYDDELTON HOUSE","SUPPLIES AND SERVICES","POSTAGE & MAILING","4445","PITNEY BOWES PURCHASE POWER",16/11/2022 00:00:00,"268713",1.16,"PI0021","PITNEY BOWES PURCHASE POWER",31/10/2022 00:00:00,27/11/2022 00:00:00,"P08-2023"
"R&B","REVENUE SUSPENSE (AUTHORITY)","SUPPLIES AND SERVICES","TELEPHONES (OFFICE)","4481","NOVEMBER 2022",9/11/2022 00:00:00,"268561",2169.82,"ID0002","DAISY COMMUNICATIONS LTD",31/10/2022 00:00:00,27/11/2022 00:00:00,"P08-2023"
"R&B","REVENUE SUSPENSE (AUTHORITY)","SUPPLIES AND SERVICES","TELEPHONES (MOBILE)","4484","OCTOBER 2022",14/11/2022 00:00:00,"268579",690.19,"GA0432","GAMMA TELECOM LTD",31/10/2022 00:00:00,27/11/2022 00:00:00,"P08-2023"
"R&B","REVENUE SUSPENSE (AUTHORITY)","SUPPLIES AND SERVICES","TELEPHONES (MOBILE)","4484","NOVEMBER 2022",27/11/2022 00:00:00,"269138",353.02,"VO0010","VODAFONE  LIMITED (CORPORATE)",31/10/2022 00:00:00,27/11/2022 00:00:00,"P08-2023"
"R&B","DEMOCRATIC REPRESENTATION & MA","SUPPLIES AND SERVICES","MEMBERS EXPENSES","4502","P120111-SERVICE-Catering on 17/11/22",23/11/2022 00:00:00,"268964",104.3,"SH0256","SHARRONS EVENT CATERING COMPANY LTD",31/10/2022 00:00:00,27/11/2022 00:00:00,"P08-2023"
,"LEE VALLEY CAMPSITE","SUPPLIES AND SERVICES","MARKETING","4603","P119865-SERVICE-Site Map holiday home area",22/11/2022 00:00:00,"268731",200,"TO0631","TOP FLOOR CREATIVE",31/10/2022 00:00:00,27/11/2022 00:00:00,"P08-2023"
,"LEE VALLEY CAMPSITE","SUPPLIES AND SERVICES","MARKETING","4603","P120031-SERVICE-Sewardstone Listing 2yrs Sept 22-24",22/11/2022 00:00:00,"268883",249.17,"CA0368","THE CAMPING & CARAVANNING CLUB",31/10/2022 00:00:00,27/11/2022 00:00:00,"P08-2023"
,"LEE VALLEY CARAVAN PARK","SUPPLIES AND SERVICES","MARKETING","4603","P120031-SERVICE-Dobbs Weir Listings 2yrs 2022-23",22/11/2022 00:00:00,"268883",249.17,"CA0368","THE CAMPING & CARAVANNING CLUB",31/10/2022 00:00:00,27/11/2022 00:00:00,"P08-2023"
"P&V","RIVER LEE COUNTRY PARK","SUPPLIES AND SERVICES","MARKETING","4603","P120047-SERVICE-Signs for Old Mill & Meadows",27/11/2022 00:00:00,"269112",74,"SI0024","SIGNS EXPRESS (HARLOW)",31/10/2022 00:00:00,27/11/2022 00:00:00,"P08-2023"
"P&V","RIVER LEE COUNTRY PARK","SUPPLIES AND SERVICES","MARKETING","4603","P120047-SERVICE-Delivery of the above via overnight courier.",27/11/2022 00:00:00,"269112",15,"SI0024","SIGNS EXPRESS (HARLOW)",31/10/2022 00:00:00,27/11/2022 00:00:00,"P08-2023"
,"LV LEISURE CENTRE CAMPSITE","SUPPLIES AND SERVICES","MARKETING","4603","P119757-SERVICE-Arrival cards",14/11/2022 00:00:00,"268069",34.6,"SO0582","SOLOPRESS",31/10/2022 00:00:00,27/11/2022 00:00:00,"P08-2023"
,"LV LEISURE CENTRE CAMPSITE","SUPPLIES AND SERVICES","MARKETING","4603","P120031-SERVICE-Edmonton Listings Sept 2022-2023",22/11/2022 00:00:00,"268883",249.17,"CA0368","THE CAMPING & CARAVANNING CLUB",31/10/2022 00:00:00,27/11/2022 00:00:00,"P08-2023"
,"LEE VALLEY MARINA SPRINGFIELD","SUPPLIES AND SERVICES","MERCHANT PROCESSING CHARGES","4641","YESPAY INTERNATIONAL",14/11/2022 00:00:00,"268369",30,"WO0338","WORLDPAY",31/10/2022 00:00:00,27/11/2022 00:00:00,"P08-2023"
,"LEE VALLEY MARINA STANSTEAD","SUPPLIES AND SERVICES","MERCHANT PROCESSING CHARGES","4641","YESPAY INTERNATIONAL",14/11/2022 00:00:00,"268369",30,"WO0338","WORLDPAY",31/10/2022 00:00:00,27/11/2022 00:00:00,"P08-2023"
"R&B","FINANCE & RESOURCES MANAGEMENT","SUPPLIES AND SERVICES","DEBT RECOVERY FEES","4646","P117729-SERVICE-DEBT RECOVERY FEES 2022/2023",22/11/2022 00:00:00,"268880",226.39,"LE0069","LEGAL RECOVERIES AND COLLECTIONS LIMITED",31/10/2022 00:00:00,27/11/2022 00:00:00,"P08-2023"
,"LEE VALLEY MARINA STANSTEAD","SUPPLIES AND SERVICES","SECURITY","4650","P119871-SERVICE-reset tamper fault and replace 3xbell battery",14/11/2022 00:00:00,"268121",390.44,"CH0088","CHUBB FIRE & SECURITY",31/10/2022 00:00:00,27/11/2022 00:00:00,"P08-2023"
,"LEE VALLEY MARINA STANSTEAD","SUPPLIES AND SERVICES","SECURITY","4650","P118840-SERVICE-3 boxes of security fobs AIS",14/11/2022 00:00:00,"268307",100.53,"AI0262","AIS ( ADVANCED INTEGRATED SECURITY)",31/10/2022 00:00:00,27/11/2022 00:00:00,"P08-2023"
"P&V","EAST INDIA DOCK AND BOW CREEK","SUPPLIES AND SERVICES","SECURITY","4650","P118178-SERVICE-Security - South of Park",27/11/2022 00:00:00,"268995",6590.43,"PA0059","PARKGUARD LTD",31/10/2022 00:00:00,27/11/2022 00:00:00,"P08-2023"
"P&V","SOUTH AREA RANGERS","SUPPLIES AND SERVICES","SECURITY","4650","P118177-SERVICE-Security - South of Park",27/11/2022 00:00:00,"268995",1181.77,"PA0059","PARKGUARD LTD",31/10/2022 00:00:00,27/11/2022 00:00:00,"P08-2023"
"P&V","ABBEY GARDENS","SUPPLIES AND SERVICES","SECURITY","4650","P118180-SERVICE-Security - North of Park",27/11/2022 00:00:00,"268996",5968.41,"PA0059","PARKGUARD LTD",31/10/2022 00:00:00,27/11/2022 00:00:00,"P08-2023"
"P&V","RIVER LEE COUNTRY PARK","SUPPLIES AND SERVICES","SECURITY","4650","P118176-SERVICE-Security - North of Park",27/11/2022 00:00:00,"268996",192.86,"PA0059","PARKGUARD LTD",31/10/2022 00:00:00,27/11/2022 00:00:00,"P08-2023"
,"LV LEISURE CENTRE CAMPSITE","SUPPLIES AND SERVICES","SECURITY","4650","P119989-SERVICE-cctv",14/11/2022 00:00:00,"267944",395,"RV0035","RVTV SECURITY GROUP LTD",31/10/2022 00:00:00,27/11/2022 00:00:00,"P08-2023"
,"LV LEISURE CENTRE CAMPSITE","SUPPLIES AND SERVICES","SECURITY","4650","P120059-SERVICE-Fire Alarm",17/11/2022 00:00:00,"267945",280,"RV0035","RVTV SECURITY GROUP LTD",31/10/2022 00:00:00,27/11/2022 00:00:00,"P08-2023"
,"LV LEISURE CENTRE CAMPSITE","SUPPLIES AND SERVICES","SECURITY","4650","P119726-SERVICE-Edmonton Barrier Repairs",8/11/2022 00:00:00,"268499",3788,"DE0013","DENNIS SECURITY CENTRE",31/10/2022 00:00:00,27/11/2022 00:00:00,"P08-2023"
"CEO","LVLC SERVICE CHARGE","SUPPLIES AND SERVICES","SECURITY","4650","P119674-SERVICE-Security",14/11/2022 00:00:00,"268341",2972.28,"SA0626","SAFESITE SECURITY SOLUTIONS LTD",31/10/2022 00:00:00,27/11/2022 00:00:00,"P08-2023"
"CEO","LVLC SERVICE CHARGE","SUPPLIES AND SERVICES","SECURITY","4650","P119848-SERVICE-1 Hour Parkguard Patrol at Picketts Lock Adde",22/11/2022 00:00:00,"268707",875.96,"PA0059","PARKGUARD LTD",31/10/2022 00:00:00,27/11/2022 00:00:00,"P08-2023"
"CEO","LVLC SERVICE CHARGE","SUPPLIES AND SERVICES","SECURITY","4650","P119848-SERVICE-1 Hour Parkguard Patrol at Picketts Lock Adde",22/11/2022 00:00:00,"268729",960.09,"PA0059","PARKGUARD LTD",31/10/2022 00:00:00,27/11/2022 00:00:00,"P08-2023"
"R&B","PERFORMANCE MANAGEMENT","SUPPLIES AND SERVICES","OFFSITE ARCHIVED STORAGE","4667","P120008-SERVICE-Off site storeage October 2022",16/11/2022 00:00:00,"268529",334.88,"DA0154","RESTORE PLC",31/10/2022 00:00:00,27/11/2022 00:00:00,"P08-2023"
"P&V","LEE VALLEY FARM HOLYFIELDHALL","THIRD PARTY PAYMENTS","VETERINARY SERVICES","4718","P119985-SERVICE-Vets",14/11/2022 00:00:00,"268525",2167.16,"HA0443","HAMPDEN VETERINARY HOSPITAL",31/10/2022 00:00:00,27/11/2022 00:00:00,"P08-2023"
"P&V","YOUTH AND SCHOOLS","SUPPLIES AND SERVICES","FACILITIES HIRE","4752","P119904-SERVICE-Hall hire Abbey farm house",8/11/2022 00:00:00,"268340",1041.99,"WA0108","WALTHAM ABBEY PAROCHIAL CHURCH COUNCIL",31/10/2022 00:00:00,27/11/2022 00:00:00,"P08-2023"
"P&V","MYDDLETON HSE HERITAGE CENTRE","SUPPLIES AND SERVICES","NET CATERING PURCHASES","4777","P119838-SERVICE-Food/drink order week comm 24/10/2022",8/11/2022 00:00:00,"268157",444.18,"360001","BIDFOOD",31/10/2022 00:00:00,27/11/2022 00:00:00,"P08-2023"
"P&V","MYDDLETON HSE HERITAGE CENTRE","SUPPLIES AND SERVICES","NET CATERING PURCHASES","4777","BIDFOOD",8/11/2022 00:00:00,"268157",112.92,"360001","BIDFOOD",31/10/2022 00:00:00,27/11/2022 00:00:00,"P08-2023"
"P&V","MYDDLETON HSE HERITAGE CENTRE","SUPPLIES AND SERVICES","NET CATERING PURCHASES","4777","BIDFOOD",8/11/2022 00:00:00,"268157",-444.18,"360001","BIDFOOD",31/10/2022 00:00:00,27/11/2022 00:00:00,"P08-2023"
"P&V","MYDDLETON HSE HERITAGE CENTRE","SUPPLIES AND SERVICES","NET CATERING PURCHASES","4777","BIDFOOD",8/11/2022 00:00:00,"268157",331.26,"360001","BIDFOOD",31/10/2022 00:00:00,27/11/2022 00:00:00,"P08-2023"
"P&V","MYDDLETON HSE HERITAGE CENTRE","SUPPLIES AND SERVICES","NET CATERING PURCHASES","4777","BIDFOOD",15/11/2022 00:00:00,"268285",44.42,"360001","BIDFOOD",31/10/2022 00:00:00,27/11/2022 00:00:00,"P08-2023"
"P&V","MYDDLETON HSE HERITAGE CENTRE","SUPPLIES AND SERVICES","NET CATERING PURCHASES","4777","BIDFOOD",15/11/2022 00:00:00,"268285",296.85,"360001","BIDFOOD",31/10/2022 00:00:00,27/11/2022 00:00:00,"P08-2023"
"P&V","MYDDLETON HSE HERITAGE CENTRE","SUPPLIES AND SERVICES","NET CATERING PURCHASES","4777","P119389-SERVICE-food/drinks order VC sept 14.9",15/11/2022 00:00:00,"268285",341.27,"360001","BIDFOOD",31/10/2022 00:00:00,27/11/2022 00:00:00,"P08-2023"
"P&V","MYDDLETON HSE HERITAGE CENTRE","SUPPLIES AND SERVICES","NET CATERING PURCHASES","4777","BIDFOOD",15/11/2022 00:00:00,"268285",-341.27,"360001","BIDFOOD",31/10/2022 00:00:00,27/11/2022 00:00:00,"P08-2023"
"P&V","MYDDLETON HSE HERITAGE CENTRE","SUPPLIES AND SERVICES","NET CATERING PURCHASES","4777","BIDFOOD",15/11/2022 00:00:00,"268352",-589.05,"360001","BIDFOOD",31/10/2022 00:00:00,27/11/2022 00:00:00,"P08-2023"
"P&V","MYDDLETON HSE HERITAGE CENTRE","SUPPLIES AND SERVICES","NET CATERING PURCHASES","4777","BIDFOOD",15/11/2022 00:00:00,"268352",401.21,"360001","BIDFOOD",31/10/2022 00:00:00,27/11/2022 00:00:00,"P08-2023"
"P&V","MYDDLETON HSE HERITAGE CENTRE","SUPPLIES AND SERVICES","NET CATERING PURCHASES","4777","P119915-SERVICE-food/drinks order nov 22",15/11/2022 00:00:00,"268352",589.05,"360001","BIDFOOD",31/10/2022 00:00:00,27/11/2022 00:00:00,"P08-2023"
"P&V","MYDDLETON HSE HERITAGE CENTRE","SUPPLIES AND SERVICES","NET CATERING PURCHASES","4777","BIDFOOD",15/11/2022 00:00:00,"268352",187.84,"360001","BIDFOOD",31/10/2022 00:00:00,27/11/2022 00:00:00,"P08-2023"
"P&V","MYDDLETON HSE HERITAGE CENTRE","SUPPLIES AND SERVICES","NET CATERING PURCHASES","4777","P119836-SERVICE-Coffee order week com 24/10/2022",15/11/2022 00:00:00,"268457",130.95,"TU0194","TUDOR TEA & COFFEE",31/10/2022 00:00:00,27/11/2022 00:00:00,"P08-2023"
"P&V","MYDDLETON HSE HERITAGE CENTRE","SUPPLIES AND SERVICES","NET CATERING PURCHASES","4777","P119836-SERVICE-Coffee order week com 24/10/2022",27/11/2022 00:00:00,"268458",138,"TU0194","TUDOR TEA & COFFEE",31/10/2022 00:00:00,27/11/2022 00:00:00,"P08-2023"
"P&V","MYDDLETON HSE HERITAGE CENTRE","SUPPLIES AND SERVICES","NET CATERING PURCHASES","4777","P119912-SERVICE-food/drinks order oct 22",15/11/2022 00:00:00,"268495",-8.43,"360001","BIDFOOD",31/10/2022 00:00:00,27/11/2022 00:00:00,"P08-2023"
"P&V","MYDDLETON HSE HERITAGE CENTRE","SUPPLIES AND SERVICES","NET CATERING PURCHASES","4777","BIDFOOD",15/11/2022 00:00:00,"268496",104.34,"360001","BIDFOOD",31/10/2022 00:00:00,27/11/2022 00:00:00,"P08-2023"
"P&V","MYDDLETON HSE HERITAGE CENTRE","SUPPLIES AND SERVICES","NET CATERING PURCHASES","4777","BIDFOOD",15/11/2022 00:00:00,"268496",-156.68,"360001","BIDFOOD",31/10/2022 00:00:00,27/11/2022 00:00:00,"P08-2023"
"P&V","MYDDLETON HSE HERITAGE CENTRE","SUPPLIES AND SERVICES","NET CATERING PURCHASES","4777","P119915-SERVICE-food/drinks order nov 22",15/11/2022 00:00:00,"268496",156.68,"360001","BIDFOOD",31/10/2022 00:00:00,27/11/2022 00:00:00,"P08-2023"
"P&V","MYDDLETON HSE HERITAGE CENTRE","SUPPLIES AND SERVICES","NET CATERING PURCHASES","4777","BIDFOOD",15/11/2022 00:00:00,"268496",52.34,"360001","BIDFOOD",31/10/2022 00:00:00,27/11/2022 00:00:00,"P08-2023"
"P&V","MYDDLETON HSE HERITAGE CENTRE","SUPPLIES AND SERVICES","NET CATERING PURCHASES","4777","P119915-SERVICE-food/drinks order nov 22",15/11/2022 00:00:00,"268507",5.13,"360001","BIDFOOD",31/10/2022 00:00:00,27/11/2022 00:00:00,"P08-2023"
"P&V","MYDDLETON HSE HERITAGE CENTRE","SUPPLIES AND SERVICES","NET CATERING PURCHASES","4777","BIDFOOD",15/11/2022 00:00:00,"268569",10.89,"360001","BIDFOOD",31/10/2022 00:00:00,27/11/2022 00:00:00,"P08-2023"
"P&V","MYDDLETON HSE HERITAGE CENTRE","SUPPLIES AND SERVICES","NET CATERING PURCHASES","4777","BIDFOOD",15/11/2022 00:00:00,"268569",-249.14,"360001","BIDFOOD",31/10/2022 00:00:00,27/11/2022 00:00:00,"P08-2023"
"P&V","MYDDLETON HSE HERITAGE CENTRE","SUPPLIES AND SERVICES","NET CATERING PURCHASES","4777","P119389-SERVICE-food/drinks order VC sept 14.9",15/11/2022 00:00:00,"268569",10.72,"360001","BIDFOOD",31/10/2022 00:00:00,27/11/2022 00:00:00,"P08-2023"
"P&V","MYDDLETON HSE HERITAGE CENTRE","SUPPLIES AND SERVICES","NET CATERING PURCHASES","4777","P119915-SERVICE-food/drinks order nov 22",15/11/2022 00:00:00,"268569",249.14,"360001","BIDFOOD",31/10/2022 00:00:00,27/11/2022 00:00:00,"P08-2023"
"P&V","MYDDLETON HSE HERITAGE CENTRE","SUPPLIES AND SERVICES","NET CATERING PURCHASES","4777","BIDFOOD",15/11/2022 00:00:00,"268569",238.25,"360001","BIDFOOD",31/10/2022 00:00:00,27/11/2022 00:00:00,"P08-2023"
"P&V","MYDDLETON HSE HERITAGE CENTRE","SUPPLIES AND SERVICES","NET CATERING PURCHASES","4777","P119915-SERVICE-food/drinks order nov 22",15/11/2022 00:00:00,"268571",-11.59,"360001","BIDFOOD",31/10/2022 00:00:00,27/11/2022 00:00:00,"P08-2023"
"P&V","MYDDLETON HSE HERITAGE CENTRE","SUPPLIES AND SERVICES","NET CATERING PURCHASES","4777","P119986-SERVICE-Food/Drink order week comm 07 Nov 2022",22/11/2022 00:00:00,"268725",148.32,"360001","BIDFOOD",31/10/2022 00:00:00,27/11/2022 00:00:00,"P08-2023"
"P&V","MYDDLETON HSE HERITAGE CENTRE","SUPPLIES AND SERVICES","NET CATERING PURCHASES","4777","BIDFOOD",22/11/2022 00:00:00,"268726",185.6,"360001","BIDFOOD",31/10/2022 00:00:00,27/11/2022 00:00:00,"P08-2023"
"P&V","MYDDLETON HSE HERITAGE CENTRE","SUPPLIES AND SERVICES","NET CATERING PURCHASES","4777","BIDFOOD",22/11/2022 00:00:00,"268726",-347.68,"360001","BIDFOOD",31/10/2022 00:00:00,27/11/2022 00:00:00,"P08-2023"
"P&V","MYDDLETON HSE HERITAGE CENTRE","SUPPLIES AND SERVICES","NET CATERING PURCHASES","4777","BIDFOOD",22/11/2022 00:00:00,"268726",162.31,"360001","BIDFOOD",31/10/2022 00:00:00,27/11/2022 00:00:00,"P08-2023"
"P&V","MYDDLETON HSE HERITAGE CENTRE","SUPPLIES AND SERVICES","NET CATERING PURCHASES","4777","P119986-SERVICE-Food/Drink order week comm 07 Nov 2022",22/11/2022 00:00:00,"268726",347.68,"360001","BIDFOOD",31/10/2022 00:00:00,27/11/2022 00:00:00,"P08-2023"
"P&V","MYDDLETON HSE HERITAGE CENTRE","SUPPLIES AND SERVICES","NET CATERING PURCHASES","4777","BIDFOOD",27/11/2022 00:00:00,"268901",319.85,"360001","BIDFOOD",31/10/2022 00:00:00,27/11/2022 00:00:00,"P08-2023"
"P&V","MYDDLETON HSE HERITAGE CENTRE","SUPPLIES AND SERVICES","NET CATERING PURCHASES","4777","BIDFOOD",27/11/2022 00:00:00,"268901",74.88,"360001","BIDFOOD",31/10/2022 00:00:00,27/11/2022 00:00:00,"P08-2023"
"P&V","MYDDLETON HSE HERITAGE CENTRE","SUPPLIES AND SERVICES","NET CATERING PURCHASES","4777","P120051-SERVICE-food/drinks tearooms nov 22",27/11/2022 00:00:00,"268901",394.73,"360001","BIDFOOD",31/10/2022 00:00:00,27/11/2022 00:00:00,"P08-2023"
"P&V","MYDDLETON HSE HERITAGE CENTRE","SUPPLIES AND SERVICES","NET CATERING PURCHASES","4777","BIDFOOD",27/11/2022 00:00:00,"268901",-394.73,"360001","BIDFOOD",31/10/2022 00:00:00,27/11/2022 00:00:00,"P08-2023"
"P&V","MYDDLETON HSE HERITAGE CENTRE","SUPPLIES AND SERVICES","NET CATERING PURCHASES","4777","BIDFOOD",22/11/2022 00:00:00,"268925",-151.37,"360001","BIDFOOD",31/10/2022 00:00:00,27/11/2022 00:00:00,"P08-2023"
"P&V","MYDDLETON HSE HERITAGE CENTRE","SUPPLIES AND SERVICES","NET CATERING PURCHASES","4777","BIDFOOD",22/11/2022 00:00:00,"268925",25.17,"360001","BIDFOOD",31/10/2022 00:00:00,27/11/2022 00:00:00,"P08-2023"
"P&V","MYDDLETON HSE HERITAGE CENTRE","SUPPLIES AND SERVICES","NET CATERING PURCHASES","4777","P120051-SERVICE-food/drinks tearooms nov 22",22/11/2022 00:00:00,"268925",151.37,"360001","BIDFOOD",31/10/2022 00:00:00,27/11/2022 00:00:00,"P08-2023"
"P&V","MYDDLETON HSE HERITAGE CENTRE","SUPPLIES AND SERVICES","NET CATERING PURCHASES","4777","BIDFOOD",22/11/2022 00:00:00,"268925",126.2,"360001","BIDFOOD",31/10/2022 00:00:00,27/11/2022 00:00:00,"P08-2023"
"P&V","MYDDELTON HOUSE","SUPPLIES AND SERVICES","TRADING AC - EXTERNAL PURCHASE","4875","P119937-SERVICE-1 x Kenco Really Smooth (53526)",22/11/2022 00:00:00,"268724",18.99,"360001","BIDFOOD",31/10/2022 00:00:00,27/11/2022 00:00:00,"P08-2023"
"P&V","MYDDELTON HOUSE","SUPPLIES AND SERVICES","TRADING AC - EXTERNAL PURCHASE","4875","P119937-SERVICE-2 x Soya Milk Substitute Portions (73374)",22/11/2022 00:00:00,"268724",9.58,"360001","BIDFOOD",31/10/2022 00:00:00,27/11/2022 00:00:00,"P08-2023"
"P&V","MYDDELTON HOUSE","SUPPLIES AND SERVICES","TRADING AC - EXTERNAL PURCHASE","4875","P119937-SERVICE-1 x Box Luxury Biscuits (01048)",22/11/2022 00:00:00,"268724",12.48,"360001","BIDFOOD",31/10/2022 00:00:00,27/11/2022 00:00:00,"P08-2023"
"P&V","MYDDELTON HOUSE","SUPPLIES AND SERVICES","TRADING AC - EXTERNAL PURCHASE","4875","P119937-SERVICE-1 x Box Luxury Biscuits (01048)",22/11/2022 00:00:00,"268907",7.71,"360001","BIDFOOD",31/10/2022 00:00:00,27/11/2022 00:00:00,"P08-2023"
"P&V","MYDDELTON HOUSE","SUPPLIES AND SERVICES","TRADING AC - EXTERNAL PURCHASE","4875","P119937-SERVICE-1 x Box Assorted Biscuits (20028)",22/11/2022 00:00:00,"268907",11.5,"360001","BIDFOOD",31/10/2022 00:00:00,27/11/2022 00:00:00,"P08-2023"
,"LEE VALLEY MARINA SPRINGFIELD","SUPPLIES AND SERVICES","TRADING AC - EXTERNAL PURCHASE","4875","P117925-SERVICE-Chandlery Stock",8/11/2022 00:00:00,"266266",225,"HA0371","HARTS OF OAK",31/10/2022 00:00:00,27/11/2022 00:00:00,"P08-2023"
,"LEE VALLEY MARINA SPRINGFIELD","SUPPLIES AND SERVICES","TRADING AC - EXTERNAL PURCHASE","4875","P119942-SERVICE-Chandlery Stock  (fuel connectors)",8/11/2022 00:00:00,"267935",8.63,"AQ0033","AQUAFAX LIMITED",31/10/2022 00:00:00,27/11/2022 00:00:00,"P08-2023"
,"LEE VALLEY MARINA SPRINGFIELD","SUPPLIES AND SERVICES","TRADING AC - EXTERNAL PURCHASE","4875","P119942-SERVICE-Chandlery Stock  (fuel connectors)",8/11/2022 00:00:00,"268257",10.22,"AQ0033","AQUAFAX LIMITED",31/10/2022 00:00:00,27/11/2022 00:00:00,"P08-2023"
,"LEE VALLEY MARINA SPRINGFIELD","SUPPLIES AND SERVICES","TRADING AC - EXTERNAL PURCHASE","4875","MIDLAND CHANDLERS LIMITED",8/11/2022 00:00:00,"268324",12.41,"MI0200","MIDLAND CHANDLERS LIMITED",31/10/2022 00:00:00,27/11/2022 00:00:00,"P08-2023"
,"LEE VALLEY MARINA SPRINGFIELD","SUPPLIES AND SERVICES","TRADING AC - EXTERNAL PURCHASE","4875","P119890-SERVICE-Chandlery Stock  914220",8/11/2022 00:00:00,"268324",356.69,"MI0200","MIDLAND CHANDLERS LIMITED",31/10/2022 00:00:00,27/11/2022 00:00:00,"P08-2023"
,"LEE VALLEY MARINA SPRINGFIELD","SUPPLIES AND SERVICES","TRADING AC - EXTERNAL PURCHASE","4875","MIDLAND CHANDLERS LIMITED",8/11/2022 00:00:00,"268324",-356.69,"MI0200","MIDLAND CHANDLERS LIMITED",31/10/2022 00:00:00,27/11/2022 00:00:00,"P08-2023"
,"LEE VALLEY MARINA SPRINGFIELD","SUPPLIES AND SERVICES","TRADING AC - EXTERNAL PURCHASE","4875","MIDLAND CHANDLERS LIMITED",8/11/2022 00:00:00,"268324",344.28,"MI0200","MIDLAND CHANDLERS LIMITED",31/10/2022 00:00:00,27/11/2022 00:00:00,"P08-2023"
,"LEE VALLEY MARINA SPRINGFIELD","SUPPLIES AND SERVICES","TRADING AC - EXTERNAL PURCHASE","4875","P119850-SERVICE-Chandlery Stock  116177",8/11/2022 00:00:00,"268328",10.35,"AQ0033","AQUAFAX LIMITED",31/10/2022 00:00:00,27/11/2022 00:00:00,"P08-2023"
,"LEE VALLEY MARINA SPRINGFIELD","SUPPLIES AND SERVICES","TRADING AC - EXTERNAL PURCHASE","4875","P119906-SERVICE-Chandlery Stock (assorted items)  914585",8/11/2022 00:00:00,"268365",163.83,"MI0200","MIDLAND CHANDLERS LIMITED",31/10/2022 00:00:00,27/11/2022 00:00:00,"P08-2023"
,"LEE VALLEY MARINA SPRINGFIELD","SUPPLIES AND SERVICES","TRADING AC - EXTERNAL PURCHASE","4875","P119905-SERVICE-Chandlery Stock - general stock  116696",8/11/2022 00:00:00,"268366",355.73,"AQ0033","AQUAFAX LIMITED",31/10/2022 00:00:00,27/11/2022 00:00:00,"P08-2023"
,"LEE VALLEY MARINA SPRINGFIELD","SUPPLIES AND SERVICES","TRADING AC - EXTERNAL PURCHASE","4875","P119829-SERVICE-Batteries - 10x leisure, 6 x 644 starter",8/11/2022 00:00:00,"268498",1440.24,"EC0394","MANBAT LTD T/AS",31/10/2022 00:00:00,27/11/2022 00:00:00,"P08-2023"
,"LEE VALLEY MARINA SPRINGFIELD","SUPPLIES AND SERVICES","TRADING AC - EXTERNAL PURCHASE","4875","P119759-SERVICE-Chandlery Stock Logs (small and large)",9/11/2022 00:00:00,"268508",505,"HA0371","HARTS OF OAK",31/10/2022 00:00:00,27/11/2022 00:00:00,"P08-2023"
,"LEE VALLEY MARINA SPRINGFIELD","SUPPLIES AND SERVICES","TRADING AC - EXTERNAL PURCHASE","4875","P117925-SERVICE-Chandlery Stock",8/11/2022 00:00:00,"268510",-225,"HA0371","HARTS OF OAK",31/10/2022 00:00:00,27/11/2022 00:00:00,"P08-2023"
,"LEE VALLEY MARINA SPRINGFIELD","SUPPLIES AND SERVICES","TRADING AC - EXTERNAL PURCHASE","4875","P119948-SERVICE-Chandlery Stock  117336",14/11/2022 00:00:00,"268567",159.73,"AQ0033","AQUAFAX LIMITED",31/10/2022 00:00:00,27/11/2022 00:00:00,"P08-2023"
,"LEE VALLEY MARINA SPRINGFIELD","SUPPLIES AND SERVICES","TRADING AC - EXTERNAL PURCHASE","4875","P119965-SERVICE-Chandlery Stock  916852",14/11/2022 00:00:00,"268568",641.66,"MI0200","MIDLAND CHANDLERS LIMITED",31/10/2022 00:00:00,27/11/2022 00:00:00,"P08-2023"
,"LEE VALLEY MARINA SPRINGFIELD","SUPPLIES AND SERVICES","TRADING AC - EXTERNAL PURCHASE","4875","P119943-SERVICE-Chandlery Stock (orders for customers/stock",14/11/2022 00:00:00,"268572",10.7,"AS0036","ASAP SUPPLIES",31/10/2022 00:00:00,27/11/2022 00:00:00,"P08-2023"
,"LEE VALLEY MARINA SPRINGFIELD","SUPPLIES AND SERVICES","TRADING AC - EXTERNAL PURCHASE","4875","P119943-SERVICE-Chandlery Stock (orders for customers/stock",14/11/2022 00:00:00,"268573",281.1,"AS0036","ASAP SUPPLIES",31/10/2022 00:00:00,27/11/2022 00:00:00,"P08-2023"
,"LEE VALLEY MARINA SPRINGFIELD","SUPPLIES AND SERVICES","TRADING AC - EXTERNAL PURCHASE","4875","P119468-SERVICE-Chandlery Stock",15/11/2022 00:00:00,"268712",32.15,"CA0660","CALFIRE SPARELINE LIMITED",31/10/2022 00:00:00,27/11/2022 00:00:00,"P08-2023"
,"LEE VALLEY MARINA SPRINGFIELD","SUPPLIES AND SERVICES","TRADING AC - EXTERNAL PURCHASE","4875","P120022-SERVICE-Chandlery Stock  (various items)",22/11/2022 00:00:00,"268737",343.66,"MI0200","MIDLAND CHANDLERS LIMITED",31/10/2022 00:00:00,27/11/2022 00:00:00,"P08-2023"
,"LEE VALLEY MARINA SPRINGFIELD","SUPPLIES AND SERVICES","TRADING AC - EXTERNAL PURCHASE","4875","P120032-SERVICE-Chandlery Stock (gas fittings etc)",22/11/2022 00:00:00,"268755",323.75,"AQ0033","AQUAFAX LIMITED",31/10/2022 00:00:00,27/11/2022 00:00:00,"P08-2023"
,"LEE VALLEY MARINA SPRINGFIELD","SUPPLIES AND SERVICES","TRADING AC - EXTERNAL PURCHASE","4875","P120021-SERVICE-Chandlery Stock (fire cement,silicone etc)",22/11/2022 00:00:00,"268885",343.09,"CA0660","CALFIRE SPARELINE LIMITED",31/10/2022 00:00:00,27/11/2022 00:00:00,"P08-2023"
,"LEE VALLEY MARINA SPRINGFIELD","SUPPLIES AND SERVICES","TRADING AC - EXTERNAL PURCHASE","4875","P120063-SERVICE-Chandlery Stock - electrical/plumbing",22/11/2022 00:00:00,"268896",145.95,"AQ0033","AQUAFAX LIMITED",31/10/2022 00:00:00,27/11/2022 00:00:00,"P08-2023"
,"LEE VALLEY MARINA SPRINGFIELD","SUPPLIES AND SERVICES","TRADING AC - EXTERNAL PURCHASE","4875","P120078-SERVICE-Chandlery Stock (general items)",22/11/2022 00:00:00,"268917",364.57,"MI0200","MIDLAND CHANDLERS LIMITED",31/10/2022 00:00:00,27/11/2022 00:00:00,"P08-2023"
,"LEE VALLEY MARINA SPRINGFIELD","SUPPLIES AND SERVICES","TRADING AC - EXTERNAL PURCHASE","4875","P120063-SERVICE-Chandlery Stock - electrical/plumbing",22/11/2022 00:00:00,"268929",19.4,"AQ0033","AQUAFAX LIMITED",31/10/2022 00:00:00,27/11/2022 00:00:00,"P08-2023"
,"LEE VALLEY MARINA SPRINGFIELD","SUPPLIES AND SERVICES","TRADING AC - EXTERNAL PURCHASE","4875","P120169-SERVICE-Chandlery Stock  921506",27/11/2022 00:00:00,"269167",383.64,"MI0200","MIDLAND CHANDLERS LIMITED",31/10/2022 00:00:00,27/11/2022 00:00:00,"P08-2023"
,"LEE VALLEY MARINA SPRINGFIELD","SUPPLIES AND SERVICES","TRADING AC - EXTERNAL PURCHASE","4875","P120201-SERVICE-Chandlery Stock and workboat",27/11/2022 00:00:00,"269171",177.98,"AQ0033","AQUAFAX LIMITED",31/10/2022 00:00:00,27/11/2022 00:00:00,"P08-2023"
,"STANSTEAD RECHARGEABLE WORKS","SUPPLIES AND SERVICES","TRADING AC - EXTERNAL PURCHASE","4875","P119464-SERVICE-CHANDLERY STOCK",23/11/2022 00:00:00,"266953",164.86,"AQ0033","AQUAFAX LIMITED",31/10/2022 00:00:00,27/11/2022 00:00:00,"P08-2023"
,"STANSTEAD RECHARGEABLE WORKS","SUPPLIES AND SERVICES","TRADING AC - EXTERNAL PURCHASE","4875","P119464-SERVICE-CHANDLERY STOCK",23/11/2022 00:00:00,"266964",18.03,"AQ0033","AQUAFAX LIMITED",31/10/2022 00:00:00,27/11/2022 00:00:00,"P08-2023"
,"STANSTEAD RECHARGEABLE WORKS","SUPPLIES AND SERVICES","TRADING AC - EXTERNAL PURCHASE","4875","P119464-SERVICE-CHANDLERY STOCK",23/11/2022 00:00:00,"267101",2.85,"AQ0033","AQUAFAX LIMITED",31/10/2022 00:00:00,27/11/2022 00:00:00,"P08-2023"
,"STANSTEAD RECHARGEABLE WORKS","SUPPLIES AND SERVICES","TRADING AC - EXTERNAL PURCHASE","4875","P119464-SERVICE-CHANDLERY STOCK",23/11/2022 00:00:00,"267103",89.94,"AQ0033","AQUAFAX LIMITED",31/10/2022 00:00:00,27/11/2022 00:00:00,"P08-2023"
,"STANSTEAD RECHARGEABLE WORKS","SUPPLIES AND SERVICES","TRADING AC - EXTERNAL PURCHASE","4875","P119607-SERVICE-chandlery stock",27/11/2022 00:00:00,"267143",7.08,"MI0200","MIDLAND CHANDLERS LIMITED",31/10/2022 00:00:00,27/11/2022 00:00:00,"P08-2023"
,"STANSTEAD RECHARGEABLE WORKS","SUPPLIES AND SERVICES","TRADING AC - EXTERNAL PURCHASE","4875","P120128-SERVICE-chandlery stock",27/11/2022 00:00:00,"267941",202.4,"SM0658","SML PAINTS AND COATINGS",31/10/2022 00:00:00,27/11/2022 00:00:00,"P08-2023"
,"STANSTEAD RECHARGEABLE WORKS","SUPPLIES AND SERVICES","TRADING AC - EXTERNAL PURCHASE","4875","P119734-SERVICE-extra to meet invoice",27/11/2022 00:00:00,"267980",3.1,"MI0200","MIDLAND CHANDLERS LIMITED",31/10/2022 00:00:00,27/11/2022 00:00:00,"P08-2023"
,"STANSTEAD RECHARGEABLE WORKS","SUPPLIES AND SERVICES","TRADING AC - EXTERNAL PURCHASE","4875","P119860-SERVICE-chandlery stock",23/11/2022 00:00:00,"268284",293.14,"AQ0033","AQUAFAX LIMITED",31/10/2022 00:00:00,27/11/2022 00:00:00,"P08-2023"
,"STANSTEAD RECHARGEABLE WORKS","SUPPLIES AND SERVICES","TRADING AC - EXTERNAL PURCHASE","4875","P119840-SERVICE-chandlery stock",23/11/2022 00:00:00,"268294",340.2,"MI0200","MIDLAND CHANDLERS LIMITED",31/10/2022 00:00:00,27/11/2022 00:00:00,"P08-2023"
,"STANSTEAD RECHARGEABLE WORKS","SUPPLIES AND SERVICES","TRADING AC - EXTERNAL PURCHASE","4875","P119860-SERVICE-chandlery stock",23/11/2022 00:00:00,"268329",8.4,"AQ0033","AQUAFAX LIMITED",31/10/2022 00:00:00,27/11/2022 00:00:00,"P08-2023"
,"STANSTEAD RECHARGEABLE WORKS","SUPPLIES AND SERVICES","TRADING AC - EXTERNAL PURCHASE","4875","KG SMITH & SON",8/11/2022 00:00:00,"268332",154.5,"SM0664","KG SMITH & SON",31/10/2022 00:00:00,27/11/2022 00:00:00,"P08-2023"
,"STANSTEAD RECHARGEABLE WORKS","SUPPLIES AND SERVICES","TRADING AC - EXTERNAL PURCHASE","4875","P117465-SERVICE-coal and gas",8/11/2022 00:00:00,"268332",100.1,"SM0664","KG SMITH & SON",31/10/2022 00:00:00,27/11/2022 00:00:00,"P08-2023"
,"STANSTEAD RECHARGEABLE WORKS","SUPPLIES AND SERVICES","TRADING AC - EXTERNAL PURCHASE","4875","P118626-SERVICE-chandlery stock",8/11/2022 00:00:00,"268332",87.5,"SM0664","KG SMITH & SON",31/10/2022 00:00:00,27/11/2022 00:00:00,"P08-2023"
,"STANSTEAD RECHARGEABLE WORKS","SUPPLIES AND SERVICES","TRADING AC - EXTERNAL PURCHASE","4875","P118174-SERVICE-gas order",8/11/2022 00:00:00,"268332",227.75,"SM0664","KG SMITH & SON",31/10/2022 00:00:00,27/11/2022 00:00:00,"P08-2023"
,"STANSTEAD RECHARGEABLE WORKS","SUPPLIES AND SERVICES","TRADING AC - EXTERNAL PURCHASE","4875","KG SMITH & SON",8/11/2022 00:00:00,"268332",106.07,"SM0664","KG SMITH & SON",31/10/2022 00:00:00,27/11/2022 00:00:00,"P08-2023"
,"STANSTEAD RECHARGEABLE WORKS","SUPPLIES AND SERVICES","TRADING AC - EXTERNAL PURCHASE","4875","P119379-SERVICE-gas chandlery stock SEPT",8/11/2022 00:00:00,"268332",18.85,"SM0664","KG SMITH & SON",31/10/2022 00:00:00,27/11/2022 00:00:00,"P08-2023"
,"STANSTEAD RECHARGEABLE WORKS","SUPPLIES AND SERVICES","TRADING AC - EXTERNAL PURCHASE","4875","KG SMITH & SON",8/11/2022 00:00:00,"268332",-260.57,"SM0664","KG SMITH & SON",31/10/2022 00:00:00,27/11/2022 00:00:00,"P08-2023"
,"STANSTEAD RECHARGEABLE WORKS","SUPPLIES AND SERVICES","TRADING AC - EXTERNAL PURCHASE","4875","P118036-SERVICE-coal and gas",8/11/2022 00:00:00,"268332",260.57,"SM0664","KG SMITH & SON",31/10/2022 00:00:00,27/11/2022 00:00:00,"P08-2023"
,"STANSTEAD RECHARGEABLE WORKS","SUPPLIES AND SERVICES","TRADING AC - EXTERNAL PURCHASE","4875","P119886-SERVICE-extra to match 0.3ppl difference",27/11/2022 00:00:00,"268371",6.6,"SP0543","SPEEDY FUELS LIMITED",31/10/2022 00:00:00,27/11/2022 00:00:00,"P08-2023"
,"STANSTEAD RECHARGEABLE WORKS","SUPPLIES AND SERVICES","TRADING AC - EXTERNAL PURCHASE","4875","P119886-SERVICE-2200l red diesel @ 118.55ppl",27/11/2022 00:00:00,"268371",2608.1,"SP0543","SPEEDY FUELS LIMITED",31/10/2022 00:00:00,27/11/2022 00:00:00,"P08-2023"
,"STANSTEAD RECHARGEABLE WORKS","SUPPLIES AND SERVICES","TRADING AC - EXTERNAL PURCHASE","4875","P117932-SERVICE-calor gas cage rental",23/11/2022 00:00:00,"268372",13,"CA0006","CALOR GAS LIMITED",31/10/2022 00:00:00,27/11/2022 00:00:00,"P08-2023"
,"STANSTEAD RECHARGEABLE WORKS","SUPPLIES AND SERVICES","TRADING AC - EXTERNAL PURCHASE","4875","P119910-SERVICE-chandlery stock",23/11/2022 00:00:00,"268490",775.96,"MI0200","MIDLAND CHANDLERS LIMITED",31/10/2022 00:00:00,27/11/2022 00:00:00,"P08-2023"
,"STANSTEAD RECHARGEABLE WORKS","SUPPLIES AND SERVICES","TRADING AC - EXTERNAL PURCHASE","4875","P119845-SERVICE-logs",23/11/2022 00:00:00,"268509",580,"HA0371","HARTS OF OAK",31/10/2022 00:00:00,27/11/2022 00:00:00,"P08-2023"
,"STANSTEAD RECHARGEABLE WORKS","SUPPLIES AND SERVICES","TRADING AC - EXTERNAL PURCHASE","4875","P119860-SERVICE-chandlery stock",27/11/2022 00:00:00,"268546",-26.96,"AQ0033","AQUAFAX LIMITED",31/10/2022 00:00:00,27/11/2022 00:00:00,"P08-2023"
,"STANSTEAD RECHARGEABLE WORKS","SUPPLIES AND SERVICES","TRADING AC - EXTERNAL PURCHASE","4875","P119914-SERVICE-solid fuels",27/11/2022 00:00:00,"268594",2110,"SM0664","KG SMITH & SON",31/10/2022 00:00:00,27/11/2022 00:00:00,"P08-2023"
,"STANSTEAD RECHARGEABLE WORKS","SUPPLIES AND SERVICES","TRADING AC - EXTERNAL PURCHASE","4875","P119914-SERVICE-additional to match invoice",27/11/2022 00:00:00,"268594",243,"SM0664","KG SMITH & SON",31/10/2022 00:00:00,27/11/2022 00:00:00,"P08-2023"
,"STANSTEAD RECHARGEABLE WORKS","SUPPLIES AND SERVICES","TRADING AC - EXTERNAL PURCHASE","4875","P119970-SERVICE-chandlery stock",22/11/2022 00:00:00,"268679",6.24,"MI0200","MIDLAND CHANDLERS LIMITED",31/10/2022 00:00:00,27/11/2022 00:00:00,"P08-2023"
,"STANSTEAD RECHARGEABLE WORKS","SUPPLIES AND SERVICES","TRADING AC - EXTERNAL PURCHASE","4875","P119970-SERVICE-chandlery stock",22/11/2022 00:00:00,"268680",102.22,"MI0200","MIDLAND CHANDLERS LIMITED",31/10/2022 00:00:00,27/11/2022 00:00:00,"P08-2023"
,"STANSTEAD RECHARGEABLE WORKS","SUPPLIES AND SERVICES","TRADING AC - EXTERNAL PURCHASE","4875","P120014-SERVICE-chandlery stock",16/11/2022 00:00:00,"268742",131.93,"MI0200","MIDLAND CHANDLERS LIMITED",31/10/2022 00:00:00,27/11/2022 00:00:00,"P08-2023"
,"STANSTEAD RECHARGEABLE WORKS","SUPPLIES AND SERVICES","TRADING AC - EXTERNAL PURCHASE","4875","P120042-SERVICE-Chandlery Stock Nov 22",23/11/2022 00:00:00,"268869",124.62,"MI0200","MIDLAND CHANDLERS LIMITED",31/10/2022 00:00:00,27/11/2022 00:00:00,"P08-2023"
,"STANSTEAD RECHARGEABLE WORKS","SUPPLIES AND SERVICES","TRADING AC - EXTERNAL PURCHASE","4875","P120042-SERVICE-Chandlery Stock Nov 22",23/11/2022 00:00:00,"268870",1244.93,"MI0200","MIDLAND CHANDLERS LIMITED",31/10/2022 00:00:00,27/11/2022 00:00:00,"P08-2023"
,"STANSTEAD RECHARGEABLE WORKS","SUPPLIES AND SERVICES","TRADING AC - EXTERNAL PURCHASE","4875","P120061-SERVICE-fan / alternator belt - chandlery",22/11/2022 00:00:00,"268897",35.26,"EP0353","E P BARRUS LTD",31/10/2022 00:00:00,27/11/2022 00:00:00,"P08-2023"
,"STANSTEAD RECHARGEABLE WORKS","SUPPLIES AND SERVICES","TRADING AC - EXTERNAL PURCHASE","4875","P120091-SERVICE-Chandlery stock Nov 22",23/11/2022 00:00:00,"268916",1456.95,"AQ0033","AQUAFAX LIMITED",31/10/2022 00:00:00,27/11/2022 00:00:00,"P08-2023"
,"STANSTEAD RECHARGEABLE WORKS","SUPPLIES AND SERVICES","TRADING AC - EXTERNAL PURCHASE","4875","P120083-SERVICE-Chandlery ASAP Stock Nov 22",23/11/2022 00:00:00,"268930",31.62,"AS0036","ASAP SUPPLIES",31/10/2022 00:00:00,27/11/2022 00:00:00,"P08-2023"
,"STANSTEAD RECHARGEABLE WORKS","SUPPLIES AND SERVICES","TRADING AC - EXTERNAL PURCHASE","4875","P120083-SERVICE-Chandlery ASAP Stock Nov 22",23/11/2022 00:00:00,"268931",166.5,"AS0036","ASAP SUPPLIES",31/10/2022 00:00:00,27/11/2022 00:00:00,"P08-2023"
,"STANSTEAD RECHARGEABLE WORKS","SUPPLIES AND SERVICES","TRADING AC - EXTERNAL PURCHASE","4875","P120106-SERVICE-chandlery stock",23/11/2022 00:00:00,"268937",383.38,"MI0200","MIDLAND CHANDLERS LIMITED",31/10/2022 00:00:00,27/11/2022 00:00:00,"P08-2023"
,"STANSTEAD RECHARGEABLE WORKS","SUPPLIES AND SERVICES","TRADING AC - EXTERNAL PURCHASE","4875","P120091-SERVICE-Chandlery stock Nov 22",23/11/2022 00:00:00,"268946",24.71,"AQ0033","AQUAFAX LIMITED",31/10/2022 00:00:00,27/11/2022 00:00:00,"P08-2023"
,"STANSTEAD RECHARGEABLE WORKS","SUPPLIES AND SERVICES","TRADING AC - EXTERNAL PURCHASE","4875","P120087-SERVICE-diesel additional cost",27/11/2022 00:00:00,"268997",11,"SP0543","SPEEDY FUELS LIMITED",31/10/2022 00:00:00,27/11/2022 00:00:00,"P08-2023"
,"STANSTEAD RECHARGEABLE WORKS","SUPPLIES AND SERVICES","TRADING AC - EXTERNAL PURCHASE","4875","P120087-SERVICE-Red Diesel Chandlery Nov 22",27/11/2022 00:00:00,"268997",2200,"SP0543","SPEEDY FUELS LIMITED",31/10/2022 00:00:00,27/11/2022 00:00:00,"P08-2023"
,"LV LEISURE CENTRE CAMPSITE","SUPPLIES AND SERVICES","TRADING AC - EXTERNAL PURCHASE","4875","P119998-SERVICE-Lake balls",14/11/2022 00:00:00,"268299",294,"GR0144","BARRY GRIFFITHS",31/10/2022 00:00:00,27/11/2022 00:00:00,"P08-2023"
,"LEE VALLEY CAMPSITE","SUPPLIES AND SERVICES","BOTTLED GAS","4877","P119823-SERVICE-Gas Cylinder stock order",15/11/2022 00:00:00,"268701",584.27,"FL0147","FLOGAS BRITAIN LIMITED",31/10/2022 00:00:00,27/11/2022 00:00:00,"P08-2023"
"CEO","CHIEF EXECUTIVE","SUPPLIES AND SERVICES","UNRECONCILED COMPANY CARD EXP","4880","P ANDREWS - NOVEMBER 2022 CREDIT CARD",8/11/2022 00:00:00,"268482",563.03,"NA0007","NATWEST CARD CENTRE",31/10/2022 00:00:00,27/11/2022 00:00:00,"P08-2023"
"P&V","MYDDELTON HOUSE","SUPPLIES AND SERVICES","UNRECONCILED COMPANY CARD EXP","4880","G FLAVIEN  - NOVEMBER 2022 CREDIT CARD",8/11/2022 00:00:00,"268482",625.83,"NA0007","NATWEST CARD CENTRE",31/10/2022 00:00:00,27/11/2022 00:00:00,"P08-2023"
"CEO","PR/COMMUNICATIONS","SUPPLIES AND SERVICES","UNRECONCILED COMPANY CARD EXP","4880","S BROMBERG  - NOVEMBER 2022 CREDIT CARD",8/11/2022 00:00:00,"268482",714.1,"NA0007","NATWEST CARD CENTRE",31/10/2022 00:00:00,27/11/2022 00:00:00,"P08-2023"
"R&B","DEMOCRATIC REPRESENTATION & MA","SUPPLIES AND SERVICES","UNRECONCILED COMPANY CARD EXP","4880","S BERTSCHIN  - NOVEMBER 2022 CREDIT CARD",8/11/2022 00:00:00,"268482",396,"NA0007","NATWEST CARD CENTRE",31/10/2022 00:00:00,27/11/2022 00:00:00,"P08-2023"
"R&B","INFORMATION TECHNOLOGY","SUPPLIES AND SERVICES","UNRECONCILED COMPANY CARD EXP","4880","S CLARK  - NOVEMBER 2022 CREDIT CARD",8/11/2022 00:00:00,"268482",1759.73,"NA0007","NATWEST CARD CENTRE",31/10/2022 00:00:00,27/11/2022 00:00:00,"P08-2023"
,"LEE VALLEY MARINA SPRINGFIELD","SUPPLIES AND SERVICES","UNRECONCILED COMPANY CARD EXP","4880","L SCOTT  - NOVEMBER 2022 CREDIT CARD",8/11/2022 00:00:00,"268482",93.4,"NA0007","NATWEST CARD CENTRE",31/10/2022 00:00:00,27/11/2022 00:00:00,"P08-2023"
,"LEE VALLEY MARINA STANSTEAD","SUPPLIES AND SERVICES","UNRECONCILED COMPANY CARD EXP","4880","C BAKER  - NOVEMBER 2022 CREDIT CARD",8/11/2022 00:00:00,"268482",489.75,"NA0007","NATWEST CARD CENTRE",31/10/2022 00:00:00,27/11/2022 00:00:00,"P08-2023"
"P&V","LEE VALLEY FARM HOLYFIELDHALL","SUPPLIES AND SERVICES","UNRECONCILED COMPANY CARD EXP","4880","J PAINTER  - NOVEMBER 2022 CREDIT CARD",8/11/2022 00:00:00,"268482",95.09,"NA0007","NATWEST CARD CENTRE",31/10/2022 00:00:00,27/11/2022 00:00:00,"P08-2023"
,"LEE VALLEY CAMPSITE","SUPPLIES AND SERVICES","UNRECONCILED COMPANY CARD EXP","4880","C CARTER  - NOVEMBER 2022 CREDIT CARD",8/11/2022 00:00:00,"268482",1758.85,"NA0007","NATWEST CARD CENTRE",31/10/2022 00:00:00,27/11/2022 00:00:00,"P08-2023"
,"LEE VALLEY CARAVAN PARK","SUPPLIES AND SERVICES","UNRECONCILED COMPANY CARD EXP","4880","I RUSSELL  - NOVEMBER 2022 CREDIT CARD",8/11/2022 00:00:00,"268482",3674.14,"NA0007","NATWEST CARD CENTRE",31/10/2022 00:00:00,27/11/2022 00:00:00,"P08-2023"
"P&V","YOUTH AND SCHOOLS","SUPPLIES AND SERVICES","UNRECONCILED COMPANY CARD EXP","4880","K WHEELER -  - NOVEMBER 2022 CREDIT CARD",8/11/2022 00:00:00,"268482",25.47,"NA0007","NATWEST CARD CENTRE",31/10/2022 00:00:00,27/11/2022 00:00:00,"P08-2023"
"P&V","SOUTH AREA RANGERS","SUPPLIES AND SERVICES","UNRECONCILED COMPANY CARD EXP","4880","G HODDINOTT  - NOVEMBER 2022 CREDIT CARD",8/11/2022 00:00:00,"268482",37.79,"NA0007","NATWEST CARD CENTRE",31/10/2022 00:00:00,27/11/2022 00:00:00,"P08-2023"
"P&V","BIODIVERSITY ACTION PLAN","SUPPLIES AND SERVICES","UNRECONCILED COMPANY CARD EXP","4880","C PATRICK  - NOVEMBER 2022 CREDIT CARD",8/11/2022 00:00:00,"268482",10.62,"NA0007","NATWEST CARD CENTRE",31/10/2022 00:00:00,27/11/2022 00:00:00,"P08-2023"
"P&V","OPERATIONAL MANAGEMENT (L&E)","SUPPLIES AND SERVICES","UNRECONCILED COMPANY CARD EXP","4880","S HUTLEY  - NOVEMBER 2022 CREDIT CARD",8/11/2022 00:00:00,"268482",105.88,"NA0007","NATWEST CARD CENTRE",31/10/2022 00:00:00,27/11/2022 00:00:00,"P08-2023"
"P&V","OPERATIONAL MANAGEMENT (L&E)","SUPPLIES AND SERVICES","UNRECONCILED COMPANY CARD EXP","4880","J HETHERINGTON  - NOVEMBER 2022 CREDIT CARD",8/11/2022 00:00:00,"268482",27,"NA0007","NATWEST CARD CENTRE",31/10/2022 00:00:00,27/11/2022 00:00:00,"P08-2023"
"P&V","POLICY & PERFORMANCE (L&E)","SUPPLIES AND SERVICES","UNRECONCILED COMPANY CARD EXP","4880","A SACKETT  - NOVEMBER 2022 CREDIT CARD",8/11/2022 00:00:00,"268482",638.46,"NA0007","NATWEST CARD CENTRE",31/10/2022 00:00:00,27/11/2022 00:00:00,"P08-2023"
"P&V","EVENTS MANAGEMENT (PR)","SUPPLIES AND SERVICES","UNRECONCILED COMPANY CARD EXP","4880","S STONE  - NOVEMBER 2022 CREDIT CARD",8/11/2022 00:00:00,"268482",417,"NA0007","NATWEST CARD CENTRE",31/10/2022 00:00:00,27/11/2022 00:00:00,"P08-2023"
"CEO","COMMERCIAL ACCOMMODATION","SUPPLIES AND SERVICES","OTHER EXPENSES","4899","P117468-SERVICE-Land Registry Fees",22/11/2022 00:00:00,"268906",6,"HM0032","HM LAND REGISTRY",31/10/2022 00:00:00,27/11/2022 00:00:00,"P08-2023"
"CEO","COMMONWEALTH GAMES 2022","SUPPLIES AND SERVICES","OTHER EXPENSES","4899","P119232-SERVICE-CWG GM Reinstatement works",14/11/2022 00:00:00,"268319",2752.29,"GL0214","GLENDALE GROUNDS MANAGEMENT LIMITED",31/10/2022 00:00:00,27/11/2022 00:00:00,"P08-2023"
"CEO","COMMONWEALTH GAMES 2022","SUPPLIES AND SERVICES","OTHER EXPENSES","4899","P119234-SERVICE-CWG GM reinstatement",14/11/2022 00:00:00,"268320",2235.6,"GL0214","GLENDALE GROUNDS MANAGEMENT LIMITED",31/10/2022 00:00:00,27/11/2022 00:00:00,"P08-2023"
"CEO","COMMONWEALTH GAMES 2022","SUPPLIES AND SERVICES","OTHER EXPENSES","4899","P119581-SERVICE-Commonwaelth Games Safety Zone Cleaning",8/11/2022 00:00:00,"268494",864.75,"ELI0362","ELITE SUPPORT SERVICES (LONDON) LIMITED",31/10/2022 00:00:00,27/11/2022 00:00:00,"P08-2023"
"CEO","COMMONWEALTH GAMES 2022","SUPPLIES AND SERVICES","OTHER EXPENSES","4899","P119556-SERVICE-Commonwealth Games branding damage replacemen",27/11/2022 00:00:00,"268868",6479,"LE0454","LEARN TO DREAM LTD",31/10/2022 00:00:00,27/11/2022 00:00:00,"P08-2023"
"CEO","COMMONWEALTH GAMES 2022","SUPPLIES AND SERVICES","OTHER EXPENSES","4899","P119792-SERVICE-Remove & replace x15 screws on 'Generation In",27/11/2022 00:00:00,"268868",102,"LE0454","LEARN TO DREAM LTD",31/10/2022 00:00:00,27/11/2022 00:00:00,"P08-2023"
"P&V","LEE VALLEY FARM HOLYFIELDHALL","SUPPLIES AND SERVICES","OTHER EXPENSES","4899","P120019-SERVICE-PPM Service",16/11/2022 00:00:00,"268732",335,"ES0392","ESSEX DOORS & SHUTTERS LTD",31/10/2022 00:00:00,27/11/2022 00:00:00,"P08-2023"
"P&V","LEE VALLEY FARM HOLYFIELDHALL","SUPPLIES AND SERVICES","OTHER EXPENSES","4899","P120187-SERVICE-Light in Milking Parlour",27/11/2022 00:00:00,"268986",40,"BR0018","BRADSHAW ELECTRICAL LIMITED",31/10/2022 00:00:00,27/11/2022 00:00:00,"P08-2023"
,"LV CAMPSITE CARAVAN SALES","SUPPLIES AND SERVICES","OTHER EXPENSES","4899","P119189-SERVICE-Key Holders",14/11/2022 00:00:00,"268700",36,"CA0754","CRAFTS ET AL",31/10/2022 00:00:00,27/11/2022 00:00:00,"P08-2023"
,"LV CAMPSITE CARAVAN SALES","SUPPLIES AND SERVICES","OTHER EXPENSES","4899","P120067-SERVICE-Introduction",27/11/2022 00:00:00,"268999",2200,"LO0459","LONDON LODGES UK",31/10/2022 00:00:00,27/11/2022 00:00:00,"P08-2023"
"P&V","WILDLIFE DISCOVERY CENTRE","SUPPLIES AND SERVICES","OTHER EXPENSES","4899","P119896-SERVICE-CCTV Site Inspection - WDC",8/11/2022 00:00:00,"268336",500,"WI0222","WILDLIFE WINDOWS LIMITED",31/10/2022 00:00:00,27/11/2022 00:00:00,"P08-2023"
"P&V","COMMUNITY ACCESS FUND","SUPPLIES AND SERVICES","OTHER EXPENSES","4899","P119932-SERVICE-Kelmscott School 15/11/22",8/11/2022 00:00:00,"268370",545,"BA0618","BAMGRO LTD T/A PANDA COACHES",31/10/2022 00:00:00,27/11/2022 00:00:00,"P08-2023"
"P&V","COMMUNITY ACCESS FUND","SUPPLIES AND SERVICES","OTHER EXPENSES","4899","P119917-SERVICE-CAF Riding centre Qrt 3",8/11/2022 00:00:00,"268461",1197,"GR0097","GREENWICH LEISURE LTD",31/10/2022 00:00:00,27/11/2022 00:00:00,"P08-2023"
"P&V","COMMUNITY ACCESS FUND","SUPPLIES AND SERVICES","OTHER EXPENSES","4899","P119974-SERVICE-CAF coach hire carpenters School 21/11/22",14/11/2022 00:00:00,"268559",650,"GO0252","GOLDLINE EXECUTIVE TRAVEL",31/10/2022 00:00:00,27/11/2022 00:00:00,"P08-2023"
"P&V","COMMUNITY ACCESS FUND","SUPPLIES AND SERVICES","OTHER EXPENSES","4899","P120007-SERVICE-Epping Forest inclusion programme",23/11/2022 00:00:00,"268578",600,"BI0470","BIKE WORKS",31/10/2022 00:00:00,27/11/2022 00:00:00,"P08-2023"
"P&V","VOLUNTEERS (L&E)","SUPPLIES AND SERVICES","OTHER EXPENSES","4899","P119742-SERVICE-Drinks tokens: 52 alcoholic drinks / 28 soft",9/11/2022 00:00:00,"268543",240,"GR0097","GREENWICH LEISURE LTD",31/10/2022 00:00:00,27/11/2022 00:00:00,"P08-2023"
"P&V","VOLUNTEERS (L&E)","SUPPLIES AND SERVICES","OTHER EXPENSES","4899","P119742-SERVICE-Hire of Ron Pickering Meeting Room",9/11/2022 00:00:00,"268543",125,"GR0097","GREENWICH LEISURE LTD",31/10/2022 00:00:00,27/11/2022 00:00:00,"P08-2023"
"P&V","VOLUNTEERS (L&E)","SUPPLIES AND SERVICES","OTHER EXPENSES","4899","P119742-SERVICE-Hot & Cold Buffet 85 people @16.74 each",9/11/2022 00:00:00,"268543",1185.75,"GR0097","GREENWICH LEISURE LTD",31/10/2022 00:00:00,27/11/2022 00:00:00,"P08-2023"
,"LV LEISURE CENTRE CAMPSITE","SUPPLIES AND SERVICES","OTHER EXPENSES","4899","P119768-SERVICE-Dimitry 63 hrs worked Campsite",8/11/2022 00:00:00,"268057",945,"NE0225","DIMITRI NEOPHYTOU",31/10/2022 00:00:00,27/11/2022 00:00:00,"P08-2023"
,"LV LEISURE CENTRE CAMPSITE","SUPPLIES AND SERVICES","OTHER EXPENSES","4899","P119924-SERVICE-Dimitry Campsite Hours Workd",9/11/2022 00:00:00,"268476",645,"NE0225","DIMITRI NEOPHYTOU",31/10/2022 00:00:00,27/11/2022 00:00:00,"P08-2023"
,"LV LEISURE CENTRE CAMPSITE","SUPPLIES AND SERVICES","OTHER EXPENSES","4899","P120015-SERVICE-50.5 hrs Campsite",16/11/2022 00:00:00,"268745",757.5,"NE0225","DIMITRI NEOPHYTOU",31/10/2022 00:00:00,27/11/2022 00:00:00,"P08-2023"
,"LV LEISURE CENTRE CAMPSITE","SUPPLIES AND SERVICES","OTHER EXPENSES","4899","P120170-SERVICE-52 Hours Worked Campite",27/11/2022 00:00:00,"269119",780,"NE0225","DIMITRI NEOPHYTOU",31/10/2022 00:00:00,27/11/2022 00:00:00,"P08-2023"
,"LV LEISURE CENTRE GOLF COURSE","SUPPLIES AND SERVICES","OTHER EXPENSES","4899","P119768-SERVICE-Dimitry 16 Hours Worked",8/11/2022 00:00:00,"268057",240,"NE0225","DIMITRI NEOPHYTOU",31/10/2022 00:00:00,27/11/2022 00:00:00,"P08-2023"
,"LV LEISURE CENTRE GOLF COURSE","SUPPLIES AND SERVICES","OTHER EXPENSES","4899","P119924-SERVICE-Dimitri Golf Course hours worked",9/11/2022 00:00:00,"268476",540,"NE0225","DIMITRI NEOPHYTOU",31/10/2022 00:00:00,27/11/2022 00:00:00,"P08-2023"
,"LV LEISURE CENTRE GOLF COURSE","SUPPLIES AND SERVICES","OTHER EXPENSES","4899","P120015-SERVICE-23.5 hrs Golf Course",16/11/2022 00:00:00,"268745",352.5,"NE0225","DIMITRI NEOPHYTOU",31/10/2022 00:00:00,27/11/2022 00:00:00,"P08-2023"
,"LV LEISURE CENTRE GOLF COURSE","SUPPLIES AND SERVICES","OTHER EXPENSES","4899","P120170-SERVICE-37 Hours Worked Golf Course",27/11/2022 00:00:00,"269119",555,"NE0225","DIMITRI NEOPHYTOU",31/10/2022 00:00:00,27/11/2022 00:00:00,"P08-2023"
"P&V","SOUTH AREA RANGERS","S106 EXPENDITURE (REVENUE)","S106 EXPENDITURE (REVENUE)","4985","P119700-SERVICE-Delivery",14/11/2022 00:00:00,"268558",75,"FI0164","FILCRIS LIMITED",31/10/2022 00:00:00,27/11/2022 00:00:00,"P08-2023"
"P&V","SOUTH AREA RANGERS","S106 EXPENDITURE (REVENUE)","S106 EXPENDITURE (REVENUE)","4985","P119700-SERVICE-Flat Pack Otter Holt Kit Black 1200 x 830 x 3",14/11/2022 00:00:00,"268558",293.33,"FI0164","FILCRIS LIMITED",31/10/2022 00:00:00,27/11/2022 00:00:00,"P08-2023"
"P&V","SOUTH AREA RANGERS","S106 EXPENDITURE (REVENUE)","S106 EXPENDITURE (REVENUE)","4985","P119863-SERVICE-Install Fence/Gate at Oxbow",23/11/2022 00:00:00,"268706",950,"JO0019","R G JOYCE",31/10/2022 00:00:00,27/11/2022 00:00:00,"P08-2023"
"P&V","S106 PROJECTS","S106 EXPENDITURE (REVENUE)","S106 EXPENDITURE (REVENUE)","4985","P115657-SERVICE-River Lynch Restoration Project - Design Elem",27/11/2022 00:00:00,"269100",7310,"AQ0410","AQUAMAINTAIN LTD",31/10/2022 00:00:00,27/11/2022 00:00:00,"P08-2023"
"P&V","ASSET PROTECTION, MAINT, DEVEL","CAPITAL EXPENDITURE","CAPITAL EXPENDITURE","4990","P117271-SERVICE-LVWWC Olympic Course pump replacement",16/11/2022 00:00:00,"267107",120296.92,"CL0039","XYLEM WATER SOLUTIONS UK  LIMITED",31/10/2022 00:00:00,27/11/2022 00:00:00,"P08-2023"
"P&V","ASSET PROTECTION, MAINT, DEVEL","CAPITAL EXPENDITURE","CAPITAL EXPENDITURE","4990","P119804-SERVICE-Velo CCTV rental of equipment",14/11/2022 00:00:00,"267542",11460.51,"ST0642","STANLEY SECURITY SOLUTIONS LTD",31/10/2022 00:00:00,27/11/2022 00:00:00,"P08-2023"
"P&V","ASSET PROTECTION, MAINT, DEVEL","CAPITAL EXPENDITURE","CAPITAL EXPENDITURE","4990","P118426-SERVICE-LVAC indoor track resurface",8/11/2022 00:00:00,"267577",45330.22,"DY0290","DYNAMIK SPORT SURFACE LTD",31/10/2022 00:00:00,27/11/2022 00:00:00,"P08-2023"
"P&V","ASSET PROTECTION, MAINT, DEVEL","CAPITAL EXPENDITURE","CAPITAL EXPENDITURE","4990","P118426-SERVICE-LVAC indoor track resurface",8/11/2022 00:00:00,"268106",45678,"DY0290","DYNAMIK SPORT SURFACE LTD",31/10/2022 00:00:00,27/11/2022 00:00:00,"P08-2023"
"P&V","ASSET PROTECTION, MAINT, DEVEL","CAPITAL EXPENDITURE","CAPITAL EXPENDITURE","4990","P119810-SERVICE-Continuation of works related to P116481",14/11/2022 00:00:00,"268249",8250,"MO0041","CAPSER",31/10/2022 00:00:00,27/11/2022 00:00:00,"P08-2023"
"P&V","ASSET PROTECTION, MAINT, DEVEL","CAPITAL EXPENDITURE","CAPITAL EXPENDITURE","4990","CAPSER",14/11/2022 00:00:00,"268249",-8250,"MO0041","CAPSER",31/10/2022 00:00:00,27/11/2022 00:00:00,"P08-2023"
"P&V","ASSET PROTECTION, MAINT, DEVEL","CAPITAL EXPENDITURE","CAPITAL EXPENDITURE","4990","CAPSER",14/11/2022 00:00:00,"268249",7000,"MO0041","CAPSER",31/10/2022 00:00:00,27/11/2022 00:00:00,"P08-2023"
"P&V","ASSET PROTECTION, MAINT, DEVEL","CAPITAL EXPENDITURE","CAPITAL EXPENDITURE","4990","CAPSER",14/11/2022 00:00:00,"268249",1250,"MO0041","CAPSER",31/10/2022 00:00:00,27/11/2022 00:00:00,"P08-2023"
"P&V","ASSET PROTECTION, MAINT, DEVEL","CAPITAL EXPENDITURE","CAPITAL EXPENDITURE","4990","P119241-SERVICE-External Decorations at White Water Centre",16/11/2022 00:00:00,"268265",24380,"BE0563","BELL DECORATING  GROUP LTD",31/10/2022 00:00:00,27/11/2022 00:00:00,"P08-2023"
"P&V","ASSET PROTECTION, MAINT, DEVEL","CAPITAL EXPENDITURE","CAPITAL EXPENDITURE","4990","P119620-SERVICE-Air Monitoring at Dobbs Weir Bunglow",8/11/2022 00:00:00,"268333",400,"LI0432","LIFE ENVIRONMENTAL SERVICES LTD",31/10/2022 00:00:00,27/11/2022 00:00:00,"P08-2023"
"P&V","ASSET PROTECTION, MAINT, DEVEL","CAPITAL EXPENDITURE","CAPITAL EXPENDITURE","4990","P119620-SERVICE-Additional Air Testing Visit",8/11/2022 00:00:00,"268333",200,"LI0432","LIFE ENVIRONMENTAL SERVICES LTD",31/10/2022 00:00:00,27/11/2022 00:00:00,"P08-2023"
"P&V","ASSET PROTECTION, MAINT, DEVEL","CAPITAL EXPENDITURE","CAPITAL EXPENDITURE","4990","P119771-SERVICE-To install isolation valves to Hot Water Cyli",8/11/2022 00:00:00,"268470",1200,"SO0400","SOUTHERN GREEN SERVICES LIMITED",31/10/2022 00:00:00,27/11/2022 00:00:00,"P08-2023"
"P&V","ASSET PROTECTION, MAINT, DEVEL","CAPITAL EXPENDITURE","CAPITAL EXPENDITURE","4990","P120010-SERVICE-Sewardstone campsite managers house",14/11/2022 00:00:00,"268541",210,"BR0018","BRADSHAW ELECTRICAL LIMITED",31/10/2022 00:00:00,27/11/2022 00:00:00,"P08-2023"
"P&V","ASSET PROTECTION, MAINT, DEVEL","CAPITAL EXPENDITURE","CAPITAL EXPENDITURE","4990","KENDALL & SONS LIMITED",23/11/2022 00:00:00,"268747",-500,"KE0023","KENDALL & SONS LIMITED",31/10/2022 00:00:00,27/11/2022 00:00:00,"P08-2023"
"P&V","ASSET PROTECTION, MAINT, DEVEL","CAPITAL EXPENDITURE","CAPITAL EXPENDITURE","4990","KENDALL & SONS LIMITED",23/11/2022 00:00:00,"268747",360,"KE0023","KENDALL & SONS LIMITED",31/10/2022 00:00:00,27/11/2022 00:00:00,"P08-2023"
"P&V","ASSET PROTECTION, MAINT, DEVEL","CAPITAL EXPENDITURE","CAPITAL EXPENDITURE","4990","KENDALL & SONS LIMITED",23/11/2022 00:00:00,"268747",140,"KE0023","KENDALL & SONS LIMITED",31/10/2022 00:00:00,27/11/2022 00:00:00,"P08-2023"
"P&V","ASSET PROTECTION, MAINT, DEVEL","CAPITAL EXPENDITURE","CAPITAL EXPENDITURE","4990","P119435-SERVICE-Cleaning and repairs to WWC area 4 portacabin",23/11/2022 00:00:00,"268747",500,"KE0023","KENDALL & SONS LIMITED",31/10/2022 00:00:00,27/11/2022 00:00:00,"P08-2023"
"P&V","ASSET PROTECTION, MAINT, DEVEL","CAPITAL EXPENDITURE","CAPITAL EXPENDITURE","4990","P119207-SERVICE-Dobbs Weir - Mens touring field Toilets",23/11/2022 00:00:00,"268748",1579,"KE0023","KENDALL & SONS LIMITED",31/10/2022 00:00:00,27/11/2022 00:00:00,"P08-2023"
"P&V","ASSET PROTECTION, MAINT, DEVEL","CAPITAL EXPENDITURE","CAPITAL EXPENDITURE","4990","KENDALL & SONS LIMITED",23/11/2022 00:00:00,"268748",-1579,"KE0023","KENDALL & SONS LIMITED",31/10/2022 00:00:00,27/11/2022 00:00:00,"P08-2023"
"P&V","ASSET PROTECTION, MAINT, DEVEL","CAPITAL EXPENDITURE","CAPITAL EXPENDITURE","4990","KENDALL & SONS LIMITED",23/11/2022 00:00:00,"268748",30,"KE0023","KENDALL & SONS LIMITED",31/10/2022 00:00:00,27/11/2022 00:00:00,"P08-2023"
"P&V","ASSET PROTECTION, MAINT, DEVEL","CAPITAL EXPENDITURE","CAPITAL EXPENDITURE","4990","KENDALL & SONS LIMITED",23/11/2022 00:00:00,"268748",1549,"KE0023","KENDALL & SONS LIMITED",31/10/2022 00:00:00,27/11/2022 00:00:00,"P08-2023"
"P&V","ASSET PROTECTION, MAINT, DEVEL","CAPITAL EXPENDITURE","CAPITAL EXPENDITURE","4990","P119207-SERVICE-Additional work for disabled canopy",23/11/2022 00:00:00,"268748",140,"KE0023","KENDALL & SONS LIMITED",31/10/2022 00:00:00,27/11/2022 00:00:00,"P08-2023"
"P&V","ASSET PROTECTION, MAINT, DEVEL","CAPITAL EXPENDITURE","CAPITAL EXPENDITURE","4990","P119834-SERVICE-Dispose Kitchen Units at Dobbs Weir Bunglow",16/11/2022 00:00:00,"268749",653,"KE0023","KENDALL & SONS LIMITED",31/10/2022 00:00:00,27/11/2022 00:00:00,"P08-2023"
"P&V","ASSET PROTECTION, MAINT, DEVEL","CAPITAL EXPENDITURE","CAPITAL EXPENDITURE","4990","P119435-SERVICE-Additional works as agreed with MS",23/11/2022 00:00:00,"268751",120,"KE0023","KENDALL & SONS LIMITED",31/10/2022 00:00:00,27/11/2022 00:00:00,"P08-2023"
"P&V","ASSET PROTECTION, MAINT, DEVEL","CAPITAL EXPENDITURE","CAPITAL EXPENDITURE","4990","P120129-SERVICE-LVWWC Expansion of Conference room",23/11/2022 00:00:00,"268770",124610.13,"CA0508","CARMELCREST LTD",31/10/2022 00:00:00,27/11/2022 00:00:00,"P08-2023"
"P&V","ASSET PROTECTION, MAINT, DEVEL","CAPITAL EXPENDITURE","CAPITAL EXPENDITURE","4990","P118522-SERVICE-Floor graphics",22/11/2022 00:00:00,"268867",396,"LE0454","LEARN TO DREAM LTD",31/10/2022 00:00:00,27/11/2022 00:00:00,"P08-2023"
"P&V","ASSET PROTECTION, MAINT, DEVEL","CAPITAL EXPENDITURE","CAPITAL EXPENDITURE","4990","P120113-SERVICE-Repairs to Bridge No 147",23/11/2022 00:00:00,"268933",1170,"KE0023","KENDALL & SONS LIMITED",31/10/2022 00:00:00,27/11/2022 00:00:00,"P08-2023"
"P&V","ASSET PROTECTION, MAINT, DEVEL","CAPITAL EXPENDITURE","CAPITAL EXPENDITURE","4990","KENDALL & SONS LIMITED",23/11/2022 00:00:00,"268933",975,"KE0023","KENDALL & SONS LIMITED",31/10/2022 00:00:00,27/11/2022 00:00:00,"P08-2023"
"P&V","ASSET PROTECTION, MAINT, DEVEL","CAPITAL EXPENDITURE","CAPITAL EXPENDITURE","4990","KENDALL & SONS LIMITED",23/11/2022 00:00:00,"268933",195,"KE0023","KENDALL & SONS LIMITED",31/10/2022 00:00:00,27/11/2022 00:00:00,"P08-2023"
"P&V","ASSET PROTECTION, MAINT, DEVEL","CAPITAL EXPENDITURE","CAPITAL EXPENDITURE","4990","KENDALL & SONS LIMITED",23/11/2022 00:00:00,"268933",-1170,"KE0023","KENDALL & SONS LIMITED",31/10/2022 00:00:00,27/11/2022 00:00:00,"P08-2023"
"P&V","ASSET PROTECTION, MAINT, DEVEL","CAPITAL EXPENDITURE","CAPITAL EXPENDITURE","4990","KENDALL & SONS LIMITED",23/11/2022 00:00:00,"268959",-3950,"KE0023","KENDALL & SONS LIMITED",31/10/2022 00:00:00,27/11/2022 00:00:00,"P08-2023"
"P&V","ASSET PROTECTION, MAINT, DEVEL","CAPITAL EXPENDITURE","CAPITAL EXPENDITURE","4990","KENDALL & SONS LIMITED",23/11/2022 00:00:00,"268959",2275,"KE0023","KENDALL & SONS LIMITED",31/10/2022 00:00:00,27/11/2022 00:00:00,"P08-2023"
"P&V","ASSET PROTECTION, MAINT, DEVEL","CAPITAL EXPENDITURE","CAPITAL EXPENDITURE","4990","P119980-SERVICE-Bridge N197 - Emergency Works",23/11/2022 00:00:00,"268959",3950,"KE0023","KENDALL & SONS LIMITED",31/10/2022 00:00:00,27/11/2022 00:00:00,"P08-2023"
"P&V","ASSET PROTECTION, MAINT, DEVEL","CAPITAL EXPENDITURE","CAPITAL EXPENDITURE","4990","KENDALL & SONS LIMITED",23/11/2022 00:00:00,"268959",1675,"KE0023","KENDALL & SONS LIMITED",31/10/2022 00:00:00,27/11/2022 00:00:00,"P08-2023"
"R&B","INFORMATION TECHNOLOGY","CAPITAL EXPENDITURE","CAPITAL EXPENDITURE","4990","P119830-SERVICE-Veldrome works - Install 6x Cat 6 data points",9/11/2022 00:00:00,"268143",2150,"JP0183","JPH CABLING SERVICES",31/10/2022 00:00:00,27/11/2022 00:00:00,"P08-2023"
"R&B","INFORMATION TECHNOLOGY","CAPITAL EXPENDITURE","CAPITAL EXPENDITURE","4990","P119979-SERVICE-Yealink VCM34 169.99, plus warranty 6.71",27/11/2022 00:00:00,"268727",176.7,"ON0137","ONEDIRECT LTD",31/10/2022 00:00:00,27/11/2022 00:00:00,"P08-2023"
,"LEE VALLEY MARINA SPRINGFIELD","CAPITAL EXPENDITURE","CAPITAL EXPENDITURE","4990","P119133-SERVICE-4 washers & 4 tumble dryers Laundry System co",22/11/2022 00:00:00,"268103",24168,"JH0012","GIRBAU  UK LIMITED",31/10/2022 00:00:00,27/11/2022 00:00:00,"P08-2023"
"P&V","EAST INDIA DOCK AND BOW CREEK","CAPITAL EXPENDITURE","CAPITAL EXPENDITURE","4990","P117437-SERVICE-East India Dock Basin Works",8/11/2022 00:00:00,"268480",16300,"HA0116","HASKONING UK LTD",31/10/2022 00:00:00,27/11/2022 00:00:00,"P08-2023"
"P&V","BIODIVERSITY ACTION PLAN","CAPITAL EXPENDITURE","CAPITAL EXPENDITURE","4990","P112223-SERVICE-Lee Valley Water Vole Survey as per Quote 202",16/11/2022 00:00:00,"268683",3947.5,"HE0275","HERTS & MIDDLESEX WILDLIFE TRUST",31/10/2022 00:00:00,27/11/2022 00:00:00,"P08-2023"
"P&V","BIODIVERSITY ACTION PLAN","CAPITAL EXPENDITURE","CAPITAL EXPENDITURE","4990","P120048-SERVICE-Contribution to Grow Back Greener Project on",27/11/2022 00:00:00,"269130",1000,"WI0360","WILDLIFE GARDENERS OF HAGGERSTON",31/10/2022 00:00:00,27/11/2022 00:00:00,"P08-2023"
,"LEE VALLEY ICE CENTRE","CAPITAL EXPENDITURE","CAPITAL EXPENDITURE","4990","P119918-SERVICE-Monthly works as per interim cert 16",9/11/2022 00:00:00,"268281",1313064.71,"BU0634","BUCKINGHAM GROUP CONTRACTING LIMITED",31/10/2022 00:00:00,27/11/2022 00:00:00,"P08-2023"
,"LEE VALLEY WHITE WATER CENTRE","CAPITAL EXPENDITURE","CAPITAL EXPENDITURE","4990","P119931-SERVICE-Yealink UVC84 BYOD Meeting Kit for large room",27/11/2022 00:00:00,"268489",2521.98,"ON0137","ONEDIRECT LTD",31/10/2022 00:00:00,27/11/2022 00:00:00,"P08-2023"
"P&V","EVENTS MANAGEMENT (PR)","THIRD PARTY PAYMENTS","EVENTS","5101","comp ref 262413",8/11/2022 00:00:00,"268460",0,"PI0390","PITBITZ LIMITED T/A GAZEBOSHOP",31/10/2022 00:00:00,27/11/2022 00:00:00,"P08-2023"
"CEO","PR/COMMUNICATIONS","THIRD PARTY PAYMENTS","CONSULTANTS (GENERAL)","5110","P118107-SERVICE-Communications Support for 2022-23",16/11/2022 00:00:00,"268682",3000,"LO0024","LONDON COMMUNICATIONS AGENCY LTD",31/10/2022 00:00:00,27/11/2022 00:00:00,"P08-2023"
"P&V","ASSET PROTECTION, MAINT, DEVEL","THIRD PARTY PAYMENTS","CONSULTANTS (GENERAL)","5110","P116052-SERVICE-LVAC re top indoor track",8/11/2022 00:00:00,"267476",1950,"SP0182","SPORTS LABS LTD",31/10/2022 00:00:00,27/11/2022 00:00:00,"P08-2023"
"P&V","ASSET PROTECTION, MAINT, DEVEL","THIRD PARTY PAYMENTS","CONSULTANTS (GENERAL)","5110","P119811-SERVICE-To attend site at Dobbs Weir 3/11/22 with Mik",14/11/2022 00:00:00,"268577",300,"BE0656","BERZINS ARCHITECTS",31/10/2022 00:00:00,27/11/2022 00:00:00,"P08-2023"
"P&V","ASSET PROTECTION, MAINT, DEVEL","THIRD PARTY PAYMENTS","CONSULTANTS (GENERAL)","5110","P120101-SERVICE-LV WWC Meeting room",22/11/2022 00:00:00,"268894",8182.31,"PE0379","PERFECT CIRCLE JV LTD",31/10/2022 00:00:00,27/11/2022 00:00:00,"P08-2023"
"P&V","ASSET PROTECTION, MAINT, DEVEL","THIRD PARTY PAYMENTS","CONSULTANTS (GENERAL)","5110","P119897-SERVICE-Asbestos Management Surveys at various venues",22/11/2022 00:00:00,"268914",750,"NS0201","NSUK GROUP LTD",31/10/2022 00:00:00,27/11/2022 00:00:00,"P08-2023"
"R&B","FINANCE & RESOURCES MANAGEMENT","THIRD PARTY PAYMENTS","CONSULTANTS (GENERAL)","5110","P120009-SERVICE-Helpline for period 1/10/22 - 31/12/22",14/11/2022 00:00:00,"268463",800,"KP0010","KPMG TAX ADVISERS",31/10/2022 00:00:00,27/11/2022 00:00:00,"P08-2023"
"R&B","FINANCE & RESOURCES MANAGEMENT","THIRD PARTY PAYMENTS","CONSULTANTS (GENERAL)","5110","P119967-SERVICE-In-tend Maintenance & Hosting 01/12/2022 - 30",14/11/2022 00:00:00,"268576",995,"IN0160","IN-TEND LIMITED",31/10/2022 00:00:00,27/11/2022 00:00:00,"P08-2023"
"R&B","FINANCE & RESOURCES MANAGEMENT","THIRD PARTY PAYMENTS","CONSULTANTS (GENERAL)","5110","P120006-SERVICE-LVIC investigate and appeal against the ratin",14/11/2022 00:00:00,"268672",9707,"MO0036","MONTAGU EVANS LLP",31/10/2022 00:00:00,27/11/2022 00:00:00,"P08-2023"
"R&B","INTERNAL AUDIT/HEALTH & SAFETY","THIRD PARTY PAYMENTS","CONSULTANTS (GENERAL)","5110","P120108-SERVICE-10 Audit days Seot 2022",22/11/2022 00:00:00,"268884",3780,"CR0543","CROYDON CORPORATE DEBT RECOVERY SERVICE",31/10/2022 00:00:00,27/11/2022 00:00:00,"P08-2023"
"CEO","LEGAL SERVICES","THIRD PARTY PAYMENTS","CONSULTANTS (GENERAL)","5110","P119949-SERVICE-Boundary Dispute at Land South of Gunpowder P",9/11/2022 00:00:00,"268532",1703,"WO0344","WOMBLE BOND DICKINSON (UK) LLP",31/10/2022 00:00:00,27/11/2022 00:00:00,"P08-2023"
"CEO","LEGAL SERVICES","THIRD PARTY PAYMENTS","CONSULTANTS (GENERAL)","5110","P119950-SERVICE-Telecoms Lease at Roydon Road",9/11/2022 00:00:00,"268533",200.2,"WO0344","WOMBLE BOND DICKINSON (UK) LLP",31/10/2022 00:00:00,27/11/2022 00:00:00,"P08-2023"
"CEO","LEGAL SERVICES","THIRD PARTY PAYMENTS","CONSULTANTS (GENERAL)","5110","P119951-SERVICE-Wayleave Agreement Roydon Road",9/11/2022 00:00:00,"268534",236.6,"WO0344","WOMBLE BOND DICKINSON (UK) LLP",31/10/2022 00:00:00,27/11/2022 00:00:00,"P08-2023"
"CEO","LEGAL SERVICES","THIRD PARTY PAYMENTS","CONSULTANTS (GENERAL)","5110","P119952-SERVICE-Disposal of Mile & Langley Nursery",9/11/2022 00:00:00,"268535",3718.8,"WO0344","WOMBLE BOND DICKINSON (UK) LLP",31/10/2022 00:00:00,27/11/2022 00:00:00,"P08-2023"
"CEO","LEGAL SERVICES","THIRD PARTY PAYMENTS","CONSULTANTS (GENERAL)","5110","P119953-SERVICE-GLL - IT Agreement",9/11/2022 00:00:00,"268536",291.2,"WO0344","WOMBLE BOND DICKINSON (UK) LLP",31/10/2022 00:00:00,27/11/2022 00:00:00,"P08-2023"
"CEO","LEGAL SERVICES","THIRD PARTY PAYMENTS","CONSULTANTS (GENERAL)","5110","P119954-SERVICE-Disposal of Mile & Langley Nursery",9/11/2022 00:00:00,"268537",1996.2,"WO0344","WOMBLE BOND DICKINSON (UK) LLP",31/10/2022 00:00:00,27/11/2022 00:00:00,"P08-2023"
"CEO","LEGAL SERVICES","THIRD PARTY PAYMENTS","CONSULTANTS (GENERAL)","5110","P119955-SERVICE-CRT Discharge Licence - LV Ice Centre",9/11/2022 00:00:00,"268538",928.2,"WO0344","WOMBLE BOND DICKINSON (UK) LLP",31/10/2022 00:00:00,27/11/2022 00:00:00,"P08-2023"
"CEO","LEGAL SERVICES","THIRD PARTY PAYMENTS","CONSULTANTS (GENERAL)","5110","P120093-SERVICE-General Property Matters - LV Marina",22/11/2022 00:00:00,"268915",1034.64,"RA0325","RADIUS LAW",31/10/2022 00:00:00,27/11/2022 00:00:00,"P08-2023"
"P&V","LEE VALLEY FARM HOLYFIELDHALL","THIRD PARTY PAYMENTS","CONSULTANTS (GENERAL)","5110","P119981-SERVICE-Work on Business Plan",22/11/2022 00:00:00,"268311",610,"DO0320","DOUGLAS GREEN CONSULTING LTD",31/10/2022 00:00:00,27/11/2022 00:00:00,"P08-2023"
"P&V","LEE VALLEY FARM HOLYFIELDHALL","THIRD PARTY PAYMENTS","CONSULTANTS (GENERAL)","5110","P119981-SERVICE-Work on Business Plan",14/11/2022 00:00:00,"268312",1050,"DO0320","DOUGLAS GREEN CONSULTING LTD",31/10/2022 00:00:00,27/11/2022 00:00:00,"P08-2023"
"P&V","LEE VALLEY FARM HOLYFIELDHALL","THIRD PARTY PAYMENTS","CONSULTANTS (GENERAL)","5110","P119981-SERVICE-Work on Business Plan",22/11/2022 00:00:00,"268740",-610,"DO0320","DOUGLAS GREEN CONSULTING LTD",31/10/2022 00:00:00,27/11/2022 00:00:00,"P08-2023"
"P&V","ABBEY GARDENS","THIRD PARTY PAYMENTS","CONSULTANTS (GENERAL)","5110","P119858-SERVICE-Archaeological Monitoring at Cornmill Meadows",8/11/2022 00:00:00,"268355",200,"EN0416","ENFIELD ARCHAEOLOGICAL SOCIETY",31/10/2022 00:00:00,27/11/2022 00:00:00,"P08-2023"
"P&V","LEE VALLEY FARM HOLYFIELDHALL","THIRD PARTY PAYMENTS","CONTRACTORS","5118","P119996-SERVICE-Drilling",16/11/2022 00:00:00,"268684",475,"WA0362","WARREN SMITH FARMING LTD",31/10/2022 00:00:00,27/11/2022 00:00:00,"P08-2023"
"CEO","COMMERCIAL ACCOMMODATION","THIRD PARTY PAYMENTS","CONSULTANTS (LEGAL SERVICES)","5120","P119783-SERVICE-Spring Hill Sports Ground & Marina Market Val",23/11/2022 00:00:00,"265910",2500,"SA0294","SAVILLS",31/10/2022 00:00:00,27/11/2022 00:00:00,"P08-2023"
"CEO","COMMERCIAL ACCOMMODATION","THIRD PARTY PAYMENTS","CONSULTANTS (LEGAL SERVICES)","5120","P119862-SERVICE-Letting Fee for Abercrombie Lodge",14/11/2022 00:00:00,"268443",7500,"SB0686","SBH PAGE & READ",31/10/2022 00:00:00,27/11/2022 00:00:00,"P08-2023"
"CEO","PROPERTY","THIRD PARTY PAYMENTS","CONSULTANTS (LEGAL SERVICES)","5120","P119589-SERVICE-Soft Marketing of Land at LVWWC and Spitalbro",8/11/2022 00:00:00,"267892",10000,"MO0036","MONTAGU EVANS LLP",31/10/2022 00:00:00,27/11/2022 00:00:00,"P08-2023"
"P&V","POLICY & PERFORMANCE (L&E)","THIRD PARTY PAYMENTS","CONSULTANTS (HEALTH & SAFETY)","5123","P119861-SERVICE-Annual Health and Safety contract Yr1",9/11/2022 00:00:00,"268456",11458.33,"RI0053","RIGHT DIRECTIONS (MANAGEMENT) LTD",31/10/2022 00:00:00,27/11/2022 00:00:00,"P08-2023"
"R&B","MANAGEMENT LEISURE FACILITIES","THIRD PARTY PAYMENTS","MANAGEMENT FEE (LEISURE TRUST)","5150","P119553-SERVICE-LEISURE SERVICES CONTRACT MANAGEMENT FEE",8/11/2022 00:00:00,"268364",1130569,"GR0097","GREENWICH LEISURE LTD",31/10/2022 00:00:00,27/11/2022 00:00:00,"P08-2023"
"R&B","BALANCE SHEET (AUTHORITY)","REVENUE RESERVES USEABLE","INSURANCE FUND","6453","DISBREY-EXCESS ON PL POLICY",22/11/2022 00:00:00,"268886",4770,"ST0039","TRAVELERS INSURANCE COMPANY LIMITED",31/10/2022 00:00:00,27/11/2022 00:00:00,"P08-2023"
"R&B","BALANCE SHEET (AUTHORITY)","CREDITORS","HMRC RED DIESEL","6516","RED DIESEL 2021/2022",14/11/2022 00:00:00,"268695",735.74,"HM0220","HM REVENUE & CUSTOMS",31/10/2022 00:00:00,27/11/2022 00:00:00,"P08-2023"
"R&B","BALANCE SHEET (AUTHORITY)","CREDITORS","HMRC RED DIESEL","6516","RED DIESEL 2021/2022",14/11/2022 00:00:00,"268696",2221.13,"HM0220","HM REVENUE & CUSTOMS",31/10/2022 00:00:00,27/11/2022 00:00:00,"P08-2023"
"R&B","BALANCE SHEET (AUTHORITY)","CREDITORS","EMPLOYEES INCOME TAX","6701","PAYE",22/11/2022 00:00:00,"268685",53539.71,"HM0368","HMRC",31/10/2022 00:00:00,27/11/2022 00:00:00,"P08-2023"
"R&B","BALANCE SHEET (AUTHORITY)","CREDITORS","EMPLOYEES INCOME TAX","6701","PAYE",14/11/2022 00:00:00,"268691",52186.77,"HM0368","HMRC",31/10/2022 00:00:00,27/11/2022 00:00:00,"P08-2023"
"R&B","BALANCE SHEET (AUTHORITY)","CREDITORS","EMPLOYEES NATIONAL INSURANCE","6702","PAYE",22/11/2022 00:00:00,"268685",24896.02,"HM0368","HMRC",31/10/2022 00:00:00,27/11/2022 00:00:00,"P08-2023"
"R&B","BALANCE SHEET (AUTHORITY)","CREDITORS","EMPLOYEES NATIONAL INSURANCE","6702","PAYE",14/11/2022 00:00:00,"268691",26931.07,"HM0368","HMRC",31/10/2022 00:00:00,27/11/2022 00:00:00,"P08-2023"
"R&B","BALANCE SHEET (AUTHORITY)","CREDITORS","EMPLOYERS NATIONAL INSURANCE","6704","PAYE",22/11/2022 00:00:00,"268685",39106.02,"HM0368","HMRC",31/10/2022 00:00:00,27/11/2022 00:00:00,"P08-2023"
"R&B","BALANCE SHEET (AUTHORITY)","CREDITORS","EMPLOYERS NATIONAL INSURANCE","6704","PAYE",14/11/2022 00:00:00,"268691",41352.17,"HM0368","HMRC",31/10/2022 00:00:00,27/11/2022 00:00:00,"P08-2023"
"R&B","BALANCE SHEET (AUTHORITY)","CREDITORS","EMPLOYEES PENSION LGPS","6706","EMPLOYEE CONTRIBUTIONS",22/11/2022 00:00:00,"268686",24461.49,"LO0334","LONDON PENSION FUND OPERATIONAL ACCOUNT",31/10/2022 00:00:00,27/11/2022 00:00:00,"P08-2023"
"R&B","BALANCE SHEET (AUTHORITY)","CREDITORS","EMPLOYEES PENSION LGPS","6706","AVC CONTRIBUTIONS",22/11/2022 00:00:00,"268687",125,"LO0455","LOCAL GOVERNMENT AVC DEPARTMENT",31/10/2022 00:00:00,27/11/2022 00:00:00,"P08-2023"
"R&B","BALANCE SHEET (AUTHORITY)","CREDITORS","EMPLOYEES PENSION LGPS","6706","EMPLOYEE CONTRIBUTIONS",14/11/2022 00:00:00,"268692",24593.92,"LO0334","LONDON PENSION FUND OPERATIONAL ACCOUNT",31/10/2022 00:00:00,27/11/2022 00:00:00,"P08-2023"
"R&B","BALANCE SHEET (AUTHORITY)","CREDITORS","EMPLOYEES PENSION LGPS","6706","AVC CONTRIBUTIONS",14/11/2022 00:00:00,"268693",125,"LO0455","LOCAL GOVERNMENT AVC DEPARTMENT",31/10/2022 00:00:00,27/11/2022 00:00:00,"P08-2023"
"R&B","BALANCE SHEET (AUTHORITY)","CREDITORS","EMPLOYERS PENSION LGPS","6707","EMPLOYER CONTRIBUTIONS",22/11/2022 00:00:00,"268686",53988.66,"LO0334","LONDON PENSION FUND OPERATIONAL ACCOUNT",31/10/2022 00:00:00,27/11/2022 00:00:00,"P08-2023"
"R&B","BALANCE SHEET (AUTHORITY)","CREDITORS","EMPLOYERS PENSION LGPS","6707","EMPLOYER CONTRIBUTIONS",14/11/2022 00:00:00,"268692",52708.32,"LO0334","LONDON PENSION FUND OPERATIONAL ACCOUNT",31/10/2022 00:00:00,27/11/2022 00:00:00,"P08-2023"
"R&B","BALANCE SHEET (AUTHORITY)","CREDITORS","EMPLOYEES STUDENT LOANS","6709","PAYE",22/11/2022 00:00:00,"268685",1087,"HM0368","HMRC",31/10/2022 00:00:00,27/11/2022 00:00:00,"P08-2023"
"R&B","BALANCE SHEET (AUTHORITY)","CREDITORS","EMPLOYEES STUDENT LOANS","6709","PAYE",14/11/2022 00:00:00,"268691",1027,"HM0368","HMRC",31/10/2022 00:00:00,27/11/2022 00:00:00,"P08-2023"
"R&B","BALANCE SHEET (AUTHORITY)","CREDITORS","EMPLOYEES UNION SUBSCRIPTIONS","6711","MEMBERSHIP FEES",22/11/2022 00:00:00,"268688",57,"UN0002","UNISON Greater London Region",31/10/2022 00:00:00,27/11/2022 00:00:00,"P08-2023"
"R&B","BALANCE SHEET (AUTHORITY)","CREDITORS","EMPLOYEES UNION SUBSCRIPTIONS","6711","MEMBERSHIP FEES",14/11/2022 00:00:00,"268694",57,"UN0002","UNISON Greater London Region",31/10/2022 00:00:00,27/11/2022 00:00:00,"P08-2023"
"R&B","BALANCE SHEET (AUTHORITY)","CREDITORS","CONSTRUCTION INDUSTRY SCHEME","6721","CAPSER",2/11/2022 00:00:00,"268415",-172,"MO0041","CAPSER",31/10/2022 00:00:00,27/11/2022 00:00:00,"P08-2023"
"R&B","BALANCE SHEET (AUTHORITY)","CREDITORS","CONSTRUCTION INDUSTRY SCHEME","6721","R G JOYCE",9/11/2022 00:00:00,"268637",-310,"JO0019","R G JOYCE",31/10/2022 00:00:00,27/11/2022 00:00:00,"P08-2023"
"R&B","BALANCE SHEET (AUTHORITY)","CREDITORS","CONSTRUCTION INDUSTRY SCHEME","6721","CASPER",14/11/2022 00:00:00,"268676",252,"IN0016","INLAND REVENUE ONLY 948/L1005",31/10/2022 00:00:00,27/11/2022 00:00:00,"P08-2023"
"R&B","BALANCE SHEET (AUTHORITY)","CREDITORS","CONSTRUCTION INDUSTRY SCHEME","6721","CAPSER",16/11/2022 00:00:00,"268832",-310,"MO0041","CAPSER",31/10/2022 00:00:00,27/11/2022 00:00:00,"P08-2023"
"R&B","BALANCE SHEET (AUTHORITY)","CREDITORS","CONSTRUCTION INDUSTRY SCHEME","6721","R G JOYCE",23/11/2022 00:00:00,"269059",-280,"JO0019","R G JOYCE",31/10/2022 00:00:00,27/11/2022 00:00:00,"P08-2023"
"R&B","BALANCE SHEET (AUTHORITY)","CREDITORS","CONSTRUCTION INDUSTRY SCHEME","6721","KENDALL & SONS LIMITED",23/11/2022 00:00:00,"269061",-8.4,"KE0023","KENDALL & SONS LIMITED",31/10/2022 00:00:00,27/11/2022 00:00:00,"P08-2023"
"P&V","CAR PARK INCOME","INCOME","CAR PARKING INCOME","9730","P119972-SERVICE-Paid Parking Tickets Used - GPP - Oct 2022",14/11/2022 00:00:00,"268356",4.1,"PA0372","PARKINGEYE LIMITED",31/10/2022 00:00:00,27/11/2022 00:00:00,"P08-2023"
"P&V","CAR PARK INCOME","INCOME","CAR PARKING INCOME","9730","P119972-SERVICE-Paid Parking Tickets Used - FG - Oct 2022",14/11/2022 00:00:00,"268356",2.71,"PA0372","PARKINGEYE LIMITED",31/10/2022 00:00:00,27/11/2022 00:00:00,"P08-2023"
"P&V","CAR PARK INCOME","INCOME","CAR PARKING INCOME","9730","P119972-SERVICE-Paid Parking Tickets Used - WAG - Oct 2022",14/11/2022 00:00:00,"268356",2.66,"PA0372","PARKINGEYE LIMITED",31/10/2022 00:00:00,27/11/2022 00:00:00,"P08-2023"
"P&V","CAR PARK INCOME","INCOME","CAR PARKING INCOME","9730","P119972-SERVICE-Paid Parking Tickets Used - CMM - Oct 2022",14/11/2022 00:00:00,"268356",0.65,"PA0372","PARKINGEYE LIMITED",31/10/2022 00:00:00,27/11/2022 00:00:00,"P08-2023"
"P&V","CAR PARK INCOME","INCOME","CAR PARKING INCOME","9730","OCTOBER 2022",8/11/2022 00:00:00,"268357",-30.68,"PA0372","PARKINGEYE LIMITED",31/10/2022 00:00:00,27/11/2022 00:00:00,"P08-2023"
"P&V","CAR PARK INCOME","INCOME","CAR PARKING INCOME","9730","OCTOBER 2022",8/11/2022 00:00:00,"268358",-15,"PA0372","PARKINGEYE LIMITED",31/10/2022 00:00:00,27/11/2022 00:00:00,"P08-2023"
"P&V","CAR PARK INCOME","INCOME","CAR PARKING INCOME","9730","OCTOBER 2022",8/11/2022 00:00:00,"268359",-98.83,"PA0372","PARKINGEYE LIMITED",31/10/2022 00:00:00,27/11/2022 00:00:00,"P08-2023"
"P&V","CAR PARK INCOME","INCOME","CAR PARKING INCOME","9730","OCTOBER 2022",8/11/2022 00:00:00,"268360",-78,"PA0372","PARKINGEYE LIMITED",31/10/2022 00:00:00,27/11/2022 00:00:00,"P08-2023"
"P&V","CAR PARK INCOME","INCOME","CAR PARKING INCOME","9730","OCTOBER 2022",8/11/2022 00:00:00,"268361",-145.35,"PA0372","PARKINGEYE LIMITED",31/10/2022 00:00:00,27/11/2022 00:00:00,"P08-2023"
"P&V","CAR PARK INCOME","INCOME","CAR PARKING INCOME","9730","OCTOBER 2022",8/11/2022 00:00:00,"268362",-76.95,"PA0372","PARKINGEYE LIMITED",31/10/2022 00:00:00,27/11/2022 00:00:00,"P08-2023"
"P&V","CAR PARK INCOME","INCOME","CAR PARKING INCOME","9730","OCTOBER 2022",8/11/2022 00:00:00,"268363",-52,"PA0372","PARKINGEYE LIMITED",31/10/2022 00:00:00,27/11/2022 00:00:00,"P08-2023"
"P&V","CAR PARK INCOME","INCOME","CAR PARKING INCOME","9730","OCTOBER 2022",9/11/2022 00:00:00,"268524",314.71,"PA0372","PARKINGEYE LIMITED",31/10/2022 00:00:00,27/11/2022 00:00:00,"P08-2023"
"P&V","CAR PARK INCOME","INCOME","CAR PARKING INCOME","9730","OCTOBER 2022",9/11/2022 00:00:00,"268524",-4644.52,"PA0372","PARKINGEYE LIMITED",31/10/2022 00:00:00,27/11/2022 00:00:00,"P08-2023"
"P&V","CAR PARK INCOME","INCOME","CAR PARKING INCOME","9730","P119972-SERVICE-P&D Recharge Pindar - Oct 2022",14/11/2022 00:00:00,"268542",34.26,"PA0372","PARKINGEYE LIMITED",31/10/2022 00:00:00,27/11/2022 00:00:00,"P08-2023"
"P&V","CAR PARK INCOME","INCOME","CAR PARKING INCOME","9730","P119972-SERVICE-P&D Recharge WAG - Oct 2022",14/11/2022 00:00:00,"268542",26.52,"PA0372","PARKINGEYE LIMITED",31/10/2022 00:00:00,27/11/2022 00:00:00,"P08-2023"
"P&V","CAR PARK INCOME","INCOME","CAR PARKING INCOME","9730","P119972-SERVICE-P&D Recharge CA110656 -  Oct 2022",14/11/2022 00:00:00,"268542",3.9,"PA0372","PARKINGEYE LIMITED",31/10/2022 00:00:00,27/11/2022 00:00:00,"P08-2023"
"P&V","CAR PARK INCOME","INCOME","CAR PARKING INCOME","9730","P119972-SERVICE-P&D Recharge FG - Oct 2022",14/11/2022 00:00:00,"268542",27.12,"PA0372","PARKINGEYE LIMITED",31/10/2022 00:00:00,27/11/2022 00:00:00,"P08-2023"
"P&V","CAR PARK INCOME","INCOME","CAR PARKING INCOME","9730","P119972-SERVICE-P&D Recharge CMM - Oct 2022",14/11/2022 00:00:00,"268542",6.54,"PA0372","PARKINGEYE LIMITED",31/10/2022 00:00:00,27/11/2022 00:00:00,"P08-2023"
"P&V","CAR PARK INCOME","INCOME","CAR PARKING INCOME","9730","P119972-SERVICE-P&D Recharge OM&M - Oct 2022",14/11/2022 00:00:00,"268542",11.22,"PA0372","PARKINGEYE LIMITED",31/10/2022 00:00:00,27/11/2022 00:00:00,"P08-2023"
"P&V","CAR PARK INCOME","INCOME","CAR PARKING INCOME","9730","P119972-SERVICE-P&D Recharge GPP - Oct 2022",14/11/2022 00:00:00,"268542",40.98,"PA0372","PARKINGEYE LIMITED",31/10/2022 00:00:00,27/11/2022 00:00:00,"P08-2023"
"P&V","CAR PARK INCOME","INCOME","CAR PARKING INCOME","9730","PARKINGEYE LIMITED",14/11/2022 00:00:00,"268582",0,"PA0372","PARKINGEYE LIMITED",31/10/2022 00:00:00,27/11/2022 00:00:00,"P08-2023"
"P&V","CAR PARK INCOME","INCOME","CAR PARKING INCOME","9730","PARKINGEYE LIMITED",14/11/2022 00:00:00,"268583",0,"PA0372","PARKINGEYE LIMITED",31/10/2022 00:00:00,27/11/2022 00:00:00,"P08-2023"
"P&V","CAR PARK INCOME","INCOME","CAR PARKING INCOME","9730","PARKINGEYE LIMITED",14/11/2022 00:00:00,"268584",0,"PA0372","PARKINGEYE LIMITED",31/10/2022 00:00:00,27/11/2022 00:00:00,"P08-2023"
"P&V","CAR PARK INCOME","INCOME","CAR PARKING INCOME","9730","PARKINGEYE LIMITED",14/11/2022 00:00:00,"268585",0,"PA0372","PARKINGEYE LIMITED",31/10/2022 00:00:00,27/11/2022 00:00:00,"P08-2023"
"P&V","CAR PARK INCOME","INCOME","CAR PARKING INCOME","9730","PARKINGEYE LIMITED",14/11/2022 00:00:00,"268586",0,"PA0372","PARKINGEYE LIMITED",31/10/2022 00:00:00,27/11/2022 00:00:00,"P08-2023"
"P&V","CAR PARK INCOME","INCOME","CAR PARKING INCOME","9730","PARKINGEYE LIMITED",14/11/2022 00:00:00,"268587",0,"PA0372","PARKINGEYE LIMITED",31/10/2022 00:00:00,27/11/2022 00:00:00,"P08-2023"
"P&V","CAR PARK INCOME","INCOME","CAR PARKING INCOME","9730","PARKINGEYE LIMITED",14/11/2022 00:00:00,"268588",0,"PA0372","PARKINGEYE LIMITED",31/10/2022 00:00:00,27/11/2022 00:00:00,"P08-2023"
"P&V","CAR PARK INCOME","INCOME","CAR PARKING INCOME","9730","PARKINGEYE LIMITED",22/11/2022 00:00:00,"268899",-216,"PA0372","PARKINGEYE LIMITED",31/10/2022 00:00:00,27/11/2022 00:00:00,"P08-2023"
"P&V","CAR PARK INCOME","INCOME","CAR PARKING INCOME","9730","PARKINGEYE LIMITED",22/11/2022 00:00:00,"268900",328.02,"PA0372","PARKINGEYE LIMITED",31/10/2022 00:00:00,27/11/2022 00:00:00,"P08-2023"
"P&V","CAR PARK INCOME","INCOME","CAR PARKING INCOME","9730","PARKINGEYE LIMITED",22/11/2022 00:00:00,"268900",-4916.05,"PA0372","PARKINGEYE LIMITED",31/10/2022 00:00:00,27/11/2022 00:00:00,"P08-2023"
,"LEE VALLEY CAMPSITE","INCOME","TRADING AC - EXTERNAL SALES","9875","P119189-SERVICE-Shop Stock Camping Items",14/11/2022 00:00:00,"268700",177.4,"CA0754","CRAFTS ET AL",31/10/2022 00:00:00,27/11/2022 00:00:00,"P08-2023"
,"LEE VALLEY CARAVAN PARK","INCOME","TRADING AC - EXTERNAL SALES","9875","P119189-SERVICE-Shop Stock Camping Items",14/11/2022 00:00:00,"268700",177.4,"CA0754","CRAFTS ET AL",31/10/2022 00:00:00,27/11/2022 00:00:00,"P08-2023"
